Organisation Name,Organisation Code,Unique Ref No,Effective Date,Directorate where expenditure incurred, Supplier Name ,Payment Date,Net amount,Purpose of Spend,"Procurement Classification
(Higher Level)",Procurement Classification (Lower Level),CAPITAL / REVENUE
Walsall Council,http://opendatacommunities.org/id/metropolitan-district-council/walsall ,WC127-1,30.06.2021,ECONOMY & ENVIRONMENT,1974 RAPPORT LTD,10/06/2021,600.00,6410-External Training,INDIRECT EMPLOYEES,EXTERNAL TRAINING,REVENUE
Walsall Council,http://opendatacommunities.org/id/metropolitan-district-council/walsall ,WC127-2,30.06.2021,CHILDRENS,247 CARS (WILLENHALL) LIMITED,21/06/2021,566.00,6241-Hire of Vehicle with Driver,TRANSPORT,DIRECT TRANSPORT COSTS,REVENUE
Walsall Council,http://opendatacommunities.org/id/metropolitan-district-council/walsall ,WC127-3,30.06.2021,CHILDRENS,247 CARS (WILLENHALL) LIMITED,21/06/2021,"1,096.20",6241-Hire of Vehicle with Driver,TRANSPORT,DIRECT TRANSPORT COSTS,REVENUE
Walsall Council,http://opendatacommunities.org/id/metropolitan-district-council/walsall ,WC127-4,30.06.2021,CHILDRENS,247 CARS (WILLENHALL) LIMITED,21/06/2021,283.00,6241-Hire of Vehicle with Driver,TRANSPORT,DIRECT TRANSPORT COSTS,REVENUE
Walsall Council,http://opendatacommunities.org/id/metropolitan-district-council/walsall ,WC127-5,30.06.2021,CHILDRENS,247 CARS (WILLENHALL) LIMITED,21/06/2021,"1,425.00",6241-Hire of Vehicle with Driver,TRANSPORT,DIRECT TRANSPORT COSTS,REVENUE
Walsall Council,http://opendatacommunities.org/id/metropolitan-district-council/walsall ,WC127-6,30.06.2021,RESOURCES AND TRANSFORMATION,2BM LIMITED,14/06/2021,259.00,6623-Computer Equipment,SUPPLIES & SERVICES,COMMUNICATIONS & COMPUTING,REVENUE
Walsall Council,http://opendatacommunities.org/id/metropolitan-district-council/walsall ,WC127-7,30.06.2021,RESOURCES AND TRANSFORMATION,3 SPIRIT UK TRAINING & CONSULTANCY,17/06/2021,700.00,6625-Consultant Fees,SUPPLIES & SERVICES,SERVICES,REVENUE
Walsall Council,http://opendatacommunities.org/id/metropolitan-district-council/walsall ,WC127-8,30.06.2021,RESOURCES AND TRANSFORMATION,3 SPIRIT UK TRAINING & CONSULTANCY,29/06/2021,725.00,6625-Consultant Fees,SUPPLIES & SERVICES,SERVICES,REVENUE
Walsall Council,http://opendatacommunities.org/id/metropolitan-district-council/walsall ,WC127-9,30.06.2021,ADULT SOCIAL CARE,5 CARE SERVICES LTD,08/06/2021,544.95,6541-Domiciliary Care,THIRD PARTY PAYMENTS,PRIVATE CONTRACTOR,REVENUE
Walsall Council,http://opendatacommunities.org/id/metropolitan-district-council/walsall ,WC127-10,30.06.2021,ADULT SOCIAL CARE,5 CARE SERVICES LTD,08/06/2021,490.49,6541-Domiciliary Care,THIRD PARTY PAYMENTS,PRIVATE CONTRACTOR,REVENUE
Walsall Council,http://opendatacommunities.org/id/metropolitan-district-council/walsall ,WC127-11,30.06.2021,ADULT SOCIAL CARE,5 CARE SERVICES LTD,08/06/2021,654.01,6541-Domiciliary Care,THIRD PARTY PAYMENTS,PRIVATE CONTRACTOR,REVENUE
Walsall Council,http://opendatacommunities.org/id/metropolitan-district-council/walsall ,WC127-12,30.06.2021,ADULT SOCIAL CARE,5 CARE SERVICES LTD,08/06/2021,591.66,6541-Domiciliary Care,THIRD PARTY PAYMENTS,PRIVATE CONTRACTOR,REVENUE
Walsall Council,http://opendatacommunities.org/id/metropolitan-district-council/walsall ,WC127-13,30.06.2021,ADULT SOCIAL CARE,5 CARE SERVICES LTD,08/06/2021,257.00,6541-Domiciliary Care,THIRD PARTY PAYMENTS,PRIVATE CONTRACTOR,REVENUE
Walsall Council,http://opendatacommunities.org/id/metropolitan-district-council/walsall ,WC127-14,30.06.2021,ADULT SOCIAL CARE,5 CARE SERVICES LTD,08/06/2021,303.72,6541-Domiciliary Care,THIRD PARTY PAYMENTS,PRIVATE CONTRACTOR,REVENUE
Walsall Council,http://opendatacommunities.org/id/metropolitan-district-council/walsall ,WC127-15,30.06.2021,ADULT SOCIAL CARE,5 CARE SERVICES LTD,08/06/2021,254.38,6541-Domiciliary Care,THIRD PARTY PAYMENTS,PRIVATE CONTRACTOR,REVENUE
Walsall Council,http://opendatacommunities.org/id/metropolitan-district-council/walsall ,WC127-16,30.06.2021,ADULT SOCIAL CARE,5 CARE SERVICES LTD,08/06/2021,311.40,6541-Domiciliary Care,THIRD PARTY PAYMENTS,PRIVATE CONTRACTOR,REVENUE
Walsall Council,http://opendatacommunities.org/id/metropolitan-district-council/walsall ,WC127-17,30.06.2021,ADULT SOCIAL CARE,5 CARE SERVICES LTD,08/06/2021,435.96,6541-Domiciliary Care,THIRD PARTY PAYMENTS,PRIVATE CONTRACTOR,REVENUE
Walsall Council,http://opendatacommunities.org/id/metropolitan-district-council/walsall ,WC127-18,30.06.2021,ADULT SOCIAL CARE,5 CARE SERVICES LTD,08/06/2021,654.01,6541-Domiciliary Care,THIRD PARTY PAYMENTS,PRIVATE CONTRACTOR,REVENUE
Walsall Council,http://opendatacommunities.org/id/metropolitan-district-council/walsall ,WC127-19,30.06.2021,ADULT SOCIAL CARE,5 CARE SERVICES LTD,08/06/2021,326.97,6541-Domiciliary Care,THIRD PARTY PAYMENTS,PRIVATE CONTRACTOR,REVENUE
Walsall Council,http://opendatacommunities.org/id/metropolitan-district-council/walsall ,WC127-20,30.06.2021,ADULT SOCIAL CARE,5 CARE SERVICES LTD,08/06/2021,599.55,6541-Domiciliary Care,THIRD PARTY PAYMENTS,PRIVATE CONTRACTOR,REVENUE
Walsall Council,http://opendatacommunities.org/id/metropolitan-district-council/walsall ,WC127-21,30.06.2021,ADULT SOCIAL CARE,5 CARE SERVICES LTD,08/06/2021,490.49,6541-Domiciliary Care,THIRD PARTY PAYMENTS,PRIVATE CONTRACTOR,REVENUE
Walsall Council,http://opendatacommunities.org/id/metropolitan-district-council/walsall ,WC127-22,30.06.2021,ADULT SOCIAL CARE,5 CARE SERVICES LTD,08/06/2021,599.48,6541-Domiciliary Care,THIRD PARTY PAYMENTS,PRIVATE CONTRACTOR,REVENUE
Walsall Council,http://opendatacommunities.org/id/metropolitan-district-council/walsall ,WC127-23,30.06.2021,ADULT SOCIAL CARE,5 CARE SERVICES LTD,08/06/2021,599.48,6541-Domiciliary Care,THIRD PARTY PAYMENTS,PRIVATE CONTRACTOR,REVENUE
Walsall Council,http://opendatacommunities.org/id/metropolitan-district-council/walsall ,WC127-24,30.06.2021,ADULT SOCIAL CARE,5 CARE SERVICES LTD,08/06/2021,327.04,6541-Domiciliary Care,THIRD PARTY PAYMENTS,PRIVATE CONTRACTOR,REVENUE
Walsall Council,http://opendatacommunities.org/id/metropolitan-district-council/walsall ,WC127-25,30.06.2021,ADULT SOCIAL CARE,5 CARE SERVICES LTD,08/06/2021,"1,105.54",6541-Domiciliary Care,THIRD PARTY PAYMENTS,PRIVATE CONTRACTOR,REVENUE
Walsall Council,http://opendatacommunities.org/id/metropolitan-district-council/walsall ,WC127-26,30.06.2021,ADULT SOCIAL CARE,5 CARE SERVICES LTD,08/06/2021,-555.12,6541-Domiciliary Care,THIRD PARTY PAYMENTS,PRIVATE CONTRACTOR,REVENUE
Walsall Council,http://opendatacommunities.org/id/metropolitan-district-council/walsall ,WC127-27,30.06.2021,ADULT SOCIAL CARE,5 CARE SERVICES LTD,08/06/2021,"1,198.89",6541-Domiciliary Care,THIRD PARTY PAYMENTS,PRIVATE CONTRACTOR,REVENUE
Walsall Council,http://opendatacommunities.org/id/metropolitan-district-council/walsall ,WC127-28,30.06.2021,ADULT SOCIAL CARE,5 CARE SERVICES LTD,08/06/2021,432.14,6541-Domiciliary Care,THIRD PARTY PAYMENTS,PRIVATE CONTRACTOR,REVENUE
Walsall Council,http://opendatacommunities.org/id/metropolitan-district-council/walsall ,WC127-29,30.06.2021,ADULT SOCIAL CARE,5 CARE SERVICES LTD,08/06/2021,311.40,6541-Domiciliary Care,THIRD PARTY PAYMENTS,PRIVATE CONTRACTOR,REVENUE
Walsall Council,http://opendatacommunities.org/id/metropolitan-district-council/walsall ,WC127-30,30.06.2021,ADULT SOCIAL CARE,5 CARE SERVICES LTD,08/06/2021,326.97,6541-Domiciliary Care,THIRD PARTY PAYMENTS,PRIVATE CONTRACTOR,REVENUE
Walsall Council,http://opendatacommunities.org/id/metropolitan-district-council/walsall ,WC127-31,30.06.2021,ADULT SOCIAL CARE,5 CARE SERVICES LTD,08/06/2021,490.49,6541-Domiciliary Care,THIRD PARTY PAYMENTS,PRIVATE CONTRACTOR,REVENUE
Walsall Council,http://opendatacommunities.org/id/metropolitan-district-council/walsall ,WC127-32,30.06.2021,ADULT SOCIAL CARE,5 CARE SERVICES LTD,08/06/2021,311.40,6541-Domiciliary Care,THIRD PARTY PAYMENTS,PRIVATE CONTRACTOR,REVENUE
Walsall Council,http://opendatacommunities.org/id/metropolitan-district-council/walsall ,WC127-33,30.06.2021,ADULT SOCIAL CARE,5 CARE SERVICES LTD,08/06/2021,435.96,6541-Domiciliary Care,THIRD PARTY PAYMENTS,PRIVATE CONTRACTOR,REVENUE
Walsall Council,http://opendatacommunities.org/id/metropolitan-district-council/walsall ,WC127-34,30.06.2021,ADULT SOCIAL CARE,5 CARE SERVICES LTD,08/06/2021,654.01,6541-Domiciliary Care,THIRD PARTY PAYMENTS,PRIVATE CONTRACTOR,REVENUE
Walsall Council,http://opendatacommunities.org/id/metropolitan-district-council/walsall ,WC127-35,30.06.2021,ADULT SOCIAL CARE,5 CARE SERVICES LTD,08/06/2021,326.97,6541-Domiciliary Care,THIRD PARTY PAYMENTS,PRIVATE CONTRACTOR,REVENUE
Walsall Council,http://opendatacommunities.org/id/metropolitan-district-council/walsall ,WC127-36,30.06.2021,ADULT SOCIAL CARE,5 CARE SERVICES LTD,08/06/2021,254.38,6541-Domiciliary Care,THIRD PARTY PAYMENTS,PRIVATE CONTRACTOR,REVENUE
Walsall Council,http://opendatacommunities.org/id/metropolitan-district-council/walsall ,WC127-37,30.06.2021,ADULT SOCIAL CARE,5 CARE SERVICES LTD,08/06/2021,311.40,6541-Domiciliary Care,THIRD PARTY PAYMENTS,PRIVATE CONTRACTOR,REVENUE
Walsall Council,http://opendatacommunities.org/id/metropolitan-district-council/walsall ,WC127-38,30.06.2021,ADULT SOCIAL CARE,5 CARE SERVICES LTD,08/06/2021,560.52,6541-Domiciliary Care,THIRD PARTY PAYMENTS,PRIVATE CONTRACTOR,REVENUE
Walsall Council,http://opendatacommunities.org/id/metropolitan-district-council/walsall ,WC127-39,30.06.2021,ADULT SOCIAL CARE,5 CARE SERVICES LTD,08/06/2021,599.48,6541-Domiciliary Care,THIRD PARTY PAYMENTS,PRIVATE CONTRACTOR,REVENUE
Walsall Council,http://opendatacommunities.org/id/metropolitan-district-council/walsall ,WC127-40,30.06.2021,ADULT SOCIAL CARE,5 CARE SERVICES LTD,08/06/2021,705.84,6541-Domiciliary Care,THIRD PARTY PAYMENTS,PRIVATE CONTRACTOR,REVENUE
Walsall Council,http://opendatacommunities.org/id/metropolitan-district-council/walsall ,WC127-41,30.06.2021,ADULT SOCIAL CARE,5 CARE SERVICES LTD,08/06/2021,326.97,6541-Domiciliary Care,THIRD PARTY PAYMENTS,PRIVATE CONTRACTOR,REVENUE
Walsall Council,http://opendatacommunities.org/id/metropolitan-district-council/walsall ,WC127-42,30.06.2021,ADULT SOCIAL CARE,5 CARE SERVICES LTD,08/06/2021,"1,198.89",6541-Domiciliary Care,THIRD PARTY PAYMENTS,PRIVATE CONTRACTOR,REVENUE
Walsall Council,http://opendatacommunities.org/id/metropolitan-district-council/walsall ,WC127-43,30.06.2021,ADULT SOCIAL CARE,5 CARE SERVICES LTD,08/06/2021,599.55,6541-Domiciliary Care,THIRD PARTY PAYMENTS,PRIVATE CONTRACTOR,REVENUE
Walsall Council,http://opendatacommunities.org/id/metropolitan-district-council/walsall ,WC127-44,30.06.2021,ADULT SOCIAL CARE,5 CARE SERVICES LTD,08/06/2021,490.49,6541-Domiciliary Care,THIRD PARTY PAYMENTS,PRIVATE CONTRACTOR,REVENUE
Walsall Council,http://opendatacommunities.org/id/metropolitan-district-council/walsall ,WC127-45,30.06.2021,ADULT SOCIAL CARE,5 CARE SERVICES LTD,08/06/2021,303.72,6541-Domiciliary Care,THIRD PARTY PAYMENTS,PRIVATE CONTRACTOR,REVENUE
Walsall Council,http://opendatacommunities.org/id/metropolitan-district-council/walsall ,WC127-46,30.06.2021,ADULT SOCIAL CARE,5 CARE SERVICES LTD,08/06/2021,654.01,6541-Domiciliary Care,THIRD PARTY PAYMENTS,PRIVATE CONTRACTOR,REVENUE
Walsall Council,http://opendatacommunities.org/id/metropolitan-district-council/walsall ,WC127-47,30.06.2021,ADULT SOCIAL CARE,5 CARE SERVICES LTD,08/06/2021,490.49,6541-Domiciliary Care,THIRD PARTY PAYMENTS,PRIVATE CONTRACTOR,REVENUE
Walsall Council,http://opendatacommunities.org/id/metropolitan-district-council/walsall ,WC127-48,30.06.2021,ADULT SOCIAL CARE,5 CARE SERVICES LTD,08/06/2021,424.37,6541-Domiciliary Care,THIRD PARTY PAYMENTS,PRIVATE CONTRACTOR,REVENUE
Walsall Council,http://opendatacommunities.org/id/metropolitan-district-council/walsall ,WC127-49,30.06.2021,ADULT SOCIAL CARE,5 CARE SERVICES LTD,08/06/2021,467.13,6541-Domiciliary Care,THIRD PARTY PAYMENTS,PRIVATE CONTRACTOR,REVENUE
Walsall Council,http://opendatacommunities.org/id/metropolitan-district-council/walsall ,WC127-50,30.06.2021,ADULT SOCIAL CARE,5 CARE SERVICES LTD,08/06/2021,544.95,6541-Domiciliary Care,THIRD PARTY PAYMENTS,PRIVATE CONTRACTOR,REVENUE
Walsall Council,http://opendatacommunities.org/id/metropolitan-district-council/walsall ,WC127-51,30.06.2021,ADULT SOCIAL CARE,5 CARE SERVICES LTD,08/06/2021,490.49,6541-Domiciliary Care,THIRD PARTY PAYMENTS,PRIVATE CONTRACTOR,REVENUE
Walsall Council,http://opendatacommunities.org/id/metropolitan-district-council/walsall ,WC127-52,30.06.2021,ADULT SOCIAL CARE,5 CARE SERVICES LTD,08/06/2021,599.48,6541-Domiciliary Care,THIRD PARTY PAYMENTS,PRIVATE CONTRACTOR,REVENUE
Walsall Council,http://opendatacommunities.org/id/metropolitan-district-council/walsall ,WC127-53,30.06.2021,ADULT SOCIAL CARE,5 CARE SERVICES LTD,08/06/2021,327.04,6541-Domiciliary Care,THIRD PARTY PAYMENTS,PRIVATE CONTRACTOR,REVENUE
Walsall Council,http://opendatacommunities.org/id/metropolitan-district-council/walsall ,WC127-54,30.06.2021,ADULT SOCIAL CARE,5 CARE SERVICES LTD,08/06/2021,"1,105.54",6541-Domiciliary Care,THIRD PARTY PAYMENTS,PRIVATE CONTRACTOR,REVENUE
Walsall Council,http://opendatacommunities.org/id/metropolitan-district-council/walsall ,WC127-55,30.06.2021,ADULT SOCIAL CARE,5 CARE SERVICES LTD,08/06/2021,591.66,6541-Domiciliary Care,THIRD PARTY PAYMENTS,PRIVATE CONTRACTOR,REVENUE
Walsall Council,http://opendatacommunities.org/id/metropolitan-district-council/walsall ,WC127-56,30.06.2021,ADULT SOCIAL CARE,5 CARE SERVICES LTD,08/06/2021,257.00,6541-Domiciliary Care,THIRD PARTY PAYMENTS,PRIVATE CONTRACTOR,REVENUE
Walsall Council,http://opendatacommunities.org/id/metropolitan-district-council/walsall ,WC127-57,30.06.2021,ADULT SOCIAL CARE,5 CARE SERVICES LTD,21/06/2021,311.40,6541-Domiciliary Care,THIRD PARTY PAYMENTS,PRIVATE CONTRACTOR,REVENUE
Walsall Council,http://opendatacommunities.org/id/metropolitan-district-council/walsall ,WC127-58,30.06.2021,ADULT SOCIAL CARE,5 CARE SERVICES LTD,21/06/2021,435.96,6541-Domiciliary Care,THIRD PARTY PAYMENTS,PRIVATE CONTRACTOR,REVENUE
Walsall Council,http://opendatacommunities.org/id/metropolitan-district-council/walsall ,WC127-59,30.06.2021,ADULT SOCIAL CARE,5 CARE SERVICES LTD,21/06/2021,654.01,6541-Domiciliary Care,THIRD PARTY PAYMENTS,PRIVATE CONTRACTOR,REVENUE
Walsall Council,http://opendatacommunities.org/id/metropolitan-district-council/walsall ,WC127-60,30.06.2021,ADULT SOCIAL CARE,5 CARE SERVICES LTD,21/06/2021,326.97,6541-Domiciliary Care,THIRD PARTY PAYMENTS,PRIVATE CONTRACTOR,REVENUE
Walsall Council,http://opendatacommunities.org/id/metropolitan-district-council/walsall ,WC127-61,30.06.2021,ADULT SOCIAL CARE,5 CARE SERVICES LTD,21/06/2021,544.95,6541-Domiciliary Care,THIRD PARTY PAYMENTS,PRIVATE CONTRACTOR,REVENUE
Walsall Council,http://opendatacommunities.org/id/metropolitan-district-council/walsall ,WC127-62,30.06.2021,ADULT SOCIAL CARE,5 CARE SERVICES LTD,21/06/2021,490.49,6541-Domiciliary Care,THIRD PARTY PAYMENTS,PRIVATE CONTRACTOR,REVENUE
Walsall Council,http://opendatacommunities.org/id/metropolitan-district-council/walsall ,WC127-63,30.06.2021,ADULT SOCIAL CARE,5 CARE SERVICES LTD,21/06/2021,373.68,6541-Domiciliary Care,THIRD PARTY PAYMENTS,PRIVATE CONTRACTOR,REVENUE
Walsall Council,http://opendatacommunities.org/id/metropolitan-district-council/walsall ,WC127-64,30.06.2021,ADULT SOCIAL CARE,5 CARE SERVICES LTD,21/06/2021,"1,198.89",6541-Domiciliary Care,THIRD PARTY PAYMENTS,PRIVATE CONTRACTOR,REVENUE
Walsall Council,http://opendatacommunities.org/id/metropolitan-district-council/walsall ,WC127-65,30.06.2021,ADULT SOCIAL CARE,5 CARE SERVICES LTD,21/06/2021,311.40,6541-Domiciliary Care,THIRD PARTY PAYMENTS,PRIVATE CONTRACTOR,REVENUE
Walsall Council,http://opendatacommunities.org/id/metropolitan-district-council/walsall ,WC127-66,30.06.2021,ADULT SOCIAL CARE,5 CARE SERVICES LTD,21/06/2021,599.48,6541-Domiciliary Care,THIRD PARTY PAYMENTS,PRIVATE CONTRACTOR,REVENUE
Walsall Council,http://opendatacommunities.org/id/metropolitan-district-council/walsall ,WC127-67,30.06.2021,ADULT SOCIAL CARE,5 CARE SERVICES LTD,21/06/2021,705.84,6541-Domiciliary Care,THIRD PARTY PAYMENTS,PRIVATE CONTRACTOR,REVENUE
Walsall Council,http://opendatacommunities.org/id/metropolitan-district-council/walsall ,WC127-68,30.06.2021,ADULT SOCIAL CARE,5 CARE SERVICES LTD,21/06/2021,654.01,6541-Domiciliary Care,THIRD PARTY PAYMENTS,PRIVATE CONTRACTOR,REVENUE
Walsall Council,http://opendatacommunities.org/id/metropolitan-district-council/walsall ,WC127-69,30.06.2021,ADULT SOCIAL CARE,5 CARE SERVICES LTD,21/06/2021,591.66,6541-Domiciliary Care,THIRD PARTY PAYMENTS,PRIVATE CONTRACTOR,REVENUE
Walsall Council,http://opendatacommunities.org/id/metropolitan-district-council/walsall ,WC127-70,30.06.2021,ADULT SOCIAL CARE,5 CARE SERVICES LTD,21/06/2021,599.55,6541-Domiciliary Care,THIRD PARTY PAYMENTS,PRIVATE CONTRACTOR,REVENUE
Walsall Council,http://opendatacommunities.org/id/metropolitan-district-council/walsall ,WC127-71,30.06.2021,ADULT SOCIAL CARE,5 CARE SERVICES LTD,21/06/2021,490.49,6541-Domiciliary Care,THIRD PARTY PAYMENTS,PRIVATE CONTRACTOR,REVENUE
Walsall Council,http://opendatacommunities.org/id/metropolitan-district-council/walsall ,WC127-72,30.06.2021,ADULT SOCIAL CARE,5 CARE SERVICES LTD,21/06/2021,599.48,6541-Domiciliary Care,THIRD PARTY PAYMENTS,PRIVATE CONTRACTOR,REVENUE
Walsall Council,http://opendatacommunities.org/id/metropolitan-district-council/walsall ,WC127-73,30.06.2021,ADULT SOCIAL CARE,5 CARE SERVICES LTD,21/06/2021,257.00,6541-Domiciliary Care,THIRD PARTY PAYMENTS,PRIVATE CONTRACTOR,REVENUE
Walsall Council,http://opendatacommunities.org/id/metropolitan-district-council/walsall ,WC127-74,30.06.2021,ADULT SOCIAL CARE,5 CARE SERVICES LTD,21/06/2021,326.97,6541-Domiciliary Care,THIRD PARTY PAYMENTS,PRIVATE CONTRACTOR,REVENUE
Walsall Council,http://opendatacommunities.org/id/metropolitan-district-council/walsall ,WC127-75,30.06.2021,ADULT SOCIAL CARE,5 CARE SERVICES LTD,21/06/2021,424.37,6541-Domiciliary Care,THIRD PARTY PAYMENTS,PRIVATE CONTRACTOR,REVENUE
Walsall Council,http://opendatacommunities.org/id/metropolitan-district-council/walsall ,WC127-76,30.06.2021,ADULT SOCIAL CARE,5 CARE SERVICES LTD,21/06/2021,490.49,6541-Domiciliary Care,THIRD PARTY PAYMENTS,PRIVATE CONTRACTOR,REVENUE
Walsall Council,http://opendatacommunities.org/id/metropolitan-district-council/walsall ,WC127-77,30.06.2021,ADULT SOCIAL CARE,5 CARE SERVICES LTD,21/06/2021,303.72,6541-Domiciliary Care,THIRD PARTY PAYMENTS,PRIVATE CONTRACTOR,REVENUE
Walsall Council,http://opendatacommunities.org/id/metropolitan-district-council/walsall ,WC127-78,30.06.2021,ADULT SOCIAL CARE,5 CARE SERVICES LTD,21/06/2021,327.04,6541-Domiciliary Care,THIRD PARTY PAYMENTS,PRIVATE CONTRACTOR,REVENUE
Walsall Council,http://opendatacommunities.org/id/metropolitan-district-council/walsall ,WC127-79,30.06.2021,ADULT SOCIAL CARE,5 CARE SERVICES LTD,21/06/2021,"1,105.54",6541-Domiciliary Care,THIRD PARTY PAYMENTS,PRIVATE CONTRACTOR,REVENUE
Walsall Council,http://opendatacommunities.org/id/metropolitan-district-council/walsall ,WC127-80,30.06.2021,ADULT SOCIAL CARE,5 CARE SERVICES LTD,21/06/2021,490.49,6541-Domiciliary Care,THIRD PARTY PAYMENTS,PRIVATE CONTRACTOR,REVENUE
Walsall Council,http://opendatacommunities.org/id/metropolitan-district-council/walsall ,WC127-81,30.06.2021,ADULT SOCIAL CARE,5 CARE SERVICES LTD,21/06/2021,544.95,6541-Domiciliary Care,THIRD PARTY PAYMENTS,PRIVATE CONTRACTOR,REVENUE
Walsall Council,http://opendatacommunities.org/id/metropolitan-district-council/walsall ,WC127-82,30.06.2021,ADULT SOCIAL CARE,5 CARE SERVICES LTD,21/06/2021,490.49,6541-Domiciliary Care,THIRD PARTY PAYMENTS,PRIVATE CONTRACTOR,REVENUE
Walsall Council,http://opendatacommunities.org/id/metropolitan-district-council/walsall ,WC127-83,30.06.2021,ADULT SOCIAL CARE,5 CARE SERVICES LTD,21/06/2021,591.66,6541-Domiciliary Care,THIRD PARTY PAYMENTS,PRIVATE CONTRACTOR,REVENUE
Walsall Council,http://opendatacommunities.org/id/metropolitan-district-council/walsall ,WC127-84,30.06.2021,ADULT SOCIAL CARE,5 CARE SERVICES LTD,21/06/2021,257.00,6541-Domiciliary Care,THIRD PARTY PAYMENTS,PRIVATE CONTRACTOR,REVENUE
Walsall Council,http://opendatacommunities.org/id/metropolitan-district-council/walsall ,WC127-85,30.06.2021,ADULT SOCIAL CARE,5 CARE SERVICES LTD,21/06/2021,"1,198.89",6541-Domiciliary Care,THIRD PARTY PAYMENTS,PRIVATE CONTRACTOR,REVENUE
Walsall Council,http://opendatacommunities.org/id/metropolitan-district-council/walsall ,WC127-86,30.06.2021,ADULT SOCIAL CARE,5 CARE SERVICES LTD,21/06/2021,560.52,6541-Domiciliary Care,THIRD PARTY PAYMENTS,PRIVATE CONTRACTOR,REVENUE
Walsall Council,http://opendatacommunities.org/id/metropolitan-district-council/walsall ,WC127-87,30.06.2021,ADULT SOCIAL CARE,5 CARE SERVICES LTD,21/06/2021,424.37,6541-Domiciliary Care,THIRD PARTY PAYMENTS,PRIVATE CONTRACTOR,REVENUE
Walsall Council,http://opendatacommunities.org/id/metropolitan-district-council/walsall ,WC127-88,30.06.2021,ADULT SOCIAL CARE,5 CARE SERVICES LTD,21/06/2021,281.61,6541-Domiciliary Care,THIRD PARTY PAYMENTS,PRIVATE CONTRACTOR,REVENUE
Walsall Council,http://opendatacommunities.org/id/metropolitan-district-council/walsall ,WC127-89,30.06.2021,ADULT SOCIAL CARE,5 CARE SERVICES LTD,21/06/2021,599.55,6541-Domiciliary Care,THIRD PARTY PAYMENTS,PRIVATE CONTRACTOR,REVENUE
Walsall Council,http://opendatacommunities.org/id/metropolitan-district-council/walsall ,WC127-90,30.06.2021,ADULT SOCIAL CARE,5 CARE SERVICES LTD,21/06/2021,490.49,6541-Domiciliary Care,THIRD PARTY PAYMENTS,PRIVATE CONTRACTOR,REVENUE
Walsall Council,http://opendatacommunities.org/id/metropolitan-district-council/walsall ,WC127-91,30.06.2021,ADULT SOCIAL CARE,5 CARE SERVICES LTD,21/06/2021,428.20,6541-Domiciliary Care,THIRD PARTY PAYMENTS,PRIVATE CONTRACTOR,REVENUE
Walsall Council,http://opendatacommunities.org/id/metropolitan-district-council/walsall ,WC127-92,30.06.2021,ADULT SOCIAL CARE,5 CARE SERVICES LTD,21/06/2021,654.01,6541-Domiciliary Care,THIRD PARTY PAYMENTS,PRIVATE CONTRACTOR,REVENUE
Walsall Council,http://opendatacommunities.org/id/metropolitan-district-council/walsall ,WC127-93,30.06.2021,ADULT SOCIAL CARE,5 CARE SERVICES LTD,21/06/2021,303.72,6541-Domiciliary Care,THIRD PARTY PAYMENTS,PRIVATE CONTRACTOR,REVENUE
Walsall Council,http://opendatacommunities.org/id/metropolitan-district-council/walsall ,WC127-94,30.06.2021,ADULT SOCIAL CARE,5 CARE SERVICES LTD,21/06/2021,311.40,6541-Domiciliary Care,THIRD PARTY PAYMENTS,PRIVATE CONTRACTOR,REVENUE
Walsall Council,http://opendatacommunities.org/id/metropolitan-district-council/walsall ,WC127-95,30.06.2021,ADULT SOCIAL CARE,5 CARE SERVICES LTD,21/06/2021,311.40,6541-Domiciliary Care,THIRD PARTY PAYMENTS,PRIVATE CONTRACTOR,REVENUE
Walsall Council,http://opendatacommunities.org/id/metropolitan-district-council/walsall ,WC127-96,30.06.2021,ADULT SOCIAL CARE,5 CARE SERVICES LTD,21/06/2021,435.96,6541-Domiciliary Care,THIRD PARTY PAYMENTS,PRIVATE CONTRACTOR,REVENUE
Walsall Council,http://opendatacommunities.org/id/metropolitan-district-council/walsall ,WC127-97,30.06.2021,ADULT SOCIAL CARE,5 CARE SERVICES LTD,21/06/2021,654.01,6541-Domiciliary Care,THIRD PARTY PAYMENTS,PRIVATE CONTRACTOR,REVENUE
Walsall Council,http://opendatacommunities.org/id/metropolitan-district-council/walsall ,WC127-98,30.06.2021,ADULT SOCIAL CARE,5 CARE SERVICES LTD,21/06/2021,326.97,6541-Domiciliary Care,THIRD PARTY PAYMENTS,PRIVATE CONTRACTOR,REVENUE
Walsall Council,http://opendatacommunities.org/id/metropolitan-district-council/walsall ,WC127-99,30.06.2021,ADULT SOCIAL CARE,5 CARE SERVICES LTD,21/06/2021,327.04,6541-Domiciliary Care,THIRD PARTY PAYMENTS,PRIVATE CONTRACTOR,REVENUE
Walsall Council,http://opendatacommunities.org/id/metropolitan-district-council/walsall ,WC127-100,30.06.2021,ADULT SOCIAL CARE,5 CARE SERVICES LTD,21/06/2021,"1,105.54",6541-Domiciliary Care,THIRD PARTY PAYMENTS,PRIVATE CONTRACTOR,REVENUE
Walsall Council,http://opendatacommunities.org/id/metropolitan-district-council/walsall ,WC127-101,30.06.2021,ADULT SOCIAL CARE,5 CARE SERVICES LTD,21/06/2021,599.48,6541-Domiciliary Care,THIRD PARTY PAYMENTS,PRIVATE CONTRACTOR,REVENUE
Walsall Council,http://opendatacommunities.org/id/metropolitan-district-council/walsall ,WC127-102,30.06.2021,ADULT SOCIAL CARE,5 CARE SERVICES LTD,21/06/2021,721.41,6541-Domiciliary Care,THIRD PARTY PAYMENTS,PRIVATE CONTRACTOR,REVENUE
Walsall Council,http://opendatacommunities.org/id/metropolitan-district-council/walsall ,WC127-103,30.06.2021,ADULT SOCIAL CARE,5 CARE SERVICES LTD,21/06/2021,490.49,6541-Domiciliary Care,THIRD PARTY PAYMENTS,PRIVATE CONTRACTOR,REVENUE
Walsall Council,http://opendatacommunities.org/id/metropolitan-district-council/walsall ,WC127-104,30.06.2021,ADULT SOCIAL CARE,5 CARE SERVICES LTD,21/06/2021,326.97,6541-Domiciliary Care,THIRD PARTY PAYMENTS,PRIVATE CONTRACTOR,REVENUE
Walsall Council,http://opendatacommunities.org/id/metropolitan-district-council/walsall ,WC127-105,30.06.2021,ADULT SOCIAL CARE,5 CARE SERVICES LTD,21/06/2021,490.49,6541-Domiciliary Care,THIRD PARTY PAYMENTS,PRIVATE CONTRACTOR,REVENUE
Walsall Council,http://opendatacommunities.org/id/metropolitan-district-council/walsall ,WC127-106,30.06.2021,ADULT SOCIAL CARE,5 CARE SERVICES LTD,02/06/2021,859.23,6541-Domiciliary Care,THIRD PARTY PAYMENTS,PRIVATE CONTRACTOR,REVENUE
Walsall Council,http://opendatacommunities.org/id/metropolitan-district-council/walsall ,WC127-107,30.06.2021,ADULT SOCIAL CARE,5 CARE SERVICES LTD,02/06/2021,"4,959.05",6541-Domiciliary Care,THIRD PARTY PAYMENTS,PRIVATE CONTRACTOR,REVENUE
Walsall Council,http://opendatacommunities.org/id/metropolitan-district-council/walsall ,WC127-108,30.06.2021,ADULT SOCIAL CARE,5 CARE SERVICES LTD,15/06/2021,373.68,6541-Domiciliary Care,THIRD PARTY PAYMENTS,PRIVATE CONTRACTOR,REVENUE
Walsall Council,http://opendatacommunities.org/id/metropolitan-district-council/walsall ,WC127-109,30.06.2021,ADULT SOCIAL CARE,5 CARE SERVICES LTD,22/06/2021,778.50,6554-Professional Services-Priv Contractor & Other Agencies,THIRD PARTY PAYMENTS,PRIVATE CONTRACTOR,REVENUE
Walsall Council,http://opendatacommunities.org/id/metropolitan-district-council/walsall ,WC127-110,30.06.2021,ADULT SOCIAL CARE,5 CARE SERVICES LTD,22/06/2021,"1,961.82",6554-Professional Services-Priv Contractor & Other Agencies,THIRD PARTY PAYMENTS,PRIVATE CONTRACTOR,REVENUE
Walsall Council,http://opendatacommunities.org/id/metropolitan-district-council/walsall ,WC127-111,30.06.2021,ADULT SOCIAL CARE,5 CARE SERVICES LTD,22/06/2021,381.64,6554-Professional Services-Priv Contractor & Other Agencies,THIRD PARTY PAYMENTS,PRIVATE CONTRACTOR,REVENUE
Walsall Council,http://opendatacommunities.org/id/metropolitan-district-council/walsall ,WC127-112,30.06.2021,ADULT SOCIAL CARE,5 CARE SERVICES LTD,22/06/2021,490.70,6554-Professional Services-Priv Contractor & Other Agencies,THIRD PARTY PAYMENTS,PRIVATE CONTRACTOR,REVENUE
Walsall Council,http://opendatacommunities.org/id/metropolitan-district-council/walsall ,WC127-113,30.06.2021,ADULT SOCIAL CARE,5 CARE SERVICES LTD,22/06/2021,"3,192.34",6554-Professional Services-Priv Contractor & Other Agencies,THIRD PARTY PAYMENTS,PRIVATE CONTRACTOR,REVENUE
Walsall Council,http://opendatacommunities.org/id/metropolitan-district-council/walsall ,WC127-114,30.06.2021,ADULT SOCIAL CARE,5 CARE SERVICES LTD,23/06/2021,"1,354.59",6554-Professional Services-Priv Contractor & Other Agencies,THIRD PARTY PAYMENTS,PRIVATE CONTRACTOR,REVENUE
Walsall Council,http://opendatacommunities.org/id/metropolitan-district-council/walsall ,WC127-115,30.06.2021,ADULT SOCIAL CARE,5 CARE SERVICES LTD,29/06/2021,358.27,6554-Professional Services-Priv Contractor & Other Agencies,THIRD PARTY PAYMENTS,PRIVATE CONTRACTOR,REVENUE
Walsall Council,http://opendatacommunities.org/id/metropolitan-district-council/walsall ,WC127-116,30.06.2021,ADULT SOCIAL CARE,5 CARE SERVICES LTD,22/06/2021,482.91,6554-Professional Services-Priv Contractor & Other Agencies,THIRD PARTY PAYMENTS,PRIVATE CONTRACTOR,REVENUE
Walsall Council,http://opendatacommunities.org/id/metropolitan-district-council/walsall ,WC127-117,30.06.2021,ADULT SOCIAL CARE,5 CARE SERVICES LTD,22/06/2021,560.80,6554-Professional Services-Priv Contractor & Other Agencies,THIRD PARTY PAYMENTS,PRIVATE CONTRACTOR,REVENUE
Walsall Council,http://opendatacommunities.org/id/metropolitan-district-council/walsall ,WC127-118,30.06.2021,ADULT SOCIAL CARE,5 CARE SERVICES LTD,22/06/2021,"1,202.84",6554-Professional Services-Priv Contractor & Other Agencies,THIRD PARTY PAYMENTS,PRIVATE CONTRACTOR,REVENUE
Walsall Council,http://opendatacommunities.org/id/metropolitan-district-council/walsall ,WC127-119,30.06.2021,ADULT SOCIAL CARE,5 CARE SERVICES LTD,02/06/2021,"9,896.38",6550-ASC Infection Control Fund Round 3 (70%),TRANSFER PAYMENTS,COVID TRANSFER PAYMENT,REVENUE
Walsall Council,http://opendatacommunities.org/id/metropolitan-district-council/walsall ,WC127-120,30.06.2021,ADULT SOCIAL CARE,5 CARE SERVICES LTD,01/06/2021,"1,510.24",6550-Professional Fees & Services,SUPPLIES & SERVICES,SERVICES,REVENUE
Walsall Council,http://opendatacommunities.org/id/metropolitan-district-council/walsall ,WC127-121,30.06.2021,CHILDRENS,A D T FIRE AND SECURITY PLC,16/06/2021,905.97,6223-Operational Maintenance,PREMISES,REPAIRS & MAINTENANCE,REVENUE
Walsall Council,http://opendatacommunities.org/id/metropolitan-district-council/walsall ,WC127-122,30.06.2021,ECONOMY & ENVIRONMENT,AAINA COMMUNITY HUB,15/06/2021,500.00,6313-Grants to Other Orgs,SUPPLIES & SERVICES,GRANTS (EXP) & SUBSCRIPTIONS,REVENUE
Walsall Council,http://opendatacommunities.org/id/metropolitan-district-council/walsall ,WC127-123,30.06.2021,ECONOMY & ENVIRONMENT,AAINA COMMUNITY HUB,28/06/2021,965.25,6313-Grants to Other Orgs,SUPPLIES & SERVICES,GRANTS (EXP) & SUBSCRIPTIONS,REVENUE
Walsall Council,http://opendatacommunities.org/id/metropolitan-district-council/walsall ,WC127-124,30.06.2021,ADULT SOCIAL CARE,ABBEY COURT NURSING & RESIDEN,08/06/2021,"2,571.08",6541-Residential EMI,THIRD PARTY PAYMENTS,PRIVATE CONTRACTOR,REVENUE
Walsall Council,http://opendatacommunities.org/id/metropolitan-district-council/walsall ,WC127-125,30.06.2021,ADULT SOCIAL CARE,ABBEY COURT NURSING & RESIDEN,08/06/2021,"2,064.44",6541-Residential,THIRD PARTY PAYMENTS,PRIVATE CONTRACTOR,REVENUE
Walsall Council,http://opendatacommunities.org/id/metropolitan-district-council/walsall ,WC127-126,30.06.2021,ADULT SOCIAL CARE,ABBEY COURT NURSING & RESIDEN,08/06/2021,"2,331.08",6541-Residential EMI,THIRD PARTY PAYMENTS,PRIVATE CONTRACTOR,REVENUE
Walsall Council,http://opendatacommunities.org/id/metropolitan-district-council/walsall ,WC127-127,30.06.2021,ADULT SOCIAL CARE,ABBEY HEALTHCARE HOMES LTD,08/06/2021,"3,133.76",6541-Residential,THIRD PARTY PAYMENTS,PRIVATE CONTRACTOR,REVENUE
Walsall Council,http://opendatacommunities.org/id/metropolitan-district-council/walsall ,WC127-128,30.06.2021,ADULT SOCIAL CARE,ABBEY HEALTHCARE HOMES LTD,08/06/2021,"3,551.56",6541-Residential,THIRD PARTY PAYMENTS,PRIVATE CONTRACTOR,REVENUE
Walsall Council,http://opendatacommunities.org/id/metropolitan-district-council/walsall ,WC127-129,30.06.2021,ADULT SOCIAL CARE,ABBEY HEALTHCARE HOMES LTD,08/06/2021,"2,396.36",6541-Residential,THIRD PARTY PAYMENTS,PRIVATE CONTRACTOR,REVENUE
Walsall Council,http://opendatacommunities.org/id/metropolitan-district-council/walsall ,WC127-130,30.06.2021,ADULT SOCIAL CARE,ABBEY HEALTHCARE HOMES LTD,08/06/2021,"3,133.76",6541-Residential,THIRD PARTY PAYMENTS,PRIVATE CONTRACTOR,REVENUE
Walsall Council,http://opendatacommunities.org/id/metropolitan-district-council/walsall ,WC127-131,30.06.2021,CHILDRENS,ABC DAY NURSERY (WILLENHALL) LIMITED,23/06/2021,"5,724.96",1184-Other-Grants to Other Orgs,SUPPLIES & SERVICES,GRANTS (EXP) & SUBSCRIPTIONS,REVENUE
Walsall Council,http://opendatacommunities.org/id/metropolitan-district-council/walsall ,WC127-132,30.06.2021,CHILDRENS,ABC DAY NURSERY (WILLENHALL) LIMITED,21/06/2021,"6,852.21",1184-Other-Grants to Other Orgs,SUPPLIES & SERVICES,GRANTS (EXP) & SUBSCRIPTIONS,REVENUE
Walsall Council,http://opendatacommunities.org/id/metropolitan-district-council/walsall ,WC127-133,30.06.2021,ADULT SOCIAL CARE,REDACTED,09/06/2021,"2,665.60",6541-Direct Payment,THIRD PARTY PAYMENTS,PRIVATE CONTRACTOR,REVENUE
Walsall Council,http://opendatacommunities.org/id/metropolitan-district-council/walsall ,WC127-134,30.06.2021,CHILDRENS,ABLEWELL CARS,21/06/2021,"1,248.00",6241-Hire of Vehicle with Driver,TRANSPORT,DIRECT TRANSPORT COSTS,REVENUE
Walsall Council,http://opendatacommunities.org/id/metropolitan-district-council/walsall ,WC127-135,30.06.2021,CHILDRENS,ABLEWELL CARS,21/06/2021,738.00,6241-Hire of Vehicle with Driver,TRANSPORT,DIRECT TRANSPORT COSTS,REVENUE
Walsall Council,http://opendatacommunities.org/id/metropolitan-district-council/walsall ,WC127-136,30.06.2021,CHILDRENS,ABLEWELL CARS,21/06/2021,"1,182.60",6241-Hire of Vehicle with Driver,TRANSPORT,DIRECT TRANSPORT COSTS,REVENUE
Walsall Council,http://opendatacommunities.org/id/metropolitan-district-council/walsall ,WC127-137,30.06.2021,CHILDRENS,ABLEWELL CARS,21/06/2021,"1,411.80",6241-Hire of Vehicle with Driver,TRANSPORT,DIRECT TRANSPORT COSTS,REVENUE
Walsall Council,http://opendatacommunities.org/id/metropolitan-district-council/walsall ,WC127-138,30.06.2021,CHILDRENS,ABLEWELL CARS,21/06/2021,792.00,6241-Hire of Vehicle with Driver,TRANSPORT,DIRECT TRANSPORT COSTS,REVENUE
Walsall Council,http://opendatacommunities.org/id/metropolitan-district-council/walsall ,WC127-139,30.06.2021,CHILDRENS,ABLEWELL CARS,21/06/2021,"1,752.00",6241-Hire of Vehicle with Driver,TRANSPORT,DIRECT TRANSPORT COSTS,REVENUE
Walsall Council,http://opendatacommunities.org/id/metropolitan-district-council/walsall ,WC127-140,30.06.2021,CHILDRENS,ABLEWELL CARS,21/06/2021,992.70,6241-Hire of Vehicle with Driver,TRANSPORT,DIRECT TRANSPORT COSTS,REVENUE
Walsall Council,http://opendatacommunities.org/id/metropolitan-district-council/walsall ,WC127-141,30.06.2021,CHILDRENS,ABLEWELL CARS,21/06/2021,858.60,6241-Hire of Vehicle with Driver,TRANSPORT,DIRECT TRANSPORT COSTS,REVENUE
Walsall Council,http://opendatacommunities.org/id/metropolitan-district-council/walsall ,WC127-142,30.06.2021,CHILDRENS,ABS TAXIS (ALDRIDGE),21/06/2021,"1,579.35",6241-Hire of Vehicle with Driver,TRANSPORT,DIRECT TRANSPORT COSTS,REVENUE
Walsall Council,http://opendatacommunities.org/id/metropolitan-district-council/walsall ,WC127-143,30.06.2021,CHILDRENS,ABS TAXIS (ALDRIDGE),21/06/2021,"1,107.30",6241-Hire of Vehicle with Driver,TRANSPORT,DIRECT TRANSPORT COSTS,REVENUE
Walsall Council,http://opendatacommunities.org/id/metropolitan-district-council/walsall ,WC127-144,30.06.2021,CHILDRENS,ABS TAXIS (ALDRIDGE),21/06/2021,900.00,6241-Hire of Vehicle with Driver,TRANSPORT,DIRECT TRANSPORT COSTS,REVENUE
Walsall Council,http://opendatacommunities.org/id/metropolitan-district-council/walsall ,WC127-145,30.06.2021,CHILDRENS,ABS TAXIS (ALDRIDGE),21/06/2021,"1,559.25",6241-Hire of Vehicle with Driver,TRANSPORT,DIRECT TRANSPORT COSTS,REVENUE
Walsall Council,http://opendatacommunities.org/id/metropolitan-district-council/walsall ,WC127-146,30.06.2021,CHILDRENS,ABU BAKR NURSERY,23/06/2021,"5,548.50",1184-Other-Grants to Other Orgs,SUPPLIES & SERVICES,GRANTS (EXP) & SUBSCRIPTIONS,REVENUE
Walsall Council,http://opendatacommunities.org/id/metropolitan-district-council/walsall ,WC127-147,30.06.2021,CHILDRENS,ABU BAKR NURSERY,21/06/2021,"17,053.59",1184-Other-Grants to Other Orgs,SUPPLIES & SERVICES,GRANTS (EXP) & SUBSCRIPTIONS,REVENUE
Walsall Council,http://opendatacommunities.org/id/metropolitan-district-council/walsall ,WC127-148,30.06.2021,CHILDRENS,ABU BAKR NURSERY,15/06/2021,"1,808.82",1220-Top Up Funding -Grants to Schools,SUPPLIES & SERVICES,GRANTS (EXP) & SUBSCRIPTIONS,REVENUE
Walsall Council,http://opendatacommunities.org/id/metropolitan-district-council/walsall ,WC127-149,30.06.2021,ECONOMY & ENVIRONMENT,AC OPTICS LTD,17/06/2021,973.53,6313-Grants to Other Orgs,SUPPLIES & SERVICES,GRANTS (EXP) & SUBSCRIPTIONS,REVENUE
Walsall Council,http://opendatacommunities.org/id/metropolitan-district-council/walsall ,WC127-150,30.06.2021,ECONOMY & ENVIRONMENT,AC OPTICS LTD,28/06/2021,"1,016.62",6313-Grants to Other Orgs,SUPPLIES & SERVICES,GRANTS (EXP) & SUBSCRIPTIONS,REVENUE
Walsall Council,http://opendatacommunities.org/id/metropolitan-district-council/walsall ,WC127-151,30.06.2021,ECONOMY & ENVIRONMENT,AC OPTICS LTD,17/06/2021,864.67,6313-Grants to Other Orgs,SUPPLIES & SERVICES,GRANTS (EXP) & SUBSCRIPTIONS,REVENUE
Walsall Council,http://opendatacommunities.org/id/metropolitan-district-council/walsall ,WC127-152,30.06.2021,ECONOMY & ENVIRONMENT,AC OPTICS LTD,28/06/2021,"1,003.66",6313-Grants to Other Orgs,SUPPLIES & SERVICES,GRANTS (EXP) & SUBSCRIPTIONS,REVENUE
Walsall Council,http://opendatacommunities.org/id/metropolitan-district-council/walsall ,WC127-153,30.06.2021,ECONOMY & ENVIRONMENT,AC OPTICS LTD,28/06/2021,996.82,6313-Grants to Other Orgs,SUPPLIES & SERVICES,GRANTS (EXP) & SUBSCRIPTIONS,REVENUE
Walsall Council,http://opendatacommunities.org/id/metropolitan-district-council/walsall ,WC127-154,30.06.2021,ECONOMY & ENVIRONMENT,AC OPTICS LTD,28/06/2021,721.60,6313-Grants to Other Orgs,SUPPLIES & SERVICES,GRANTS (EXP) & SUBSCRIPTIONS,REVENUE
Walsall Council,http://opendatacommunities.org/id/metropolitan-district-council/walsall ,WC127-155,30.06.2021,ECONOMY & ENVIRONMENT,AC OPTICS LTD,28/06/2021,976.54,6313-Grants to Other Orgs,SUPPLIES & SERVICES,GRANTS (EXP) & SUBSCRIPTIONS,REVENUE
Walsall Council,http://opendatacommunities.org/id/metropolitan-district-council/walsall ,WC127-156,30.06.2021,ECONOMY & ENVIRONMENT,AC OPTICS LTD,28/06/2021,"1,017.10",6313-Grants to Other Orgs,SUPPLIES & SERVICES,GRANTS (EXP) & SUBSCRIPTIONS,REVENUE
Walsall Council,http://opendatacommunities.org/id/metropolitan-district-council/walsall ,WC127-157,30.06.2021,CHILDRENS,ACCALIA CARE SERVICES LTD,14/06/2021,"21,407.14",6223-External Residential Care-Oth Agency Provision,THIRD PARTY PAYMENTS,PRIVATE CONTRACTOR,REVENUE
Walsall Council,http://opendatacommunities.org/id/metropolitan-district-council/walsall ,WC127-158,30.06.2021,ECONOMY & ENVIRONMENT,ACCESS LOCK AND SECURITY,17/06/2021,"1,200.00",6440-Professional Fees & Services,SUPPLIES & SERVICES,SERVICES,REVENUE
Walsall Council,http://opendatacommunities.org/id/metropolitan-district-council/walsall ,WC127-159,30.06.2021,CHILDRENS,ACCOMPANIED CARE,07/06/2021,"3,761.67",6223-Accommodation and Related Costs-Assistance to S/S Clients,TRANSFER PAYMENTS,ADULT SOCIAL SERVICES CLIENT,REVENUE
Walsall Council,http://opendatacommunities.org/id/metropolitan-district-council/walsall ,WC127-160,30.06.2021,ADULT SOCIAL CARE,ACCOMPLISH GROUP LTD,08/06/2021,"7,881.48",6541-Residential,THIRD PARTY PAYMENTS,PRIVATE CONTRACTOR,REVENUE
Walsall Council,http://opendatacommunities.org/id/metropolitan-district-council/walsall ,WC127-161,30.06.2021,ADULT SOCIAL CARE,ACCORD - AGE MATTERS,09/06/2021,-593.07,6553-Direct Payments Support,TRANSFER PAYMENTS,ADULT SOCIAL SERVICES CLIENT,REVENUE
Walsall Council,http://opendatacommunities.org/id/metropolitan-district-council/walsall ,WC127-162,30.06.2021,ADULT SOCIAL CARE,ACCORD HOUSING ASSOCIATION LIMITED - HOBS MEADOW,08/06/2021,"4,706.24",6541-Residential,THIRD PARTY PAYMENTS,PRIVATE CONTRACTOR,REVENUE
Walsall Council,http://opendatacommunities.org/id/metropolitan-district-council/walsall ,WC127-163,30.06.2021,ADULT SOCIAL CARE,ACCORD HOUSING ASSOCIATION LIMITED - HOBS MEADOW,08/06/2021,"4,706.24",6541-Residential,THIRD PARTY PAYMENTS,PRIVATE CONTRACTOR,REVENUE
Walsall Council,http://opendatacommunities.org/id/metropolitan-district-council/walsall ,WC127-164,30.06.2021,ADULT SOCIAL CARE,ACCORD HOUSING ASSOCIATION LIMITED - HOBS MEADOW,08/06/2021,"4,706.24",6541-Residential,THIRD PARTY PAYMENTS,PRIVATE CONTRACTOR,REVENUE
Walsall Council,http://opendatacommunities.org/id/metropolitan-district-council/walsall ,WC127-165,30.06.2021,ADULT SOCIAL CARE,ACCORD HOUSING ASSOCIATION LIMITED - HOBS MEADOW,08/06/2021,"4,706.24",6541-Residential,THIRD PARTY PAYMENTS,PRIVATE CONTRACTOR,REVENUE
Walsall Council,http://opendatacommunities.org/id/metropolitan-district-council/walsall ,WC127-166,30.06.2021,ADULT SOCIAL CARE,ACCORD HOUSING ASSOCIATION LTD#135,08/06/2021,"6,568.44",6541-Residential,THIRD PARTY PAYMENTS,PRIVATE CONTRACTOR,REVENUE
Walsall Council,http://opendatacommunities.org/id/metropolitan-district-council/walsall ,WC127-167,30.06.2021,ADULT SOCIAL CARE,ACCORD HOUSING ASSOCIATION LTD#135,08/06/2021,"5,865.64",6541-Residential,THIRD PARTY PAYMENTS,PRIVATE CONTRACTOR,REVENUE
Walsall Council,http://opendatacommunities.org/id/metropolitan-district-council/walsall ,WC127-168,30.06.2021,ADULT SOCIAL CARE,ACCORD HOUSING ASSOCIATION LTD#135,08/06/2021,"6,568.44",6541-Residential,THIRD PARTY PAYMENTS,PRIVATE CONTRACTOR,REVENUE
Walsall Council,http://opendatacommunities.org/id/metropolitan-district-council/walsall ,WC127-169,30.06.2021,CHILDRENS,ACCORD HOUSING ASSOCIATION LTD#135,29/06/2021,405.56,6314-Rents,PREMISES,RENTS,REVENUE
Walsall Council,http://opendatacommunities.org/id/metropolitan-district-council/walsall ,WC127-170,30.06.2021,CHILDRENS,ACCORD HOUSING ASSOCIATION LTD#135,16/06/2021,351.52,6314-Rents,PREMISES,RENTS,REVENUE
Walsall Council,http://opendatacommunities.org/id/metropolitan-district-council/walsall ,WC127-171,30.06.2021,CHILDRENS,ACCORD HOUSING ASSOCIATION LTD#135,30/06/2021,345.89,6314-Rents,PREMISES,RENTS,REVENUE
Walsall Council,http://opendatacommunities.org/id/metropolitan-district-council/walsall ,WC127-172,30.06.2021,CHILDRENS,ACCORD HOUSING ASSOCIATION LTD#135,15/06/2021,547.27,6314-Rents,PREMISES,RENTS,REVENUE
Walsall Council,http://opendatacommunities.org/id/metropolitan-district-council/walsall ,WC127-173,30.06.2021,CHILDRENS,ACCORD HOUSING ASSOCIATION LTD#135,16/06/2021,501.18,6314-Rents,PREMISES,RENTS,REVENUE
Walsall Council,http://opendatacommunities.org/id/metropolitan-district-council/walsall ,WC127-174,30.06.2021,ADULT SOCIAL CARE,ACCORD HOUSING ASSOCIATION LTD#135,02/06/2021,"1,100.88",6550-ASC Infection Control Fund Round 3 (70%),TRANSFER PAYMENTS,COVID TRANSFER PAYMENT,REVENUE
Walsall Council,http://opendatacommunities.org/id/metropolitan-district-council/walsall ,WC127-175,30.06.2021,ADULT SOCIAL CARE,ACCORD HOUSING ASSOCIATION LTD#135,02/06/2021,"3,173.82",6550-ASC Infection Control Fund Round 3 (70%),TRANSFER PAYMENTS,COVID TRANSFER PAYMENT,REVENUE
Walsall Council,http://opendatacommunities.org/id/metropolitan-district-council/walsall ,WC127-176,30.06.2021,ADULT SOCIAL CARE,ACCORD HOUSING ASSOCIATION LTD#135,23/06/2021,"6,600.00",6550-ASC Rapid Testing Fund Round 2 (40% Grants),THIRD PARTY PAYMENTS,COVID THIRD PARTY PAYMENTS,REVENUE
Walsall Council,http://opendatacommunities.org/id/metropolitan-district-council/walsall ,WC127-177,30.06.2021,ADULT SOCIAL CARE,ACCORD HOUSING ASSOCIATION LTD#135,23/06/2021,"6,000.00",6550-ASC Rapid Testing Fund Round 2 (40% Grants),THIRD PARTY PAYMENTS,COVID THIRD PARTY PAYMENTS,REVENUE
Walsall Council,http://opendatacommunities.org/id/metropolitan-district-council/walsall ,WC127-178,30.06.2021,ADULT SOCIAL CARE,ACCORD HOUSING ASSOCIATION LTD#135,02/06/2021,861.68,6550-ASC Rapid Testing Fund Round 2 (60%),TRANSFER PAYMENTS,COVID TRANSFER PAYMENT,REVENUE
Walsall Council,http://opendatacommunities.org/id/metropolitan-district-council/walsall ,WC127-179,30.06.2021,ADULT SOCIAL CARE,ACCORD HOUSING ASSOCIATION LTD#135,23/06/2021,486.88,6550-ASC Rapid Testing Fund Round 2 (40% Grants),THIRD PARTY PAYMENTS,COVID THIRD PARTY PAYMENTS,REVENUE
Walsall Council,http://opendatacommunities.org/id/metropolitan-district-council/walsall ,WC127-180,30.06.2021,CHILDRENS,ACCORD HOUSING ASSOCIATION LTD#135,18/06/2021,"-28,502.83",6314-Professional Fees & Services,SUPPLIES & SERVICES,SERVICES,REVENUE
Walsall Council,http://opendatacommunities.org/id/metropolitan-district-council/walsall ,WC127-181,30.06.2021,ADULT SOCIAL CARE,ACCORD HOUSING ASSOCIATION LTD#135,10/06/2021,"2,298.20",6541-Domiciliary Care,THIRD PARTY PAYMENTS,PRIVATE CONTRACTOR,REVENUE
Walsall Council,http://opendatacommunities.org/id/metropolitan-district-council/walsall ,WC127-182,30.06.2021,CHILDRENS,ACCORD HOUSING ASSOCIATION LTD#135,02/06/2021,"28,502.83",6314-Professional Fees & Services,SUPPLIES & SERVICES,SERVICES,REVENUE
Walsall Council,http://opendatacommunities.org/id/metropolitan-district-council/walsall ,WC127-183,30.06.2021,ADULT SOCIAL CARE,ACCORD HOUSING ASSOCIATION LTD#135,02/06/2021,"1,177.20",6541-Domiciliary Care,THIRD PARTY PAYMENTS,PRIVATE CONTRACTOR,REVENUE
Walsall Council,http://opendatacommunities.org/id/metropolitan-district-council/walsall ,WC127-184,30.06.2021,ADULT SOCIAL CARE,ACCORD HOUSING ASSOCIATION LTD#135,02/06/2021,452.32,6541-Domiciliary Care,THIRD PARTY PAYMENTS,PRIVATE CONTRACTOR,REVENUE
Walsall Council,http://opendatacommunities.org/id/metropolitan-district-council/walsall ,WC127-185,30.06.2021,ADULT SOCIAL CARE,ACCORD HOUSING ASSOCIATION LTD#135,02/06/2021,503.72,6541-Domiciliary Care,THIRD PARTY PAYMENTS,PRIVATE CONTRACTOR,REVENUE
Walsall Council,http://opendatacommunities.org/id/metropolitan-district-council/walsall ,WC127-186,30.06.2021,ADULT SOCIAL CARE,ACCORD HOUSING ASSOCIATION LTD#135,02/06/2021,"1,439.20",6541-Domiciliary Care,THIRD PARTY PAYMENTS,PRIVATE CONTRACTOR,REVENUE
Walsall Council,http://opendatacommunities.org/id/metropolitan-district-council/walsall ,WC127-187,30.06.2021,ADULT SOCIAL CARE,ACCORD HOUSING ASSOCIATION LTD#135,02/06/2021,611.80,6541-Domiciliary Care,THIRD PARTY PAYMENTS,PRIVATE CONTRACTOR,REVENUE
Walsall Council,http://opendatacommunities.org/id/metropolitan-district-council/walsall ,WC127-188,30.06.2021,ADULT SOCIAL CARE,ACCORD HOUSING ASSOCIATION LTD#135,02/06/2021,"1,943.20",6541-Domiciliary Care,THIRD PARTY PAYMENTS,PRIVATE CONTRACTOR,REVENUE
Walsall Council,http://opendatacommunities.org/id/metropolitan-district-council/walsall ,WC127-189,30.06.2021,ADULT SOCIAL CARE,ACCORD HOUSING ASSOCIATION LTD#135,02/06/2021,416.34,6541-Domiciliary Care,THIRD PARTY PAYMENTS,PRIVATE CONTRACTOR,REVENUE
Walsall Council,http://opendatacommunities.org/id/metropolitan-district-council/walsall ,WC127-190,30.06.2021,ADULT SOCIAL CARE,ACCORD HOUSING ASSOCIATION LTD#135,02/06/2021,"1,048.56",6541-Domiciliary Care,THIRD PARTY PAYMENTS,PRIVATE CONTRACTOR,REVENUE
Walsall Council,http://opendatacommunities.org/id/metropolitan-district-council/walsall ,WC127-191,30.06.2021,ADULT SOCIAL CARE,ACCORD HOUSING ASSOCIATION LTD#135,02/06/2021,719.60,6541-Domiciliary Care,THIRD PARTY PAYMENTS,PRIVATE CONTRACTOR,REVENUE
Walsall Council,http://opendatacommunities.org/id/metropolitan-district-council/walsall ,WC127-192,30.06.2021,ADULT SOCIAL CARE,ACCORD HOUSING ASSOCIATION LTD#135,02/06/2021,421.48,6541-Domiciliary Care,THIRD PARTY PAYMENTS,PRIVATE CONTRACTOR,REVENUE
Walsall Council,http://opendatacommunities.org/id/metropolitan-district-council/walsall ,WC127-193,30.06.2021,ADULT SOCIAL CARE,ACCORD HOUSING ASSOCIATION LTD#135,02/06/2021,"1,295.28",6541-Domiciliary Care,THIRD PARTY PAYMENTS,PRIVATE CONTRACTOR,REVENUE
Walsall Council,http://opendatacommunities.org/id/metropolitan-district-council/walsall ,WC127-194,30.06.2021,ADULT SOCIAL CARE,ACCORD HOUSING ASSOCIATION LTD#135,02/06/2021,"2,447.20",6541-Domiciliary Care,THIRD PARTY PAYMENTS,PRIVATE CONTRACTOR,REVENUE
Walsall Council,http://opendatacommunities.org/id/metropolitan-district-council/walsall ,WC127-195,30.06.2021,ADULT SOCIAL CARE,ACCORD HOUSING ASSOCIATION LTD#135,02/06/2021,"1,380.32",6541-Domiciliary Care,THIRD PARTY PAYMENTS,PRIVATE CONTRACTOR,REVENUE
Walsall Council,http://opendatacommunities.org/id/metropolitan-district-council/walsall ,WC127-196,30.06.2021,ADULT SOCIAL CARE,ACCORD HOUSING ASSOCIATION LTD#135,02/06/2021,925.20,6541-Domiciliary Care,THIRD PARTY PAYMENTS,PRIVATE CONTRACTOR,REVENUE
Walsall Council,http://opendatacommunities.org/id/metropolitan-district-council/walsall ,WC127-197,30.06.2021,ADULT SOCIAL CARE,ACCORD HOUSING ASSOCIATION LTD#135,02/06/2021,771.00,6541-Domiciliary Care,THIRD PARTY PAYMENTS,PRIVATE CONTRACTOR,REVENUE
Walsall Council,http://opendatacommunities.org/id/metropolitan-district-council/walsall ,WC127-198,30.06.2021,ADULT SOCIAL CARE,ACCORD HOUSING ASSOCIATION LTD#135,02/06/2021,"2,285.92",6541-Domiciliary Care,THIRD PARTY PAYMENTS,PRIVATE CONTRACTOR,REVENUE
Walsall Council,http://opendatacommunities.org/id/metropolitan-district-council/walsall ,WC127-199,30.06.2021,ADULT SOCIAL CARE,ACCORD HOUSING ASSOCIATION LTD#135,02/06/2021,431.76,6541-Domiciliary Care,THIRD PARTY PAYMENTS,PRIVATE CONTRACTOR,REVENUE
Walsall Council,http://opendatacommunities.org/id/metropolitan-district-council/walsall ,WC127-200,30.06.2021,ADULT SOCIAL CARE,ACCORD HOUSING ASSOCIATION LTD#135,02/06/2021,462.68,6541-Domiciliary Care,THIRD PARTY PAYMENTS,PRIVATE CONTRACTOR,REVENUE
Walsall Council,http://opendatacommunities.org/id/metropolitan-district-council/walsall ,WC127-201,30.06.2021,ADULT SOCIAL CARE,ACCORD HOUSING ASSOCIATION LTD#135,02/06/2021,992.16,6541-Domiciliary Care,THIRD PARTY PAYMENTS,PRIVATE CONTRACTOR,REVENUE
Walsall Council,http://opendatacommunities.org/id/metropolitan-district-council/walsall ,WC127-202,30.06.2021,ADULT SOCIAL CARE,ACCORD HOUSING ASSOCIATION LTD#135,02/06/2021,287.84,6541-Domiciliary Care,THIRD PARTY PAYMENTS,PRIVATE CONTRACTOR,REVENUE
Walsall Council,http://opendatacommunities.org/id/metropolitan-district-council/walsall ,WC127-203,30.06.2021,ADULT SOCIAL CARE,ACCORD HOUSING ASSOCIATION LTD#135,02/06/2021,493.44,6541-Domiciliary Care,THIRD PARTY PAYMENTS,PRIVATE CONTRACTOR,REVENUE
Walsall Council,http://opendatacommunities.org/id/metropolitan-district-council/walsall ,WC127-204,30.06.2021,ADULT SOCIAL CARE,ACCORD HOUSING ASSOCIATION LTD#135,02/06/2021,287.84,6541-Domiciliary Care,THIRD PARTY PAYMENTS,PRIVATE CONTRACTOR,REVENUE
Walsall Council,http://opendatacommunities.org/id/metropolitan-district-council/walsall ,WC127-205,30.06.2021,ADULT SOCIAL CARE,ACCORD HOUSING ASSOCIATION LTD#135,02/06/2021,637.36,6541-Domiciliary Care,THIRD PARTY PAYMENTS,PRIVATE CONTRACTOR,REVENUE
Walsall Council,http://opendatacommunities.org/id/metropolitan-district-council/walsall ,WC127-206,30.06.2021,ADULT SOCIAL CARE,ACCORD HOUSING ASSOCIATION LTD#135,02/06/2021,524.28,6541-Domiciliary Care,THIRD PARTY PAYMENTS,PRIVATE CONTRACTOR,REVENUE
Walsall Council,http://opendatacommunities.org/id/metropolitan-district-council/walsall ,WC127-207,30.06.2021,ADULT SOCIAL CARE,ACCORD HOUSING ASSOCIATION LTD#135,02/06/2021,719.60,6541-Domiciliary Care,THIRD PARTY PAYMENTS,PRIVATE CONTRACTOR,REVENUE
Walsall Council,http://opendatacommunities.org/id/metropolitan-district-council/walsall ,WC127-208,30.06.2021,ADULT SOCIAL CARE,ACCORD HOUSING ASSOCIATION LTD#135,10/06/2021,"1,465.04",6541-Domiciliary Care,THIRD PARTY PAYMENTS,PRIVATE CONTRACTOR,REVENUE
Walsall Council,http://opendatacommunities.org/id/metropolitan-district-council/walsall ,WC127-209,30.06.2021,ADULT SOCIAL CARE,ACCORD HOUSING ASSOCIATION LTD#135,10/06/2021,359.80,6541-Domiciliary Care,THIRD PARTY PAYMENTS,PRIVATE CONTRACTOR,REVENUE
Walsall Council,http://opendatacommunities.org/id/metropolitan-district-council/walsall ,WC127-210,30.06.2021,ADULT SOCIAL CARE,ACCORD HOUSING ASSOCIATION LTD#135,10/06/2021,515.36,6541-Domiciliary Care,THIRD PARTY PAYMENTS,PRIVATE CONTRACTOR,REVENUE
Walsall Council,http://opendatacommunities.org/id/metropolitan-district-council/walsall ,WC127-211,30.06.2021,ADULT SOCIAL CARE,ACCORD HOUSING ASSOCIATION LTD#135,10/06/2021,915.04,6541-Domiciliary Care,THIRD PARTY PAYMENTS,PRIVATE CONTRACTOR,REVENUE
Walsall Council,http://opendatacommunities.org/id/metropolitan-district-council/walsall ,WC127-212,30.06.2021,ADULT SOCIAL CARE,ACCORD HOUSING ASSOCIATION LTD#135,10/06/2021,"1,439.20",6541-Domiciliary Care,THIRD PARTY PAYMENTS,PRIVATE CONTRACTOR,REVENUE
Walsall Council,http://opendatacommunities.org/id/metropolitan-district-council/walsall ,WC127-213,30.06.2021,ADULT SOCIAL CARE,ACCORD HOUSING ASSOCIATION LTD#135,10/06/2021,390.72,6541-Domiciliary Care,THIRD PARTY PAYMENTS,PRIVATE CONTRACTOR,REVENUE
Walsall Council,http://opendatacommunities.org/id/metropolitan-district-council/walsall ,WC127-214,30.06.2021,ADULT SOCIAL CARE,ACCORD HOUSING ASSOCIATION LTD#135,10/06/2021,"2,158.80",6541-Domiciliary Care,THIRD PARTY PAYMENTS,PRIVATE CONTRACTOR,REVENUE
Walsall Council,http://opendatacommunities.org/id/metropolitan-district-council/walsall ,WC127-215,30.06.2021,ADULT SOCIAL CARE,ACCORD HOUSING ASSOCIATION LTD#135,10/06/2021,"2,158.80",6541-Domiciliary Care,THIRD PARTY PAYMENTS,PRIVATE CONTRACTOR,REVENUE
Walsall Council,http://opendatacommunities.org/id/metropolitan-district-council/walsall ,WC127-216,30.06.2021,ADULT SOCIAL CARE,ACCORD HOUSING ASSOCIATION LTD#135,10/06/2021,528.17,6541-Domiciliary Care,THIRD PARTY PAYMENTS,PRIVATE CONTRACTOR,REVENUE
Walsall Council,http://opendatacommunities.org/id/metropolitan-district-council/walsall ,WC127-217,30.06.2021,ADULT SOCIAL CARE,ACCORD HOUSING ASSOCIATION LTD#135,10/06/2021,709.32,6541-Domiciliary Care,THIRD PARTY PAYMENTS,PRIVATE CONTRACTOR,REVENUE
Walsall Council,http://opendatacommunities.org/id/metropolitan-district-council/walsall ,WC127-218,30.06.2021,ADULT SOCIAL CARE,ACCORD HOUSING ASSOCIATION LTD#135,10/06/2021,"1,043.56",6541-Domiciliary Care,THIRD PARTY PAYMENTS,PRIVATE CONTRACTOR,REVENUE
Walsall Council,http://opendatacommunities.org/id/metropolitan-district-council/walsall ,WC127-219,30.06.2021,ADULT SOCIAL CARE,ACCORD HOUSING ASSOCIATION LTD#135,10/06/2021,334.12,6541-Domiciliary Care,THIRD PARTY PAYMENTS,PRIVATE CONTRACTOR,REVENUE
Walsall Council,http://opendatacommunities.org/id/metropolitan-district-council/walsall ,WC127-220,30.06.2021,ADULT SOCIAL CARE,ACCORD HOUSING ASSOCIATION LTD#135,10/06/2021,909.92,6541-Domiciliary Care,THIRD PARTY PAYMENTS,PRIVATE CONTRACTOR,REVENUE
Walsall Council,http://opendatacommunities.org/id/metropolitan-district-council/walsall ,WC127-221,30.06.2021,ADULT SOCIAL CARE,ACCORD HOUSING ASSOCIATION LTD#135,10/06/2021,637.40,6541-Domiciliary Care,THIRD PARTY PAYMENTS,PRIVATE CONTRACTOR,REVENUE
Walsall Council,http://opendatacommunities.org/id/metropolitan-district-council/walsall ,WC127-222,30.06.2021,ADULT SOCIAL CARE,ACCORD HOUSING ASSOCIATION LTD#135,10/06/2021,945.76,6541-Domiciliary Care,THIRD PARTY PAYMENTS,PRIVATE CONTRACTOR,REVENUE
Walsall Council,http://opendatacommunities.org/id/metropolitan-district-council/walsall ,WC127-223,30.06.2021,ADULT SOCIAL CARE,ACCORD HOUSING ASSOCIATION LTD#135,10/06/2021,503.72,6541-Domiciliary Care,THIRD PARTY PAYMENTS,PRIVATE CONTRACTOR,REVENUE
Walsall Council,http://opendatacommunities.org/id/metropolitan-district-council/walsall ,WC127-224,30.06.2021,ADULT SOCIAL CARE,ACCORD HOUSING ASSOCIATION LTD#135,10/06/2021,349.52,6541-Domiciliary Care,THIRD PARTY PAYMENTS,PRIVATE CONTRACTOR,REVENUE
Walsall Council,http://opendatacommunities.org/id/metropolitan-district-council/walsall ,WC127-225,30.06.2021,CHILDRENS,ACCORD HOUSING ASSOCIATION LTD#135,22/06/2021,"30,348.50",6314-Professional Fees & Services,SUPPLIES & SERVICES,SERVICES,REVENUE
Walsall Council,http://opendatacommunities.org/id/metropolitan-district-council/walsall ,WC127-226,30.06.2021,ADULT SOCIAL CARE,ACCORD HOUSING ASSOCIATION LTD#135,10/06/2021,323.84,6541-Domiciliary Care,THIRD PARTY PAYMENTS,PRIVATE CONTRACTOR,REVENUE
Walsall Council,http://opendatacommunities.org/id/metropolitan-district-council/walsall ,WC127-227,30.06.2021,ADULT SOCIAL CARE,ACE CARE AGENCY,01/06/2021,"3,400.00",6550-Professional Fees & Services,SUPPLIES & SERVICES,SERVICES,REVENUE
Walsall Council,http://opendatacommunities.org/id/metropolitan-district-council/walsall ,WC127-228,30.06.2021,ADULT SOCIAL CARE,ACE CARE AGENCY,01/06/2021,"-3,400.00",6550-Professional Fees & Services,SUPPLIES & SERVICES,SERVICES,REVENUE
Walsall Council,http://opendatacommunities.org/id/metropolitan-district-council/walsall ,WC127-229,30.06.2021,ADULT SOCIAL CARE,ACE CARE AGENCY,01/06/2021,"3,400.00",6550-Professional Fees & Services,SUPPLIES & SERVICES,SERVICES,REVENUE
Walsall Council,http://opendatacommunities.org/id/metropolitan-district-council/walsall ,WC127-230,30.06.2021,ADULT SOCIAL CARE,ACE CARE AGENCY,11/06/2021,"1,700.00",6550-Professional Fees & Services,SUPPLIES & SERVICES,SERVICES,REVENUE
Walsall Council,http://opendatacommunities.org/id/metropolitan-district-council/walsall ,WC127-231,30.06.2021,ADULT SOCIAL CARE,ACE CARE AGENCY,02/06/2021,732.42,6550-ASC Infection Control Fund Round 3 (70%),TRANSFER PAYMENTS,COVID TRANSFER PAYMENT,REVENUE
Walsall Council,http://opendatacommunities.org/id/metropolitan-district-council/walsall ,WC127-232,30.06.2021,CHILDRENS,ACE CARS & MINIBUSES LTD,21/06/2021,"1,177.50",6241-Hire of Vehicle with Driver,TRANSPORT,DIRECT TRANSPORT COSTS,REVENUE
Walsall Council,http://opendatacommunities.org/id/metropolitan-district-council/walsall ,WC127-233,30.06.2021,CHILDRENS,ACE CARS & MINIBUSES LTD,21/06/2021,"1,170.00",6241-Hire of Vehicle with Driver,TRANSPORT,DIRECT TRANSPORT COSTS,REVENUE
Walsall Council,http://opendatacommunities.org/id/metropolitan-district-council/walsall ,WC127-234,30.06.2021,CHILDRENS,ACE CARS & MINIBUSES LTD,21/06/2021,"1,380.00",6241-Hire of Vehicle with Driver,TRANSPORT,DIRECT TRANSPORT COSTS,REVENUE
Walsall Council,http://opendatacommunities.org/id/metropolitan-district-council/walsall ,WC127-235,30.06.2021,CHILDRENS,ACE CARS & MINIBUSES LTD,21/06/2021,"2,317.50",6241-Hire of Vehicle with Driver,TRANSPORT,DIRECT TRANSPORT COSTS,REVENUE
Walsall Council,http://opendatacommunities.org/id/metropolitan-district-council/walsall ,WC127-236,30.06.2021,CHILDRENS,ACE CARS & MINIBUSES LTD,21/06/2021,"2,242.50",6241-Hire of Vehicle with Driver,TRANSPORT,DIRECT TRANSPORT COSTS,REVENUE
Walsall Council,http://opendatacommunities.org/id/metropolitan-district-council/walsall ,WC127-237,30.06.2021,CHILDRENS,ACE CARS & MINIBUSES LTD,21/06/2021,360.00,6241-Hire of Vehicle with Driver,TRANSPORT,DIRECT TRANSPORT COSTS,REVENUE
Walsall Council,http://opendatacommunities.org/id/metropolitan-district-council/walsall ,WC127-238,30.06.2021,CHILDRENS,ACE CARS & MINIBUSES LTD,21/06/2021,660.00,6241-Hire of Vehicle with Driver,TRANSPORT,DIRECT TRANSPORT COSTS,REVENUE
Walsall Council,http://opendatacommunities.org/id/metropolitan-district-council/walsall ,WC127-239,30.06.2021,CHILDRENS,ACE CARS & MINIBUSES LTD,21/06/2021,"1,638.75",6241-Hire of Vehicle with Driver,TRANSPORT,DIRECT TRANSPORT COSTS,REVENUE
Walsall Council,http://opendatacommunities.org/id/metropolitan-district-council/walsall ,WC127-240,30.06.2021,CHILDRENS,ACE CARS & MINIBUSES LTD,21/06/2021,"1,638.75",6241-Hire of Vehicle with Driver,TRANSPORT,DIRECT TRANSPORT COSTS,REVENUE
Walsall Council,http://opendatacommunities.org/id/metropolitan-district-council/walsall ,WC127-241,30.06.2021,CHILDRENS,ACE CARS & MINIBUSES LTD,21/06/2021,"1,650.00",6241-Hire of Vehicle with Driver,TRANSPORT,DIRECT TRANSPORT COSTS,REVENUE
Walsall Council,http://opendatacommunities.org/id/metropolitan-district-council/walsall ,WC127-242,30.06.2021,CHILDRENS,ACE CARS & MINIBUSES LTD,21/06/2021,"2,917.50",6241-Hire of Vehicle with Driver,TRANSPORT,DIRECT TRANSPORT COSTS,REVENUE
Walsall Council,http://opendatacommunities.org/id/metropolitan-district-council/walsall ,WC127-243,30.06.2021,CHILDRENS,ACE CARS & MINIBUSES LTD,21/06/2021,"1,250.00",6241-Hire of Vehicle with Driver,TRANSPORT,DIRECT TRANSPORT COSTS,REVENUE
Walsall Council,http://opendatacommunities.org/id/metropolitan-district-council/walsall ,WC127-244,30.06.2021,CHILDRENS,ACE CARS & MINIBUSES LTD,21/06/2021,"2,482.50",6241-Hire of Vehicle with Driver,TRANSPORT,DIRECT TRANSPORT COSTS,REVENUE
Walsall Council,http://opendatacommunities.org/id/metropolitan-district-council/walsall ,WC127-245,30.06.2021,CHILDRENS,ACE CARS & MINIBUSES LTD,21/06/2021,960.00,6241-Hire of Vehicle with Driver,TRANSPORT,DIRECT TRANSPORT COSTS,REVENUE
Walsall Council,http://opendatacommunities.org/id/metropolitan-district-council/walsall ,WC127-246,30.06.2021,CHILDRENS,ACE CARS & MINIBUSES LTD,21/06/2021,"1,050.00",6241-Hire of Vehicle with Driver,TRANSPORT,DIRECT TRANSPORT COSTS,REVENUE
Walsall Council,http://opendatacommunities.org/id/metropolitan-district-council/walsall ,WC127-247,30.06.2021,CHILDRENS,ACE CARS & MINIBUSES LTD,21/06/2021,"2,070.00",6241-Hire of Vehicle with Driver,TRANSPORT,DIRECT TRANSPORT COSTS,REVENUE
Walsall Council,http://opendatacommunities.org/id/metropolitan-district-council/walsall ,WC127-248,30.06.2021,CHILDRENS,ACE CARS & MINIBUSES LTD,21/06/2021,"1,552.50",6241-Hire of Vehicle with Driver,TRANSPORT,DIRECT TRANSPORT COSTS,REVENUE
Walsall Council,http://opendatacommunities.org/id/metropolitan-district-council/walsall ,WC127-249,30.06.2021,CHILDRENS,ACE CARS & MINIBUSES LTD,21/06/2021,"1,897.50",6241-Hire of Vehicle with Driver,TRANSPORT,DIRECT TRANSPORT COSTS,REVENUE
Walsall Council,http://opendatacommunities.org/id/metropolitan-district-council/walsall ,WC127-250,30.06.2021,CHILDRENS,ACE CARS & MINIBUSES LTD,21/06/2021,"2,062.50",6241-Hire of Vehicle with Driver,TRANSPORT,DIRECT TRANSPORT COSTS,REVENUE
Walsall Council,http://opendatacommunities.org/id/metropolitan-district-council/walsall ,WC127-251,30.06.2021,CHILDRENS,ACE CARS & MINIBUSES LTD,21/06/2021,"1,725.00",6241-Hire of Vehicle with Driver,TRANSPORT,DIRECT TRANSPORT COSTS,REVENUE
Walsall Council,http://opendatacommunities.org/id/metropolitan-district-council/walsall ,WC127-252,30.06.2021,CHILDRENS,ACE CARS & MINIBUSES LTD,21/06/2021,"1,897.50",6241-Hire of Vehicle with Driver,TRANSPORT,DIRECT TRANSPORT COSTS,REVENUE
Walsall Council,http://opendatacommunities.org/id/metropolitan-district-council/walsall ,WC127-253,30.06.2021,CHILDRENS,ACE CARS & MINIBUSES LTD,21/06/2021,"1,320.00",6241-Hire of Vehicle with Driver,TRANSPORT,DIRECT TRANSPORT COSTS,REVENUE
Walsall Council,http://opendatacommunities.org/id/metropolitan-district-council/walsall ,WC127-254,30.06.2021,CHILDRENS,ACE CARS & MINIBUSES LTD,21/06/2021,"1,552.50",6241-Hire of Vehicle with Driver,TRANSPORT,DIRECT TRANSPORT COSTS,REVENUE
Walsall Council,http://opendatacommunities.org/id/metropolitan-district-council/walsall ,WC127-255,30.06.2021,CHILDRENS,ACE CARS & MINIBUSES LTD,21/06/2021,"2,316.00",6241-Hire of Vehicle with Driver,TRANSPORT,DIRECT TRANSPORT COSTS,REVENUE
Walsall Council,http://opendatacommunities.org/id/metropolitan-district-council/walsall ,WC127-256,30.06.2021,CHILDRENS,ACE CARS & MINIBUSES LTD,21/06/2021,975.00,6241-Hire of Vehicle with Driver,TRANSPORT,DIRECT TRANSPORT COSTS,REVENUE
Walsall Council,http://opendatacommunities.org/id/metropolitan-district-council/walsall ,WC127-257,30.06.2021,CHILDRENS,ACE CARS & MINIBUSES LTD,21/06/2021,"2,775.00",6241-Hire of Vehicle with Driver,TRANSPORT,DIRECT TRANSPORT COSTS,REVENUE
Walsall Council,http://opendatacommunities.org/id/metropolitan-district-council/walsall ,WC127-258,30.06.2021,CHILDRENS,ACE CARS & MINIBUSES LTD,21/06/2021,"2,812.50",6241-Hire of Vehicle with Driver,TRANSPORT,DIRECT TRANSPORT COSTS,REVENUE
Walsall Council,http://opendatacommunities.org/id/metropolitan-district-council/walsall ,WC127-259,30.06.2021,CHILDRENS,ACE CARS & MINIBUSES LTD,21/06/2021,"1,923.75",6241-Hire of Vehicle with Driver,TRANSPORT,DIRECT TRANSPORT COSTS,REVENUE
Walsall Council,http://opendatacommunities.org/id/metropolitan-district-council/walsall ,WC127-260,30.06.2021,CHILDRENS,ACE CARS & MINIBUSES LTD,21/06/2021,"2,317.50",6241-Hire of Vehicle with Driver,TRANSPORT,DIRECT TRANSPORT COSTS,REVENUE
Walsall Council,http://opendatacommunities.org/id/metropolitan-district-council/walsall ,WC127-261,30.06.2021,CHILDRENS,ACE CARS & MINIBUSES LTD,21/06/2021,982.50,6241-Hire of Vehicle with Driver,TRANSPORT,DIRECT TRANSPORT COSTS,REVENUE
Walsall Council,http://opendatacommunities.org/id/metropolitan-district-council/walsall ,WC127-262,30.06.2021,CHILDRENS,ACE CARS & MINIBUSES LTD,21/06/2021,"1,650.00",6241-Hire of Vehicle with Driver,TRANSPORT,DIRECT TRANSPORT COSTS,REVENUE
Walsall Council,http://opendatacommunities.org/id/metropolitan-district-council/walsall ,WC127-263,30.06.2021,ADULT SOCIAL CARE,ACEPAY LTD (COTTAGE NUR HOME),08/06/2021,"2,419.96",6541-Nursing,THIRD PARTY PAYMENTS,PRIVATE CONTRACTOR,REVENUE
Walsall Council,http://opendatacommunities.org/id/metropolitan-district-council/walsall ,WC127-264,30.06.2021,ADULT SOCIAL CARE,ACEPAY LTD (COTTAGE NUR HOME),08/06/2021,"2,331.08",6541-Residential EMI,THIRD PARTY PAYMENTS,PRIVATE CONTRACTOR,REVENUE
Walsall Council,http://opendatacommunities.org/id/metropolitan-district-council/walsall ,WC127-265,30.06.2021,ADULT SOCIAL CARE,ACEPAY LTD (COTTAGE NUR HOME),08/06/2021,"2,419.96",6541-Nursing,THIRD PARTY PAYMENTS,PRIVATE CONTRACTOR,REVENUE
Walsall Council,http://opendatacommunities.org/id/metropolitan-district-council/walsall ,WC127-266,30.06.2021,ADULT SOCIAL CARE,ACEPAY LTD (COTTAGE NUR HOME),08/06/2021,"2,419.96",6541-Nursing,THIRD PARTY PAYMENTS,PRIVATE CONTRACTOR,REVENUE
Walsall Council,http://opendatacommunities.org/id/metropolitan-district-council/walsall ,WC127-267,30.06.2021,ADULT SOCIAL CARE,ACEPAY LTD (COTTAGE NUR HOME),08/06/2021,"2,419.96",6541-Nursing,THIRD PARTY PAYMENTS,PRIVATE CONTRACTOR,REVENUE
Walsall Council,http://opendatacommunities.org/id/metropolitan-district-council/walsall ,WC127-268,30.06.2021,ADULT SOCIAL CARE,ACEPAY LTD (COTTAGE NUR HOME),08/06/2021,"2,419.96",6541-Nursing,THIRD PARTY PAYMENTS,PRIVATE CONTRACTOR,REVENUE
Walsall Council,http://opendatacommunities.org/id/metropolitan-district-council/walsall ,WC127-269,30.06.2021,ADULT SOCIAL CARE,ACEPAY LTD (COTTAGE NUR HOME),08/06/2021,"2,419.96",6541-Nursing,THIRD PARTY PAYMENTS,PRIVATE CONTRACTOR,REVENUE
Walsall Council,http://opendatacommunities.org/id/metropolitan-district-council/walsall ,WC127-270,30.06.2021,ADULT SOCIAL CARE,ACEPAY LTD (COTTAGE NUR HOME),08/06/2021,583.49,6541-Nursing EMI,THIRD PARTY PAYMENTS,PRIVATE CONTRACTOR,REVENUE
Walsall Council,http://opendatacommunities.org/id/metropolitan-district-council/walsall ,WC127-271,30.06.2021,ADULT SOCIAL CARE,ACEPAY LTD (COTTAGE NUR HOME),08/06/2021,"2,419.96",6541-Nursing,THIRD PARTY PAYMENTS,PRIVATE CONTRACTOR,REVENUE
Walsall Council,http://opendatacommunities.org/id/metropolitan-district-council/walsall ,WC127-272,30.06.2021,ADULT SOCIAL CARE,ACEPAY LTD (COTTAGE NUR HOME),08/06/2021,"2,419.96",6541-Nursing,THIRD PARTY PAYMENTS,PRIVATE CONTRACTOR,REVENUE
Walsall Council,http://opendatacommunities.org/id/metropolitan-district-council/walsall ,WC127-273,30.06.2021,ADULT SOCIAL CARE,ACEPAY LTD (COTTAGE NUR HOME),08/06/2021,"2,419.96",6541-Nursing,THIRD PARTY PAYMENTS,PRIVATE CONTRACTOR,REVENUE
Walsall Council,http://opendatacommunities.org/id/metropolitan-district-council/walsall ,WC127-274,30.06.2021,ADULT SOCIAL CARE,ACEPAY LTD (COTTAGE NUR HOME),08/06/2021,"2,619.96",6541-Nursing,THIRD PARTY PAYMENTS,PRIVATE CONTRACTOR,REVENUE
Walsall Council,http://opendatacommunities.org/id/metropolitan-district-council/walsall ,WC127-275,30.06.2021,ADULT SOCIAL CARE,ACEPAY LTD (COTTAGE NUR HOME),08/06/2021,"2,419.96",6541-Nursing,THIRD PARTY PAYMENTS,PRIVATE CONTRACTOR,REVENUE
Walsall Council,http://opendatacommunities.org/id/metropolitan-district-council/walsall ,WC127-276,30.06.2021,ADULT SOCIAL CARE,ACEPAY LTD (COTTAGE NUR HOME),08/06/2021,"2,419.96",6541-Nursing,THIRD PARTY PAYMENTS,PRIVATE CONTRACTOR,REVENUE
Walsall Council,http://opendatacommunities.org/id/metropolitan-district-council/walsall ,WC127-277,30.06.2021,ADULT SOCIAL CARE,ACEPAY LTD (COTTAGE NUR HOME),08/06/2021,"2,419.96",6541-Nursing,THIRD PARTY PAYMENTS,PRIVATE CONTRACTOR,REVENUE
Walsall Council,http://opendatacommunities.org/id/metropolitan-district-council/walsall ,WC127-278,30.06.2021,ADULT SOCIAL CARE,ACEPAY LTD (COTTAGE NUR HOME),02/06/2021,"9,082.26",6550-ASC Infection Control Fund Round 3 (70%),TRANSFER PAYMENTS,COVID TRANSFER PAYMENT,REVENUE
Walsall Council,http://opendatacommunities.org/id/metropolitan-district-council/walsall ,WC127-279,30.06.2021,ADULT SOCIAL CARE,ACEPAY LTD (COTTAGE NUR HOME),02/06/2021,"7,108.86",6550-ASC Rapid Testing Fund Round 2 (60%),TRANSFER PAYMENTS,COVID TRANSFER PAYMENT,REVENUE
Walsall Council,http://opendatacommunities.org/id/metropolitan-district-council/walsall ,WC127-280,30.06.2021,ADULT SOCIAL CARE,ACEPAY LTD (COTTAGE NUR HOME),23/06/2021,"4,016.76",6550-ASC Rapid Testing Fund Round 2 (40% Grants),THIRD PARTY PAYMENTS,COVID THIRD PARTY PAYMENTS,REVENUE
Walsall Council,http://opendatacommunities.org/id/metropolitan-district-council/walsall ,WC127-281,30.06.2021,ADULT SOCIAL CARE,ACEPAY LTD (COTTAGE NUR HOME),02/06/2021,"1,168.00",6541-Residential,THIRD PARTY PAYMENTS,PRIVATE CONTRACTOR,REVENUE
Walsall Council,http://opendatacommunities.org/id/metropolitan-district-council/walsall ,WC127-282,30.06.2021,ADULT SOCIAL CARE,ACEPAY LTD (COTTAGE NUR HOME),09/06/2021,"2,264.54",6554-Professional Services-Priv Contractor & Other Agencies,THIRD PARTY PAYMENTS,PRIVATE CONTRACTOR,REVENUE
Walsall Council,http://opendatacommunities.org/id/metropolitan-district-council/walsall ,WC127-283,30.06.2021,CHILDRENS,ACIRE CARE LTD,23/06/2021,"4,563.77",6223-Accommodation and Related Costs-Assistance to S/S Clients,TRANSFER PAYMENTS,ADULT SOCIAL SERVICES CLIENT,REVENUE
Walsall Council,http://opendatacommunities.org/id/metropolitan-district-council/walsall ,WC127-284,30.06.2021,CHILDRENS,ACORN CARE & EDUCATION LTD (SALES),14/06/2021,"16,800.00",6223-External Residential Care-Oth Agency Provision,THIRD PARTY PAYMENTS,PRIVATE CONTRACTOR,REVENUE
Walsall Council,http://opendatacommunities.org/id/metropolitan-district-council/walsall ,WC127-285,30.06.2021,CHILDRENS,ACORN CARE & EDUCATION LTD (SALES),14/06/2021,"20,142.85",6223-External Residential Care-Oth Agency Provision,THIRD PARTY PAYMENTS,PRIVATE CONTRACTOR,REVENUE
Walsall Council,http://opendatacommunities.org/id/metropolitan-district-council/walsall ,WC127-286,30.06.2021,CHILDRENS,ACORN FOSTERING SERVICES LTD,14/06/2021,"3,621.43",6223-Independent Foster Care-Oth Agency Provision,THIRD PARTY PAYMENTS,PRIVATE CONTRACTOR,REVENUE
Walsall Council,http://opendatacommunities.org/id/metropolitan-district-council/walsall ,WC127-287,30.06.2021,CHILDRENS,ACORNS CHILDRENS HOSPICE TRUST,15/06/2021,"1,700.00",6220-Professional Fees & Services,SUPPLIES & SERVICES,SERVICES,REVENUE
Walsall Council,http://opendatacommunities.org/id/metropolitan-district-council/walsall ,WC127-288,30.06.2021,CHILDRENS,ACPAS LIMITED,24/06/2021,291.93,6220-School Only Payments - Catering,THIRD PARTY PAYMENTS,INDEPENDENT UNIT WITHIN COUNCIL,REVENUE
Walsall Council,http://opendatacommunities.org/id/metropolitan-district-council/walsall ,WC127-289,30.06.2021,ECONOMY & ENVIRONMENT,ACTION GRAPHICS & DISPLAY LTD,01/06/2021,403.40,6414-Outwork Print & Design,SUPPLIES & SERVICES,PRINTING STATIONERY & GENERAL OFFICE,REVENUE
Walsall Council,http://opendatacommunities.org/id/metropolitan-district-council/walsall ,WC127-290,30.06.2021,ECONOMY & ENVIRONMENT,ACTION MIDLANDS LTD,25/06/2021,323.33,6313-Consultant Fees,SUPPLIES & SERVICES,SERVICES,REVENUE
Walsall Council,http://opendatacommunities.org/id/metropolitan-district-council/walsall ,WC127-291,30.06.2021,CHILDRENS,ACTIVE CARE SOLUTIONS LTD,14/06/2021,"3,691.78",6223-Independent Foster Care-Oth Agency Provision,THIRD PARTY PAYMENTS,PRIVATE CONTRACTOR,REVENUE
Walsall Council,http://opendatacommunities.org/id/metropolitan-district-council/walsall ,WC127-292,30.06.2021,CHILDRENS,ACTIVE CARE SOLUTIONS LTD,14/06/2021,"2,819.42",6223-Independent Foster Care-Oth Agency Provision,THIRD PARTY PAYMENTS,PRIVATE CONTRACTOR,REVENUE
Walsall Council,http://opendatacommunities.org/id/metropolitan-district-council/walsall ,WC127-293,30.06.2021,ADULT SOCIAL CARE,REDACTED,09/06/2021,988.60,6541-Direct Payment,THIRD PARTY PAYMENTS,PRIVATE CONTRACTOR,REVENUE
Walsall Council,http://opendatacommunities.org/id/metropolitan-district-council/walsall ,WC127-294,30.06.2021,ADULT SOCIAL CARE,ADASS,22/06/2021,"2,366.00",6520-Professional Fees & Services,SUPPLIES & SERVICES,SERVICES,REVENUE
Walsall Council,http://opendatacommunities.org/id/metropolitan-district-council/walsall ,WC127-295,30.06.2021,CHILDRENS,REDACTED,02/06/2021,380.55,6223-Residents Orders,TRANSFER PAYMENTS,CHILDREN SOCIAL SERVICES CLIENT,REVENUE
Walsall Council,http://opendatacommunities.org/id/metropolitan-district-council/walsall ,WC127-296,30.06.2021,CHILDRENS,REDACTED,02/06/2021,352.55,6223-Residents Orders,TRANSFER PAYMENTS,CHILDREN SOCIAL SERVICES CLIENT,REVENUE
Walsall Council,http://opendatacommunities.org/id/metropolitan-district-council/walsall ,WC127-297,30.06.2021,CHILDRENS,REDACTED,30/06/2021,369.24,6223-Residents Orders,TRANSFER PAYMENTS,CHILDREN SOCIAL SERVICES CLIENT,REVENUE
Walsall Council,http://opendatacommunities.org/id/metropolitan-district-council/walsall ,WC127-298,30.06.2021,CHILDRENS,REDACTED,30/06/2021,341.24,6223-Residents Orders,TRANSFER PAYMENTS,CHILDREN SOCIAL SERVICES CLIENT,REVENUE
Walsall Council,http://opendatacommunities.org/id/metropolitan-district-council/walsall ,WC127-299,30.06.2021,ADULT SOCIAL CARE,REDACTED,09/06/2021,"2,604.00",6541-Direct Payment,THIRD PARTY PAYMENTS,PRIVATE CONTRACTOR,REVENUE
Walsall Council,http://opendatacommunities.org/id/metropolitan-district-council/walsall ,WC127-300,30.06.2021,ADULT SOCIAL CARE,ADVANCE HEALTH CARE (UK) LTD,08/06/2021,490.49,6541-Domiciliary Care,THIRD PARTY PAYMENTS,PRIVATE CONTRACTOR,REVENUE
Walsall Council,http://opendatacommunities.org/id/metropolitan-district-council/walsall ,WC127-301,30.06.2021,ADULT SOCIAL CARE,ADVANCE HEALTH CARE (UK) LTD,08/06/2021,490.49,6541-Domiciliary Care,THIRD PARTY PAYMENTS,PRIVATE CONTRACTOR,REVENUE
Walsall Council,http://opendatacommunities.org/id/metropolitan-district-council/walsall ,WC127-302,30.06.2021,ADULT SOCIAL CARE,ADVANCE HEALTH CARE (UK) LTD,08/06/2021,506.06,6541-Domiciliary Care,THIRD PARTY PAYMENTS,PRIVATE CONTRACTOR,REVENUE
Walsall Council,http://opendatacommunities.org/id/metropolitan-district-council/walsall ,WC127-303,30.06.2021,ADULT SOCIAL CARE,ADVANCE HEALTH CARE (UK) LTD,08/06/2021,490.49,6541-Domiciliary Care,THIRD PARTY PAYMENTS,PRIVATE CONTRACTOR,REVENUE
Walsall Council,http://opendatacommunities.org/id/metropolitan-district-council/walsall ,WC127-304,30.06.2021,ADULT SOCIAL CARE,ADVANCE HEALTH CARE (UK) LTD,08/06/2021,833.03,6541-Domiciliary Care,THIRD PARTY PAYMENTS,PRIVATE CONTRACTOR,REVENUE
Walsall Council,http://opendatacommunities.org/id/metropolitan-district-council/walsall ,WC127-305,30.06.2021,ADULT SOCIAL CARE,ADVANCE HEALTH CARE (UK) LTD,08/06/2021,490.49,6541-Domiciliary Care,THIRD PARTY PAYMENTS,PRIVATE CONTRACTOR,REVENUE
Walsall Council,http://opendatacommunities.org/id/metropolitan-district-council/walsall ,WC127-306,30.06.2021,ADULT SOCIAL CARE,ADVANCE HEALTH CARE (UK) LTD,08/06/2021,490.49,6541-Domiciliary Care,THIRD PARTY PAYMENTS,PRIVATE CONTRACTOR,REVENUE
Walsall Council,http://opendatacommunities.org/id/metropolitan-district-council/walsall ,WC127-307,30.06.2021,ADULT SOCIAL CARE,ADVANCE HEALTH CARE (UK) LTD,08/06/2021,490.49,6541-Domiciliary Care,THIRD PARTY PAYMENTS,PRIVATE CONTRACTOR,REVENUE
Walsall Council,http://opendatacommunities.org/id/metropolitan-district-council/walsall ,WC127-308,30.06.2021,ADULT SOCIAL CARE,ADVANCE HEALTH CARE (UK) LTD,08/06/2021,435.96,6541-Domiciliary Care,THIRD PARTY PAYMENTS,PRIVATE CONTRACTOR,REVENUE
Walsall Council,http://opendatacommunities.org/id/metropolitan-district-council/walsall ,WC127-309,30.06.2021,ADULT SOCIAL CARE,ADVANCE HEALTH CARE (UK) LTD,08/06/2021,544.95,6541-Domiciliary Care,THIRD PARTY PAYMENTS,PRIVATE CONTRACTOR,REVENUE
Walsall Council,http://opendatacommunities.org/id/metropolitan-district-council/walsall ,WC127-310,30.06.2021,ADULT SOCIAL CARE,ADVANCE HEALTH CARE (UK) LTD,08/06/2021,435.96,6541-Domiciliary Care,THIRD PARTY PAYMENTS,PRIVATE CONTRACTOR,REVENUE
Walsall Council,http://opendatacommunities.org/id/metropolitan-district-council/walsall ,WC127-311,30.06.2021,ADULT SOCIAL CARE,ADVANCE HEALTH CARE (UK) LTD,08/06/2021,443.81,6541-Domiciliary Care,THIRD PARTY PAYMENTS,PRIVATE CONTRACTOR,REVENUE
Walsall Council,http://opendatacommunities.org/id/metropolitan-district-council/walsall ,WC127-312,30.06.2021,ADULT SOCIAL CARE,ADVANCE HEALTH CARE (UK) LTD,08/06/2021,490.49,6541-Domiciliary Care,THIRD PARTY PAYMENTS,PRIVATE CONTRACTOR,REVENUE
Walsall Council,http://opendatacommunities.org/id/metropolitan-district-council/walsall ,WC127-313,30.06.2021,ADULT SOCIAL CARE,ADVANCE HEALTH CARE (UK) LTD,08/06/2021,871.92,6541-Domiciliary Care,THIRD PARTY PAYMENTS,PRIVATE CONTRACTOR,REVENUE
Walsall Council,http://opendatacommunities.org/id/metropolitan-district-council/walsall ,WC127-314,30.06.2021,ADULT SOCIAL CARE,ADVANCE HEALTH CARE (UK) LTD,08/06/2021,326.97,6541-Domiciliary Care,THIRD PARTY PAYMENTS,PRIVATE CONTRACTOR,REVENUE
Walsall Council,http://opendatacommunities.org/id/metropolitan-district-council/walsall ,WC127-315,30.06.2021,ADULT SOCIAL CARE,ADVANCE HEALTH CARE (UK) LTD,08/06/2021,381.50,6541-Domiciliary Care,THIRD PARTY PAYMENTS,PRIVATE CONTRACTOR,REVENUE
Walsall Council,http://opendatacommunities.org/id/metropolitan-district-council/walsall ,WC127-316,30.06.2021,ADULT SOCIAL CARE,ADVANCE HEALTH CARE (UK) LTD,08/06/2021,311.40,6541-Domiciliary Care,THIRD PARTY PAYMENTS,PRIVATE CONTRACTOR,REVENUE
Walsall Council,http://opendatacommunities.org/id/metropolitan-district-council/walsall ,WC127-317,30.06.2021,ADULT SOCIAL CARE,ADVANCE HEALTH CARE (UK) LTD,08/06/2021,708.47,6541-Domiciliary Care,THIRD PARTY PAYMENTS,PRIVATE CONTRACTOR,REVENUE
Walsall Council,http://opendatacommunities.org/id/metropolitan-district-council/walsall ,WC127-318,30.06.2021,ADULT SOCIAL CARE,ADVANCE HEALTH CARE (UK) LTD,08/06/2021,435.96,6541-Domiciliary Care,THIRD PARTY PAYMENTS,PRIVATE CONTRACTOR,REVENUE
Walsall Council,http://opendatacommunities.org/id/metropolitan-district-council/walsall ,WC127-319,30.06.2021,ADULT SOCIAL CARE,ADVANCE HEALTH CARE (UK) LTD,08/06/2021,763.00,6541-Domiciliary Care,THIRD PARTY PAYMENTS,PRIVATE CONTRACTOR,REVENUE
Walsall Council,http://opendatacommunities.org/id/metropolitan-district-council/walsall ,WC127-320,30.06.2021,ADULT SOCIAL CARE,ADVANCE HEALTH CARE (UK) LTD,08/06/2021,490.49,6541-Domiciliary Care,THIRD PARTY PAYMENTS,PRIVATE CONTRACTOR,REVENUE
Walsall Council,http://opendatacommunities.org/id/metropolitan-district-council/walsall ,WC127-321,30.06.2021,ADULT SOCIAL CARE,ADVANCE HEALTH CARE (UK) LTD,08/06/2021,435.96,6541-Domiciliary Care,THIRD PARTY PAYMENTS,PRIVATE CONTRACTOR,REVENUE
Walsall Council,http://opendatacommunities.org/id/metropolitan-district-council/walsall ,WC127-322,30.06.2021,ADULT SOCIAL CARE,ADVANCE HEALTH CARE (UK) LTD,08/06/2021,435.96,6541-Domiciliary Care,THIRD PARTY PAYMENTS,PRIVATE CONTRACTOR,REVENUE
Walsall Council,http://opendatacommunities.org/id/metropolitan-district-council/walsall ,WC127-323,30.06.2021,ADULT SOCIAL CARE,ADVANCE HEALTH CARE (UK) LTD,08/06/2021,363.30,6541-Domiciliary Care,THIRD PARTY PAYMENTS,PRIVATE CONTRACTOR,REVENUE
Walsall Council,http://opendatacommunities.org/id/metropolitan-district-council/walsall ,WC127-324,30.06.2021,ADULT SOCIAL CARE,ADVANCE HEALTH CARE (UK) LTD,08/06/2021,490.49,6541-Domiciliary Care,THIRD PARTY PAYMENTS,PRIVATE CONTRACTOR,REVENUE
Walsall Council,http://opendatacommunities.org/id/metropolitan-district-council/walsall ,WC127-325,30.06.2021,ADULT SOCIAL CARE,ADVANCE HEALTH CARE (UK) LTD,08/06/2021,435.96,6541-Domiciliary Care,THIRD PARTY PAYMENTS,PRIVATE CONTRACTOR,REVENUE
Walsall Council,http://opendatacommunities.org/id/metropolitan-district-council/walsall ,WC127-326,30.06.2021,ADULT SOCIAL CARE,ADVANCE HEALTH CARE (UK) LTD,08/06/2021,568.34,6541-Domiciliary Care,THIRD PARTY PAYMENTS,PRIVATE CONTRACTOR,REVENUE
Walsall Council,http://opendatacommunities.org/id/metropolitan-district-council/walsall ,WC127-327,30.06.2021,ADULT SOCIAL CARE,ADVANCE HEALTH CARE (UK) LTD,08/06/2021,381.50,6541-Domiciliary Care,THIRD PARTY PAYMENTS,PRIVATE CONTRACTOR,REVENUE
Walsall Council,http://opendatacommunities.org/id/metropolitan-district-council/walsall ,WC127-328,30.06.2021,ADULT SOCIAL CARE,ADVANCE HEALTH CARE (UK) LTD,08/06/2021,490.49,6541-Domiciliary Care,THIRD PARTY PAYMENTS,PRIVATE CONTRACTOR,REVENUE
Walsall Council,http://opendatacommunities.org/id/metropolitan-district-council/walsall ,WC127-329,30.06.2021,ADULT SOCIAL CARE,ADVANCE HEALTH CARE (UK) LTD,08/06/2021,311.42,6541-Domiciliary Care,THIRD PARTY PAYMENTS,PRIVATE CONTRACTOR,REVENUE
Walsall Council,http://opendatacommunities.org/id/metropolitan-district-council/walsall ,WC127-330,30.06.2021,ADULT SOCIAL CARE,ADVANCE HEALTH CARE (UK) LTD,08/06/2021,654.01,6541-Domiciliary Care,THIRD PARTY PAYMENTS,PRIVATE CONTRACTOR,REVENUE
Walsall Council,http://opendatacommunities.org/id/metropolitan-district-council/walsall ,WC127-331,30.06.2021,ADULT SOCIAL CARE,ADVANCE HEALTH CARE (UK) LTD,08/06/2021,490.49,6541-Domiciliary Care,THIRD PARTY PAYMENTS,PRIVATE CONTRACTOR,REVENUE
Walsall Council,http://opendatacommunities.org/id/metropolitan-district-council/walsall ,WC127-332,30.06.2021,ADULT SOCIAL CARE,ADVANCE HEALTH CARE (UK) LTD,08/06/2021,490.49,6541-Domiciliary Care,THIRD PARTY PAYMENTS,PRIVATE CONTRACTOR,REVENUE
Walsall Council,http://opendatacommunities.org/id/metropolitan-district-council/walsall ,WC127-333,30.06.2021,ADULT SOCIAL CARE,ADVANCE HEALTH CARE (UK) LTD,08/06/2021,490.49,6541-Domiciliary Care,THIRD PARTY PAYMENTS,PRIVATE CONTRACTOR,REVENUE
Walsall Council,http://opendatacommunities.org/id/metropolitan-district-council/walsall ,WC127-334,30.06.2021,ADULT SOCIAL CARE,ADVANCE HEALTH CARE (UK) LTD,08/06/2021,490.49,6541-Domiciliary Care,THIRD PARTY PAYMENTS,PRIVATE CONTRACTOR,REVENUE
Walsall Council,http://opendatacommunities.org/id/metropolitan-district-council/walsall ,WC127-335,30.06.2021,ADULT SOCIAL CARE,ADVANCE HEALTH CARE (UK) LTD,08/06/2021,435.96,6541-Domiciliary Care,THIRD PARTY PAYMENTS,PRIVATE CONTRACTOR,REVENUE
Walsall Council,http://opendatacommunities.org/id/metropolitan-district-council/walsall ,WC127-336,30.06.2021,ADULT SOCIAL CARE,ADVANCE HEALTH CARE (UK) LTD,08/06/2021,490.49,6541-Domiciliary Care,THIRD PARTY PAYMENTS,PRIVATE CONTRACTOR,REVENUE
Walsall Council,http://opendatacommunities.org/id/metropolitan-district-council/walsall ,WC127-337,30.06.2021,ADULT SOCIAL CARE,ADVANCE HEALTH CARE (UK) LTD,08/06/2021,490.49,6541-Domiciliary Care,THIRD PARTY PAYMENTS,PRIVATE CONTRACTOR,REVENUE
Walsall Council,http://opendatacommunities.org/id/metropolitan-district-council/walsall ,WC127-338,30.06.2021,ADULT SOCIAL CARE,ADVANCE HEALTH CARE (UK) LTD,08/06/2021,544.95,6541-Domiciliary Care,THIRD PARTY PAYMENTS,PRIVATE CONTRACTOR,REVENUE
Walsall Council,http://opendatacommunities.org/id/metropolitan-district-council/walsall ,WC127-339,30.06.2021,ADULT SOCIAL CARE,ADVANCE HEALTH CARE (UK) LTD,08/06/2021,435.96,6541-Domiciliary Care,THIRD PARTY PAYMENTS,PRIVATE CONTRACTOR,REVENUE
Walsall Council,http://opendatacommunities.org/id/metropolitan-district-council/walsall ,WC127-340,30.06.2021,ADULT SOCIAL CARE,ADVANCE HEALTH CARE (UK) LTD,08/06/2021,544.95,6541-Domiciliary Care,THIRD PARTY PAYMENTS,PRIVATE CONTRACTOR,REVENUE
Walsall Council,http://opendatacommunities.org/id/metropolitan-district-council/walsall ,WC127-341,30.06.2021,ADULT SOCIAL CARE,ADVANCE HEALTH CARE (UK) LTD,08/06/2021,435.96,6541-Domiciliary Care,THIRD PARTY PAYMENTS,PRIVATE CONTRACTOR,REVENUE
Walsall Council,http://opendatacommunities.org/id/metropolitan-district-council/walsall ,WC127-342,30.06.2021,ADULT SOCIAL CARE,ADVANCE HEALTH CARE (UK) LTD,08/06/2021,451.54,6541-Domiciliary Care,THIRD PARTY PAYMENTS,PRIVATE CONTRACTOR,REVENUE
Walsall Council,http://opendatacommunities.org/id/metropolitan-district-council/walsall ,WC127-343,30.06.2021,ADULT SOCIAL CARE,ADVANCE HEALTH CARE (UK) LTD,08/06/2021,490.49,6541-Domiciliary Care,THIRD PARTY PAYMENTS,PRIVATE CONTRACTOR,REVENUE
Walsall Council,http://opendatacommunities.org/id/metropolitan-district-council/walsall ,WC127-344,30.06.2021,ADULT SOCIAL CARE,ADVANCE HEALTH CARE (UK) LTD,08/06/2021,537.20,6541-Domiciliary Care,THIRD PARTY PAYMENTS,PRIVATE CONTRACTOR,REVENUE
Walsall Council,http://opendatacommunities.org/id/metropolitan-district-council/walsall ,WC127-345,30.06.2021,ADULT SOCIAL CARE,ADVANCE HEALTH CARE (UK) LTD,08/06/2021,363.30,6541-Domiciliary Care,THIRD PARTY PAYMENTS,PRIVATE CONTRACTOR,REVENUE
Walsall Council,http://opendatacommunities.org/id/metropolitan-district-council/walsall ,WC127-346,30.06.2021,ADULT SOCIAL CARE,ADVANCE HEALTH CARE (UK) LTD,08/06/2021,435.96,6541-Domiciliary Care,THIRD PARTY PAYMENTS,PRIVATE CONTRACTOR,REVENUE
Walsall Council,http://opendatacommunities.org/id/metropolitan-district-council/walsall ,WC127-347,30.06.2021,ADULT SOCIAL CARE,ADVANCE HEALTH CARE (UK) LTD,08/06/2021,490.49,6541-Domiciliary Care,THIRD PARTY PAYMENTS,PRIVATE CONTRACTOR,REVENUE
Walsall Council,http://opendatacommunities.org/id/metropolitan-district-council/walsall ,WC127-348,30.06.2021,ADULT SOCIAL CARE,ADVANCE HEALTH CARE (UK) LTD,08/06/2021,454.16,6541-Domiciliary Care,THIRD PARTY PAYMENTS,PRIVATE CONTRACTOR,REVENUE
Walsall Council,http://opendatacommunities.org/id/metropolitan-district-council/walsall ,WC127-349,30.06.2021,ADULT SOCIAL CARE,ADVANCE HEALTH CARE (UK) LTD,08/06/2021,490.49,6541-Domiciliary Care,THIRD PARTY PAYMENTS,PRIVATE CONTRACTOR,REVENUE
Walsall Council,http://opendatacommunities.org/id/metropolitan-district-council/walsall ,WC127-350,30.06.2021,ADULT SOCIAL CARE,ADVANCE HEALTH CARE (UK) LTD,08/06/2021,326.97,6541-Domiciliary Care,THIRD PARTY PAYMENTS,PRIVATE CONTRACTOR,REVENUE
Walsall Council,http://opendatacommunities.org/id/metropolitan-district-council/walsall ,WC127-351,30.06.2021,ADULT SOCIAL CARE,ADVANCE HEALTH CARE (UK) LTD,29/06/2021,"2,942.82",6541-Domiciliary Care,THIRD PARTY PAYMENTS,PRIVATE CONTRACTOR,REVENUE
Walsall Council,http://opendatacommunities.org/id/metropolitan-district-council/walsall ,WC127-352,30.06.2021,ADULT SOCIAL CARE,ADVANCE HEALTH CARE (UK) LTD,29/06/2021,"1,133.29",6541-Domiciliary Care,THIRD PARTY PAYMENTS,PRIVATE CONTRACTOR,REVENUE
Walsall Council,http://opendatacommunities.org/id/metropolitan-district-council/walsall ,WC127-353,30.06.2021,ADULT SOCIAL CARE,ADVANCE HEALTH CARE (UK) LTD,29/06/2021,"4,998.06",6541-Domiciliary Care,THIRD PARTY PAYMENTS,PRIVATE CONTRACTOR,REVENUE
Walsall Council,http://opendatacommunities.org/id/metropolitan-district-council/walsall ,WC127-354,30.06.2021,ADULT SOCIAL CARE,ADVANCE HEALTH CARE (UK) LTD,29/06/2021,"2,942.82",6541-Domiciliary Care,THIRD PARTY PAYMENTS,PRIVATE CONTRACTOR,REVENUE
Walsall Council,http://opendatacommunities.org/id/metropolitan-district-council/walsall ,WC127-355,30.06.2021,ADULT SOCIAL CARE,ADVANCE HEALTH CARE (UK) LTD,29/06/2021,"3,431.39",6541-Domiciliary Care,THIRD PARTY PAYMENTS,PRIVATE CONTRACTOR,REVENUE
Walsall Council,http://opendatacommunities.org/id/metropolitan-district-council/walsall ,WC127-356,30.06.2021,ADULT SOCIAL CARE,ADVANCE HEALTH CARE (UK) LTD,29/06/2021,"3,431.39",6541-Domiciliary Care,THIRD PARTY PAYMENTS,PRIVATE CONTRACTOR,REVENUE
Walsall Council,http://opendatacommunities.org/id/metropolitan-district-council/walsall ,WC127-357,30.06.2021,ADULT SOCIAL CARE,ADVANCE HEALTH CARE (UK) LTD,29/06/2021,"2,615.60",6541-Domiciliary Care,THIRD PARTY PAYMENTS,PRIVATE CONTRACTOR,REVENUE
Walsall Council,http://opendatacommunities.org/id/metropolitan-district-council/walsall ,WC127-358,30.06.2021,ADULT SOCIAL CARE,ADVANCE HEALTH CARE (UK) LTD,29/06/2021,"4,891.80",6541-Domiciliary Care,THIRD PARTY PAYMENTS,PRIVATE CONTRACTOR,REVENUE
Walsall Council,http://opendatacommunities.org/id/metropolitan-district-council/walsall ,WC127-359,30.06.2021,ADULT SOCIAL CARE,ADVANCE HEALTH CARE (UK) LTD,29/06/2021,"2,615.76",6541-Domiciliary Care,THIRD PARTY PAYMENTS,PRIVATE CONTRACTOR,REVENUE
Walsall Council,http://opendatacommunities.org/id/metropolitan-district-council/walsall ,WC127-360,30.06.2021,ADULT SOCIAL CARE,ADVANCE HEALTH CARE (UK) LTD,29/06/2021,747.36,6541-Domiciliary Care,THIRD PARTY PAYMENTS,PRIVATE CONTRACTOR,REVENUE
Walsall Council,http://opendatacommunities.org/id/metropolitan-district-council/walsall ,WC127-361,30.06.2021,ADULT SOCIAL CARE,ADVANCE HEALTH CARE (UK) LTD,29/06/2021,"1,116.28",6541-Domiciliary Care,THIRD PARTY PAYMENTS,PRIVATE CONTRACTOR,REVENUE
Walsall Council,http://opendatacommunities.org/id/metropolitan-district-council/walsall ,WC127-362,30.06.2021,ADULT SOCIAL CARE,ADVANCE HEALTH CARE (UK) LTD,29/06/2021,"1,742.94",6541-Domiciliary Care,THIRD PARTY PAYMENTS,PRIVATE CONTRACTOR,REVENUE
Walsall Council,http://opendatacommunities.org/id/metropolitan-district-council/walsall ,WC127-363,30.06.2021,ADULT SOCIAL CARE,ADVANCE HEALTH CARE (UK) LTD,29/06/2021,"3,921.88",6541-Domiciliary Care,THIRD PARTY PAYMENTS,PRIVATE CONTRACTOR,REVENUE
Walsall Council,http://opendatacommunities.org/id/metropolitan-district-council/walsall ,WC127-364,30.06.2021,ADULT SOCIAL CARE,ADVANCE HEALTH CARE (UK) LTD,29/06/2021,"2,925.36",6541-Domiciliary Care,THIRD PARTY PAYMENTS,PRIVATE CONTRACTOR,REVENUE
Walsall Council,http://opendatacommunities.org/id/metropolitan-district-council/walsall ,WC127-365,30.06.2021,ADULT SOCIAL CARE,ADVANCE HEALTH CARE (UK) LTD,29/06/2021,"1,992.82",6541-Domiciliary Care,THIRD PARTY PAYMENTS,PRIVATE CONTRACTOR,REVENUE
Walsall Council,http://opendatacommunities.org/id/metropolitan-district-council/walsall ,WC127-366,30.06.2021,ADULT SOCIAL CARE,ADVANCE HEALTH CARE (UK) LTD,29/06/2021,"3,485.88",6541-Domiciliary Care,THIRD PARTY PAYMENTS,PRIVATE CONTRACTOR,REVENUE
Walsall Council,http://opendatacommunities.org/id/metropolitan-district-council/walsall ,WC127-367,30.06.2021,ADULT SOCIAL CARE,ADVANCE HEALTH CARE (UK) LTD,29/06/2021,933.71,6541-Domiciliary Care,THIRD PARTY PAYMENTS,PRIVATE CONTRACTOR,REVENUE
Walsall Council,http://opendatacommunities.org/id/metropolitan-district-council/walsall ,WC127-368,30.06.2021,ADULT SOCIAL CARE,ADVANCE HEALTH CARE (UK) LTD,29/06/2021,"1,918.80",6541-Domiciliary Care,THIRD PARTY PAYMENTS,PRIVATE CONTRACTOR,REVENUE
Walsall Council,http://opendatacommunities.org/id/metropolitan-district-council/walsall ,WC127-369,30.06.2021,ADULT SOCIAL CARE,ADVANCE HEALTH CARE (UK) LTD,29/06/2021,280.26,6541-Domiciliary Care,THIRD PARTY PAYMENTS,PRIVATE CONTRACTOR,REVENUE
Walsall Council,http://opendatacommunities.org/id/metropolitan-district-council/walsall ,WC127-370,30.06.2021,ADULT SOCIAL CARE,ADVANCE HEALTH CARE (UK) LTD,29/06/2021,"4,956.35",6541-Domiciliary Care,THIRD PARTY PAYMENTS,PRIVATE CONTRACTOR,REVENUE
Walsall Council,http://opendatacommunities.org/id/metropolitan-district-council/walsall ,WC127-371,30.06.2021,ADULT SOCIAL CARE,ADVANCE HEALTH CARE (UK) LTD,29/06/2021,"1,729.92",6541-Domiciliary Care,THIRD PARTY PAYMENTS,PRIVATE CONTRACTOR,REVENUE
Walsall Council,http://opendatacommunities.org/id/metropolitan-district-council/walsall ,WC127-372,30.06.2021,ADULT SOCIAL CARE,ADVANCE HEALTH CARE (UK) LTD,29/06/2021,"4,577.88",6541-Domiciliary Care,THIRD PARTY PAYMENTS,PRIVATE CONTRACTOR,REVENUE
Walsall Council,http://opendatacommunities.org/id/metropolitan-district-council/walsall ,WC127-373,30.06.2021,ADULT SOCIAL CARE,ADVANCE HEALTH CARE (UK) LTD,29/06/2021,272.41,6541-Domiciliary Care,THIRD PARTY PAYMENTS,PRIVATE CONTRACTOR,REVENUE
Walsall Council,http://opendatacommunities.org/id/metropolitan-district-council/walsall ,WC127-374,30.06.2021,ADULT SOCIAL CARE,ADVANCE HEALTH CARE (UK) LTD,29/06/2021,"3,921.88",6541-Domiciliary Care,THIRD PARTY PAYMENTS,PRIVATE CONTRACTOR,REVENUE
Walsall Council,http://opendatacommunities.org/id/metropolitan-district-council/walsall ,WC127-375,30.06.2021,ADULT SOCIAL CARE,ADVANCE HEALTH CARE (UK) LTD,29/06/2021,"3,921.88",6541-Domiciliary Care,THIRD PARTY PAYMENTS,PRIVATE CONTRACTOR,REVENUE
Walsall Council,http://opendatacommunities.org/id/metropolitan-district-council/walsall ,WC127-376,30.06.2021,ADULT SOCIAL CARE,ADVANCE HEALTH CARE (UK) LTD,29/06/2021,"4,357.35",6541-Domiciliary Care,THIRD PARTY PAYMENTS,PRIVATE CONTRACTOR,REVENUE
Walsall Council,http://opendatacommunities.org/id/metropolitan-district-council/walsall ,WC127-377,30.06.2021,ADULT SOCIAL CARE,ADVANCE HEALTH CARE (UK) LTD,29/06/2021,"3,485.88",6541-Domiciliary Care,THIRD PARTY PAYMENTS,PRIVATE CONTRACTOR,REVENUE
Walsall Council,http://opendatacommunities.org/id/metropolitan-district-council/walsall ,WC127-378,30.06.2021,ADULT SOCIAL CARE,ADVANCE HEALTH CARE (UK) LTD,29/06/2021,726.49,6541-Domiciliary Care,THIRD PARTY PAYMENTS,PRIVATE CONTRACTOR,REVENUE
Walsall Council,http://opendatacommunities.org/id/metropolitan-district-council/walsall ,WC127-379,30.06.2021,ADULT SOCIAL CARE,ADVANCE HEALTH CARE (UK) LTD,29/06/2021,"4,357.80",6541-Domiciliary Care,THIRD PARTY PAYMENTS,PRIVATE CONTRACTOR,REVENUE
Walsall Council,http://opendatacommunities.org/id/metropolitan-district-council/walsall ,WC127-380,30.06.2021,ADULT SOCIAL CARE,ADVANCE HEALTH CARE (UK) LTD,29/06/2021,"3,485.88",6541-Domiciliary Care,THIRD PARTY PAYMENTS,PRIVATE CONTRACTOR,REVENUE
Walsall Council,http://opendatacommunities.org/id/metropolitan-district-council/walsall ,WC127-381,30.06.2021,ADULT SOCIAL CARE,ADVANCE HEALTH CARE (UK) LTD,29/06/2021,653.75,6541-Domiciliary Care,THIRD PARTY PAYMENTS,PRIVATE CONTRACTOR,REVENUE
Walsall Council,http://opendatacommunities.org/id/metropolitan-district-council/walsall ,WC127-382,30.06.2021,ADULT SOCIAL CARE,ADVANCE HEALTH CARE (UK) LTD,29/06/2021,436.00,6541-Domiciliary Care,THIRD PARTY PAYMENTS,PRIVATE CONTRACTOR,REVENUE
Walsall Council,http://opendatacommunities.org/id/metropolitan-district-council/walsall ,WC127-383,30.06.2021,ADULT SOCIAL CARE,ADVANCE HEALTH CARE (UK) LTD,29/06/2021,"1,401.44",6541-Domiciliary Care,THIRD PARTY PAYMENTS,PRIVATE CONTRACTOR,REVENUE
Walsall Council,http://opendatacommunities.org/id/metropolitan-district-council/walsall ,WC127-384,30.06.2021,ADULT SOCIAL CARE,ADVANCE HEALTH CARE (UK) LTD,29/06/2021,326.70,6541-Domiciliary Care,THIRD PARTY PAYMENTS,PRIVATE CONTRACTOR,REVENUE
Walsall Council,http://opendatacommunities.org/id/metropolitan-district-council/walsall ,WC127-385,30.06.2021,ADULT SOCIAL CARE,ADVANCE HEALTH CARE (UK) LTD,29/06/2021,"2,541.60",6541-Domiciliary Care,THIRD PARTY PAYMENTS,PRIVATE CONTRACTOR,REVENUE
Walsall Council,http://opendatacommunities.org/id/metropolitan-district-council/walsall ,WC127-386,30.06.2021,ADULT SOCIAL CARE,ADVANCE HEALTH CARE (UK) LTD,29/06/2021,"2,615.60",6541-Domiciliary Care,THIRD PARTY PAYMENTS,PRIVATE CONTRACTOR,REVENUE
Walsall Council,http://opendatacommunities.org/id/metropolitan-district-council/walsall ,WC127-387,30.06.2021,ADULT SOCIAL CARE,ADVANCE HEALTH CARE (UK) LTD,29/06/2021,"1,580.42",6541-Domiciliary Care,THIRD PARTY PAYMENTS,PRIVATE CONTRACTOR,REVENUE
Walsall Council,http://opendatacommunities.org/id/metropolitan-district-council/walsall ,WC127-388,30.06.2021,ADULT SOCIAL CARE,ADVANCE HEALTH CARE (UK) LTD,29/06/2021,"3,020.67",6541-Domiciliary Care,THIRD PARTY PAYMENTS,PRIVATE CONTRACTOR,REVENUE
Walsall Council,http://opendatacommunities.org/id/metropolitan-district-council/walsall ,WC127-389,30.06.2021,ADULT SOCIAL CARE,ADVANCE HEALTH CARE (UK) LTD,29/06/2021,"3,003.45",6541-Domiciliary Care,THIRD PARTY PAYMENTS,PRIVATE CONTRACTOR,REVENUE
Walsall Council,http://opendatacommunities.org/id/metropolitan-district-council/walsall ,WC127-390,30.06.2021,ADULT SOCIAL CARE,ADVANCE HEALTH CARE (UK) LTD,29/06/2021,"2,429.09",6541-Domiciliary Care,THIRD PARTY PAYMENTS,PRIVATE CONTRACTOR,REVENUE
Walsall Council,http://opendatacommunities.org/id/metropolitan-district-council/walsall ,WC127-391,30.06.2021,ADULT SOCIAL CARE,ADVANCE HEALTH CARE (UK) LTD,29/06/2021,311.52,6541-Domiciliary Care,THIRD PARTY PAYMENTS,PRIVATE CONTRACTOR,REVENUE
Walsall Council,http://opendatacommunities.org/id/metropolitan-district-council/walsall ,WC127-392,30.06.2021,ADULT SOCIAL CARE,ADVANCE HEALTH CARE (UK) LTD,29/06/2021,"1,089.75",6541-Domiciliary Care,THIRD PARTY PAYMENTS,PRIVATE CONTRACTOR,REVENUE
Walsall Council,http://opendatacommunities.org/id/metropolitan-district-council/walsall ,WC127-393,30.06.2021,ADULT SOCIAL CARE,ADVANCE HEALTH CARE (UK) LTD,29/06/2021,996.41,6541-Domiciliary Care,THIRD PARTY PAYMENTS,PRIVATE CONTRACTOR,REVENUE
Walsall Council,http://opendatacommunities.org/id/metropolitan-district-council/walsall ,WC127-394,30.06.2021,ADULT SOCIAL CARE,ADVANCE HEALTH CARE (UK) LTD,29/06/2021,436.00,6541-Domiciliary Care,THIRD PARTY PAYMENTS,PRIVATE CONTRACTOR,REVENUE
Walsall Council,http://opendatacommunities.org/id/metropolitan-district-council/walsall ,WC127-395,30.06.2021,ADULT SOCIAL CARE,ADVANCE HEALTH CARE (UK) LTD,29/06/2021,"2,614.41",6541-Domiciliary Care,THIRD PARTY PAYMENTS,PRIVATE CONTRACTOR,REVENUE
Walsall Council,http://opendatacommunities.org/id/metropolitan-district-council/walsall ,WC127-396,30.06.2021,ADULT SOCIAL CARE,ADVANCE HEALTH CARE (UK) LTD,29/06/2021,"1,307.47",6541-Domiciliary Care,THIRD PARTY PAYMENTS,PRIVATE CONTRACTOR,REVENUE
Walsall Council,http://opendatacommunities.org/id/metropolitan-district-council/walsall ,WC127-397,30.06.2021,ADULT SOCIAL CARE,ADVANCE HEALTH CARE (UK) LTD,29/06/2021,436.24,6541-Domiciliary Care,THIRD PARTY PAYMENTS,PRIVATE CONTRACTOR,REVENUE
Walsall Council,http://opendatacommunities.org/id/metropolitan-district-council/walsall ,WC127-398,30.06.2021,ADULT SOCIAL CARE,ADVANCE HEALTH CARE (UK) LTD,29/06/2021,"1,744.00",6541-Domiciliary Care,THIRD PARTY PAYMENTS,PRIVATE CONTRACTOR,REVENUE
Walsall Council,http://opendatacommunities.org/id/metropolitan-district-council/walsall ,WC127-399,30.06.2021,ADULT SOCIAL CARE,ADVANCE HEALTH CARE (UK) LTD,29/06/2021,420.66,6541-Domiciliary Care,THIRD PARTY PAYMENTS,PRIVATE CONTRACTOR,REVENUE
Walsall Council,http://opendatacommunities.org/id/metropolitan-district-council/walsall ,WC127-400,30.06.2021,ADULT SOCIAL CARE,ADVANCE HEALTH CARE (UK) LTD,29/06/2021,"3,431.39",6541-Domiciliary Care,THIRD PARTY PAYMENTS,PRIVATE CONTRACTOR,REVENUE
Walsall Council,http://opendatacommunities.org/id/metropolitan-district-council/walsall ,WC127-401,30.06.2021,ADULT SOCIAL CARE,ADVANCE HEALTH CARE (UK) LTD,29/06/2021,"3,431.39",6541-Domiciliary Care,THIRD PARTY PAYMENTS,PRIVATE CONTRACTOR,REVENUE
Walsall Council,http://opendatacommunities.org/id/metropolitan-district-council/walsall ,WC127-402,30.06.2021,ADULT SOCIAL CARE,ADVANCE HEALTH CARE (UK) LTD,29/06/2021,895.62,6541-Domiciliary Care,THIRD PARTY PAYMENTS,PRIVATE CONTRACTOR,REVENUE
Walsall Council,http://opendatacommunities.org/id/metropolitan-district-council/walsall ,WC127-403,30.06.2021,ADULT SOCIAL CARE,ADVANCE HEALTH CARE (UK) LTD,29/06/2021,653.90,6541-Domiciliary Care,THIRD PARTY PAYMENTS,PRIVATE CONTRACTOR,REVENUE
Walsall Council,http://opendatacommunities.org/id/metropolitan-district-council/walsall ,WC127-404,30.06.2021,ADULT SOCIAL CARE,ADVANCE HEALTH CARE (UK) LTD,29/06/2021,"2,615.60",6541-Domiciliary Care,THIRD PARTY PAYMENTS,PRIVATE CONTRACTOR,REVENUE
Walsall Council,http://opendatacommunities.org/id/metropolitan-district-council/walsall ,WC127-405,30.06.2021,ADULT SOCIAL CARE,ADVANCE HEALTH CARE (UK) LTD,29/06/2021,"1,557.04",6541-Domiciliary Care,THIRD PARTY PAYMENTS,PRIVATE CONTRACTOR,REVENUE
Walsall Council,http://opendatacommunities.org/id/metropolitan-district-council/walsall ,WC127-406,30.06.2021,ADULT SOCIAL CARE,ADVANCE HEALTH CARE (UK) LTD,29/06/2021,482.98,6541-Domiciliary Care,THIRD PARTY PAYMENTS,PRIVATE CONTRACTOR,REVENUE
Walsall Council,http://opendatacommunities.org/id/metropolitan-district-council/walsall ,WC127-407,30.06.2021,ADULT SOCIAL CARE,ADVANCE HEALTH CARE (UK) LTD,29/06/2021,"1,992.96",6541-Domiciliary Care,THIRD PARTY PAYMENTS,PRIVATE CONTRACTOR,REVENUE
Walsall Council,http://opendatacommunities.org/id/metropolitan-district-council/walsall ,WC127-408,30.06.2021,ADULT SOCIAL CARE,ADVANCE HEALTH CARE (UK) LTD,29/06/2021,"1,089.90",6541-Domiciliary Care,THIRD PARTY PAYMENTS,PRIVATE CONTRACTOR,REVENUE
Walsall Council,http://opendatacommunities.org/id/metropolitan-district-council/walsall ,WC127-409,30.06.2021,ADULT SOCIAL CARE,ADVANCE HEALTH CARE (UK) LTD,29/06/2021,653.75,6541-Domiciliary Care,THIRD PARTY PAYMENTS,PRIVATE CONTRACTOR,REVENUE
Walsall Council,http://opendatacommunities.org/id/metropolitan-district-council/walsall ,WC127-410,30.06.2021,ADULT SOCIAL CARE,ADVANCE HEALTH CARE (UK) LTD,29/06/2021,"3,050.41",6541-Domiciliary Care,THIRD PARTY PAYMENTS,PRIVATE CONTRACTOR,REVENUE
Walsall Council,http://opendatacommunities.org/id/metropolitan-district-council/walsall ,WC127-411,30.06.2021,ADULT SOCIAL CARE,ADVANCE HEALTH CARE (UK) LTD,29/06/2021,436.00,6541-Domiciliary Care,THIRD PARTY PAYMENTS,PRIVATE CONTRACTOR,REVENUE
Walsall Council,http://opendatacommunities.org/id/metropolitan-district-council/walsall ,WC127-412,30.06.2021,ADULT SOCIAL CARE,ADVANCE HEALTH CARE (UK) LTD,29/06/2021,"1,462.45",6541-Domiciliary Care,THIRD PARTY PAYMENTS,PRIVATE CONTRACTOR,REVENUE
Walsall Council,http://opendatacommunities.org/id/metropolitan-district-council/walsall ,WC127-413,30.06.2021,ADULT SOCIAL CARE,ADVANCE HEALTH CARE (UK) LTD,29/06/2021,"1,961.75",6541-Domiciliary Care,THIRD PARTY PAYMENTS,PRIVATE CONTRACTOR,REVENUE
Walsall Council,http://opendatacommunities.org/id/metropolitan-district-council/walsall ,WC127-414,30.06.2021,ADULT SOCIAL CARE,ADVANCE HEALTH CARE (UK) LTD,29/06/2021,622.45,6541-Domiciliary Care,THIRD PARTY PAYMENTS,PRIVATE CONTRACTOR,REVENUE
Walsall Council,http://opendatacommunities.org/id/metropolitan-district-council/walsall ,WC127-415,30.06.2021,ADULT SOCIAL CARE,ADVANCE HEALTH CARE (UK) LTD,29/06/2021,436.00,6541-Domiciliary Care,THIRD PARTY PAYMENTS,PRIVATE CONTRACTOR,REVENUE
Walsall Council,http://opendatacommunities.org/id/metropolitan-district-council/walsall ,WC127-416,30.06.2021,ADULT SOCIAL CARE,ADVANCE HEALTH CARE (UK) LTD,29/06/2021,"1,308.00",6541-Domiciliary Care,THIRD PARTY PAYMENTS,PRIVATE CONTRACTOR,REVENUE
Walsall Council,http://opendatacommunities.org/id/metropolitan-district-council/walsall ,WC127-417,30.06.2021,ADULT SOCIAL CARE,ADVANCE HEALTH CARE (UK) LTD,29/06/2021,"1,442.18",6541-Domiciliary Care,THIRD PARTY PAYMENTS,PRIVATE CONTRACTOR,REVENUE
Walsall Council,http://opendatacommunities.org/id/metropolitan-district-council/walsall ,WC127-418,30.06.2021,ADULT SOCIAL CARE,ADVANCE HEALTH CARE (UK) LTD,29/06/2021,763.42,6541-Domiciliary Care,THIRD PARTY PAYMENTS,PRIVATE CONTRACTOR,REVENUE
Walsall Council,http://opendatacommunities.org/id/metropolitan-district-council/walsall ,WC127-419,30.06.2021,ADULT SOCIAL CARE,ADVANCE HEALTH CARE (UK) LTD,29/06/2021,290.49,6541-Domiciliary Care,THIRD PARTY PAYMENTS,PRIVATE CONTRACTOR,REVENUE
Walsall Council,http://opendatacommunities.org/id/metropolitan-district-council/walsall ,WC127-420,30.06.2021,ADULT SOCIAL CARE,ADVANCE HEALTH CARE (UK) LTD,29/06/2021,665.93,6541-Domiciliary Care,THIRD PARTY PAYMENTS,PRIVATE CONTRACTOR,REVENUE
Walsall Council,http://opendatacommunities.org/id/metropolitan-district-council/walsall ,WC127-421,30.06.2021,ADULT SOCIAL CARE,ADVANCE HEALTH CARE (UK) LTD,29/06/2021,"1,404.91",6541-Domiciliary Care,THIRD PARTY PAYMENTS,PRIVATE CONTRACTOR,REVENUE
Walsall Council,http://opendatacommunities.org/id/metropolitan-district-council/walsall ,WC127-422,30.06.2021,ADULT SOCIAL CARE,ADVANCE HEALTH CARE (UK) LTD,29/06/2021,"3,610.44",6541-Domiciliary Care,THIRD PARTY PAYMENTS,PRIVATE CONTRACTOR,REVENUE
Walsall Council,http://opendatacommunities.org/id/metropolitan-district-council/walsall ,WC127-423,30.06.2021,ADULT SOCIAL CARE,ADVANCE HEALTH CARE (UK) LTD,29/06/2021,436.24,6541-Domiciliary Care,THIRD PARTY PAYMENTS,PRIVATE CONTRACTOR,REVENUE
Walsall Council,http://opendatacommunities.org/id/metropolitan-district-council/walsall ,WC127-424,30.06.2021,ADULT SOCIAL CARE,ADVANCE HEALTH CARE (UK) LTD,29/06/2021,"2,453.50",6541-Domiciliary Care,THIRD PARTY PAYMENTS,PRIVATE CONTRACTOR,REVENUE
Walsall Council,http://opendatacommunities.org/id/metropolitan-district-council/walsall ,WC127-425,30.06.2021,ADULT SOCIAL CARE,ADVANCE HEALTH CARE (UK) LTD,29/06/2021,"3,540.23",6541-Domiciliary Care,THIRD PARTY PAYMENTS,PRIVATE CONTRACTOR,REVENUE
Walsall Council,http://opendatacommunities.org/id/metropolitan-district-council/walsall ,WC127-426,30.06.2021,ADULT SOCIAL CARE,ADVANCE HEALTH CARE (UK) LTD,29/06/2021,272.65,6541-Domiciliary Care,THIRD PARTY PAYMENTS,PRIVATE CONTRACTOR,REVENUE
Walsall Council,http://opendatacommunities.org/id/metropolitan-district-council/walsall ,WC127-427,30.06.2021,ADULT SOCIAL CARE,ADVANCE HEALTH CARE (UK) LTD,29/06/2021,"3,049.92",6541-Domiciliary Care,THIRD PARTY PAYMENTS,PRIVATE CONTRACTOR,REVENUE
Walsall Council,http://opendatacommunities.org/id/metropolitan-district-council/walsall ,WC127-428,30.06.2021,ADULT SOCIAL CARE,ADVANCE HEALTH CARE (UK) LTD,29/06/2021,"2,179.72",6541-Domiciliary Care,THIRD PARTY PAYMENTS,PRIVATE CONTRACTOR,REVENUE
Walsall Council,http://opendatacommunities.org/id/metropolitan-district-council/walsall ,WC127-429,30.06.2021,ADULT SOCIAL CARE,ADVANCE HEALTH CARE (UK) LTD,29/06/2021,895.62,6541-Domiciliary Care,THIRD PARTY PAYMENTS,PRIVATE CONTRACTOR,REVENUE
Walsall Council,http://opendatacommunities.org/id/metropolitan-district-council/walsall ,WC127-430,30.06.2021,ADULT SOCIAL CARE,ADVANCE HEALTH CARE (UK) LTD,29/06/2021,451.34,6541-Domiciliary Care,THIRD PARTY PAYMENTS,PRIVATE CONTRACTOR,REVENUE
Walsall Council,http://opendatacommunities.org/id/metropolitan-district-council/walsall ,WC127-431,30.06.2021,ADULT SOCIAL CARE,ADVANCE HEALTH CARE (UK) LTD,29/06/2021,443.77,6541-Domiciliary Care,THIRD PARTY PAYMENTS,PRIVATE CONTRACTOR,REVENUE
Walsall Council,http://opendatacommunities.org/id/metropolitan-district-council/walsall ,WC127-432,30.06.2021,ADULT SOCIAL CARE,ADVANCE HEALTH CARE (UK) LTD,29/06/2021,529.72,6541-Domiciliary Care,THIRD PARTY PAYMENTS,PRIVATE CONTRACTOR,REVENUE
Walsall Council,http://opendatacommunities.org/id/metropolitan-district-council/walsall ,WC127-433,30.06.2021,ADULT SOCIAL CARE,ADVANCE HEALTH CARE (UK) LTD,29/06/2021,742.30,6541-Domiciliary Care,THIRD PARTY PAYMENTS,PRIVATE CONTRACTOR,REVENUE
Walsall Council,http://opendatacommunities.org/id/metropolitan-district-council/walsall ,WC127-434,30.06.2021,ADULT SOCIAL CARE,ADVANCE HEALTH CARE (UK) LTD,29/06/2021,"1,089.75",6541-Domiciliary Care,THIRD PARTY PAYMENTS,PRIVATE CONTRACTOR,REVENUE
Walsall Council,http://opendatacommunities.org/id/metropolitan-district-council/walsall ,WC127-435,30.06.2021,ADULT SOCIAL CARE,ADVANCE HEALTH CARE (UK) LTD,29/06/2021,"1,224.73",6541-Domiciliary Care,THIRD PARTY PAYMENTS,PRIVATE CONTRACTOR,REVENUE
Walsall Council,http://opendatacommunities.org/id/metropolitan-district-council/walsall ,WC127-436,30.06.2021,ADULT SOCIAL CARE,ADVANCE HEALTH CARE (UK) LTD,29/06/2021,"1,089.75",6541-Domiciliary Care,THIRD PARTY PAYMENTS,PRIVATE CONTRACTOR,REVENUE
Walsall Council,http://opendatacommunities.org/id/metropolitan-district-council/walsall ,WC127-437,30.06.2021,ADULT SOCIAL CARE,ADVANCE HEALTH CARE (UK) LTD,29/06/2021,"2,451.04",6541-Domiciliary Care,THIRD PARTY PAYMENTS,PRIVATE CONTRACTOR,REVENUE
Walsall Council,http://opendatacommunities.org/id/metropolitan-district-council/walsall ,WC127-438,30.06.2021,ADULT SOCIAL CARE,ADVANCE HEALTH CARE (UK) LTD,29/06/2021,"1,907.42",6541-Domiciliary Care,THIRD PARTY PAYMENTS,PRIVATE CONTRACTOR,REVENUE
Walsall Council,http://opendatacommunities.org/id/metropolitan-district-council/walsall ,WC127-439,30.06.2021,ADULT SOCIAL CARE,ADVANCE HEALTH CARE (UK) LTD,29/06/2021,"2,942.82",6541-Domiciliary Care,THIRD PARTY PAYMENTS,PRIVATE CONTRACTOR,REVENUE
Walsall Council,http://opendatacommunities.org/id/metropolitan-district-council/walsall ,WC127-440,30.06.2021,ADULT SOCIAL CARE,ADVANCE HEALTH CARE (UK) LTD,29/06/2021,272.65,6541-Domiciliary Care,THIRD PARTY PAYMENTS,PRIVATE CONTRACTOR,REVENUE
Walsall Council,http://opendatacommunities.org/id/metropolitan-district-council/walsall ,WC127-441,30.06.2021,ADULT SOCIAL CARE,ADVANCE HEALTH CARE (UK) LTD,29/06/2021,490.49,6541-Domiciliary Care,THIRD PARTY PAYMENTS,PRIVATE CONTRACTOR,REVENUE
Walsall Council,http://opendatacommunities.org/id/metropolitan-district-council/walsall ,WC127-442,30.06.2021,ADULT SOCIAL CARE,ADVANCE HEALTH CARE (UK) LTD,29/06/2021,436.00,6541-Domiciliary Care,THIRD PARTY PAYMENTS,PRIVATE CONTRACTOR,REVENUE
Walsall Council,http://opendatacommunities.org/id/metropolitan-district-council/walsall ,WC127-443,30.06.2021,ADULT SOCIAL CARE,ADVANCE HEALTH CARE (UK) LTD,29/06/2021,653.75,6541-Domiciliary Care,THIRD PARTY PAYMENTS,PRIVATE CONTRACTOR,REVENUE
Walsall Council,http://opendatacommunities.org/id/metropolitan-district-council/walsall ,WC127-444,30.06.2021,ADULT SOCIAL CARE,ADVANCE HEALTH CARE (UK) LTD,29/06/2021,726.49,6541-Domiciliary Care,THIRD PARTY PAYMENTS,PRIVATE CONTRACTOR,REVENUE
Walsall Council,http://opendatacommunities.org/id/metropolitan-district-council/walsall ,WC127-445,30.06.2021,ADULT SOCIAL CARE,ADVANCE HEALTH CARE (UK) LTD,29/06/2021,872.00,6541-Domiciliary Care,THIRD PARTY PAYMENTS,PRIVATE CONTRACTOR,REVENUE
Walsall Council,http://opendatacommunities.org/id/metropolitan-district-council/walsall ,WC127-446,30.06.2021,ADULT SOCIAL CARE,ADVANCE HEALTH CARE (UK) LTD,29/06/2021,"2,179.47",6541-Domiciliary Care,THIRD PARTY PAYMENTS,PRIVATE CONTRACTOR,REVENUE
Walsall Council,http://opendatacommunities.org/id/metropolitan-district-council/walsall ,WC127-447,30.06.2021,ADULT SOCIAL CARE,ADVANCE HEALTH CARE (UK) LTD,29/06/2021,"1,868.41",6541-Domiciliary Care,THIRD PARTY PAYMENTS,PRIVATE CONTRACTOR,REVENUE
Walsall Council,http://opendatacommunities.org/id/metropolitan-district-council/walsall ,WC127-448,30.06.2021,ADULT SOCIAL CARE,ADVANCE HEALTH CARE (UK) LTD,29/06/2021,"5,229.35",6541-Domiciliary Care,THIRD PARTY PAYMENTS,PRIVATE CONTRACTOR,REVENUE
Walsall Council,http://opendatacommunities.org/id/metropolitan-district-council/walsall ,WC127-449,30.06.2021,ADULT SOCIAL CARE,ADVANCE HEALTH CARE (UK) LTD,29/06/2021,980.35,6541-Domiciliary Care,THIRD PARTY PAYMENTS,PRIVATE CONTRACTOR,REVENUE
Walsall Council,http://opendatacommunities.org/id/metropolitan-district-council/walsall ,WC127-450,30.06.2021,ADULT SOCIAL CARE,ADVANCE HEALTH CARE (UK) LTD,29/06/2021,"1,161.96",6541-Domiciliary Care,THIRD PARTY PAYMENTS,PRIVATE CONTRACTOR,REVENUE
Walsall Council,http://opendatacommunities.org/id/metropolitan-district-council/walsall ,WC127-451,30.06.2021,ADULT SOCIAL CARE,ADVANCE HEALTH CARE (UK) LTD,29/06/2021,"2,662.81",6541-Domiciliary Care,THIRD PARTY PAYMENTS,PRIVATE CONTRACTOR,REVENUE
Walsall Council,http://opendatacommunities.org/id/metropolitan-district-council/walsall ,WC127-452,30.06.2021,ADULT SOCIAL CARE,ADVANCE HEALTH CARE (UK) LTD,29/06/2021,"2,942.82",6541-Domiciliary Care,THIRD PARTY PAYMENTS,PRIVATE CONTRACTOR,REVENUE
Walsall Council,http://opendatacommunities.org/id/metropolitan-district-council/walsall ,WC127-453,30.06.2021,ADULT SOCIAL CARE,ADVANCE HEALTH CARE (UK) LTD,29/06/2021,"5,231.36",6541-Domiciliary Care,THIRD PARTY PAYMENTS,PRIVATE CONTRACTOR,REVENUE
Walsall Council,http://opendatacommunities.org/id/metropolitan-district-council/walsall ,WC127-454,30.06.2021,ADULT SOCIAL CARE,ADVANCE HEALTH CARE (UK) LTD,29/06/2021,"1,961.70",6541-Domiciliary Care,THIRD PARTY PAYMENTS,PRIVATE CONTRACTOR,REVENUE
Walsall Council,http://opendatacommunities.org/id/metropolitan-district-council/walsall ,WC127-455,30.06.2021,ADULT SOCIAL CARE,ADVANCE HEALTH CARE (UK) LTD,29/06/2021,"2,668.91",6541-Domiciliary Care,THIRD PARTY PAYMENTS,PRIVATE CONTRACTOR,REVENUE
Walsall Council,http://opendatacommunities.org/id/metropolitan-district-council/walsall ,WC127-456,30.06.2021,ADULT SOCIAL CARE,ADVANCE HEALTH CARE (UK) LTD,29/06/2021,981.08,6541-Domiciliary Care,THIRD PARTY PAYMENTS,PRIVATE CONTRACTOR,REVENUE
Walsall Council,http://opendatacommunities.org/id/metropolitan-district-council/walsall ,WC127-457,30.06.2021,ADULT SOCIAL CARE,ADVANCE HEALTH CARE (UK) LTD,29/06/2021,453.71,6541-Domiciliary Care,THIRD PARTY PAYMENTS,PRIVATE CONTRACTOR,REVENUE
Walsall Council,http://opendatacommunities.org/id/metropolitan-district-council/walsall ,WC127-458,30.06.2021,ADULT SOCIAL CARE,ADVANCE HEALTH CARE (UK) LTD,29/06/2021,"2,942.82",6541-Domiciliary Care,THIRD PARTY PAYMENTS,PRIVATE CONTRACTOR,REVENUE
Walsall Council,http://opendatacommunities.org/id/metropolitan-district-council/walsall ,WC127-459,30.06.2021,ADULT SOCIAL CARE,ADVANCE HEALTH CARE (UK) LTD,29/06/2021,840.84,6541-Domiciliary Care,THIRD PARTY PAYMENTS,PRIVATE CONTRACTOR,REVENUE
Walsall Council,http://opendatacommunities.org/id/metropolitan-district-council/walsall ,WC127-460,30.06.2021,ADULT SOCIAL CARE,ADVANCE HEALTH CARE (UK) LTD,29/06/2021,490.49,6541-Domiciliary Care,THIRD PARTY PAYMENTS,PRIVATE CONTRACTOR,REVENUE
Walsall Council,http://opendatacommunities.org/id/metropolitan-district-council/walsall ,WC127-461,30.06.2021,ADULT SOCIAL CARE,ADVANCE HEALTH CARE (UK) LTD,29/06/2021,435.96,6541-Domiciliary Care,THIRD PARTY PAYMENTS,PRIVATE CONTRACTOR,REVENUE
Walsall Council,http://opendatacommunities.org/id/metropolitan-district-council/walsall ,WC127-462,30.06.2021,ADULT SOCIAL CARE,ADVANCE HEALTH CARE (UK) LTD,29/06/2021,763.28,6541-Domiciliary Care,THIRD PARTY PAYMENTS,PRIVATE CONTRACTOR,REVENUE
Walsall Council,http://opendatacommunities.org/id/metropolitan-district-council/walsall ,WC127-463,30.06.2021,ADULT SOCIAL CARE,ADVANCE HEALTH CARE (UK) LTD,29/06/2021,280.32,6541-Domiciliary Care,THIRD PARTY PAYMENTS,PRIVATE CONTRACTOR,REVENUE
Walsall Council,http://opendatacommunities.org/id/metropolitan-district-council/walsall ,WC127-464,30.06.2021,ADULT SOCIAL CARE,ADVANCE HEALTH CARE (UK) LTD,29/06/2021,"1,742.94",6541-Domiciliary Care,THIRD PARTY PAYMENTS,PRIVATE CONTRACTOR,REVENUE
Walsall Council,http://opendatacommunities.org/id/metropolitan-district-council/walsall ,WC127-465,30.06.2021,ADULT SOCIAL CARE,ADVANCE HEALTH CARE (UK) LTD,29/06/2021,653.75,6541-Domiciliary Care,THIRD PARTY PAYMENTS,PRIVATE CONTRACTOR,REVENUE
Walsall Council,http://opendatacommunities.org/id/metropolitan-district-council/walsall ,WC127-466,30.06.2021,ADULT SOCIAL CARE,ADVANCE HEALTH CARE (UK) LTD,29/06/2021,"1,162.49",6541-Domiciliary Care,THIRD PARTY PAYMENTS,PRIVATE CONTRACTOR,REVENUE
Walsall Council,http://opendatacommunities.org/id/metropolitan-district-council/walsall ,WC127-467,30.06.2021,ADULT SOCIAL CARE,ADVANCE HEALTH CARE (UK) LTD,29/06/2021,"3,921.88",6541-Domiciliary Care,THIRD PARTY PAYMENTS,PRIVATE CONTRACTOR,REVENUE
Walsall Council,http://opendatacommunities.org/id/metropolitan-district-council/walsall ,WC127-468,30.06.2021,ADULT SOCIAL CARE,ADVANCE HEALTH CARE (UK) LTD,29/06/2021,436.00,6541-Domiciliary Care,THIRD PARTY PAYMENTS,PRIVATE CONTRACTOR,REVENUE
Walsall Council,http://opendatacommunities.org/id/metropolitan-district-council/walsall ,WC127-469,30.06.2021,ADULT SOCIAL CARE,ADVANCE HEALTH CARE (UK) LTD,29/06/2021,"3,921.88",6541-Domiciliary Care,THIRD PARTY PAYMENTS,PRIVATE CONTRACTOR,REVENUE
Walsall Council,http://opendatacommunities.org/id/metropolitan-district-council/walsall ,WC127-470,30.06.2021,ADULT SOCIAL CARE,ADVANCE HEALTH CARE (UK) LTD,29/06/2021,"1,743.47",6541-Domiciliary Care,THIRD PARTY PAYMENTS,PRIVATE CONTRACTOR,REVENUE
Walsall Council,http://opendatacommunities.org/id/metropolitan-district-council/walsall ,WC127-471,30.06.2021,ADULT SOCIAL CARE,ADVANCE HEALTH CARE (UK) LTD,29/06/2021,"1,525.88",6541-Domiciliary Care,THIRD PARTY PAYMENTS,PRIVATE CONTRACTOR,REVENUE
Walsall Council,http://opendatacommunities.org/id/metropolitan-district-council/walsall ,WC127-472,30.06.2021,ADULT SOCIAL CARE,ADVANCE HEALTH CARE (UK) LTD,29/06/2021,"1,961.75",6541-Domiciliary Care,THIRD PARTY PAYMENTS,PRIVATE CONTRACTOR,REVENUE
Walsall Council,http://opendatacommunities.org/id/metropolitan-district-council/walsall ,WC127-473,30.06.2021,ADULT SOCIAL CARE,ADVANCE HEALTH CARE (UK) LTD,29/06/2021,"1,224.13",6541-Domiciliary Care,THIRD PARTY PAYMENTS,PRIVATE CONTRACTOR,REVENUE
Walsall Council,http://opendatacommunities.org/id/metropolitan-district-council/walsall ,WC127-474,30.06.2021,ADULT SOCIAL CARE,ADVANCE HEALTH CARE (UK) LTD,29/06/2021,"2,942.82",6541-Domiciliary Care,THIRD PARTY PAYMENTS,PRIVATE CONTRACTOR,REVENUE
Walsall Council,http://opendatacommunities.org/id/metropolitan-district-council/walsall ,WC127-475,30.06.2021,ADULT SOCIAL CARE,ADVANCE HEALTH CARE (UK) LTD,29/06/2021,"3,448.90",6541-Domiciliary Care,THIRD PARTY PAYMENTS,PRIVATE CONTRACTOR,REVENUE
Walsall Council,http://opendatacommunities.org/id/metropolitan-district-council/walsall ,WC127-476,30.06.2021,ADULT SOCIAL CARE,ADVANCE HEALTH CARE (UK) LTD,29/06/2021,455.49,6541-Domiciliary Care,THIRD PARTY PAYMENTS,PRIVATE CONTRACTOR,REVENUE
Walsall Council,http://opendatacommunities.org/id/metropolitan-district-council/walsall ,WC127-477,30.06.2021,ADULT SOCIAL CARE,ADVANCE HEALTH CARE (UK) LTD,29/06/2021,308.97,6541-Domiciliary Care,THIRD PARTY PAYMENTS,PRIVATE CONTRACTOR,REVENUE
Walsall Council,http://opendatacommunities.org/id/metropolitan-district-council/walsall ,WC127-478,30.06.2021,ADULT SOCIAL CARE,ADVANCE HEALTH CARE (UK) LTD,29/06/2021,365.93,6541-Domiciliary Care,THIRD PARTY PAYMENTS,PRIVATE CONTRACTOR,REVENUE
Walsall Council,http://opendatacommunities.org/id/metropolitan-district-council/walsall ,WC127-479,30.06.2021,ADULT SOCIAL CARE,ADVANCE HEALTH CARE (UK) LTD,29/06/2021,"1,742.94",6541-Domiciliary Care,THIRD PARTY PAYMENTS,PRIVATE CONTRACTOR,REVENUE
Walsall Council,http://opendatacommunities.org/id/metropolitan-district-council/walsall ,WC127-480,30.06.2021,ADULT SOCIAL CARE,ADVANCE HEALTH CARE (UK) LTD,29/06/2021,"1,292.11",6541-Domiciliary Care,THIRD PARTY PAYMENTS,PRIVATE CONTRACTOR,REVENUE
Walsall Council,http://opendatacommunities.org/id/metropolitan-district-council/walsall ,WC127-481,30.06.2021,ADULT SOCIAL CARE,ADVANCE HEALTH CARE (UK) LTD,29/06/2021,"4,295.41",6541-Domiciliary Care,THIRD PARTY PAYMENTS,PRIVATE CONTRACTOR,REVENUE
Walsall Council,http://opendatacommunities.org/id/metropolitan-district-council/walsall ,WC127-482,30.06.2021,ADULT SOCIAL CARE,ADVANCE HEALTH CARE (UK) LTD,29/06/2021,871.47,6541-Domiciliary Care,THIRD PARTY PAYMENTS,PRIVATE CONTRACTOR,REVENUE
Walsall Council,http://opendatacommunities.org/id/metropolitan-district-council/walsall ,WC127-483,30.06.2021,ADULT SOCIAL CARE,ADVANCE HEALTH CARE (UK) LTD,29/06/2021,"1,525.75",6541-Domiciliary Care,THIRD PARTY PAYMENTS,PRIVATE CONTRACTOR,REVENUE
Walsall Council,http://opendatacommunities.org/id/metropolitan-district-council/walsall ,WC127-484,30.06.2021,ADULT SOCIAL CARE,ADVANCE HEALTH CARE (UK) LTD,29/06/2021,"3,340.90",6541-Domiciliary Care,THIRD PARTY PAYMENTS,PRIVATE CONTRACTOR,REVENUE
Walsall Council,http://opendatacommunities.org/id/metropolitan-district-council/walsall ,WC127-485,30.06.2021,ADULT SOCIAL CARE,ADVANCE HEALTH CARE (UK) LTD,29/06/2021,"1,626.83",6541-Domiciliary Care,THIRD PARTY PAYMENTS,PRIVATE CONTRACTOR,REVENUE
Walsall Council,http://opendatacommunities.org/id/metropolitan-district-council/walsall ,WC127-486,30.06.2021,ADULT SOCIAL CARE,ADVANCE HEALTH CARE (UK) LTD,29/06/2021,487.71,6541-Domiciliary Care,THIRD PARTY PAYMENTS,PRIVATE CONTRACTOR,REVENUE
Walsall Council,http://opendatacommunities.org/id/metropolitan-district-council/walsall ,WC127-487,30.06.2021,ADULT SOCIAL CARE,ADVANCE HEALTH CARE (UK) LTD,29/06/2021,313.29,6541-Domiciliary Care,THIRD PARTY PAYMENTS,PRIVATE CONTRACTOR,REVENUE
Walsall Council,http://opendatacommunities.org/id/metropolitan-district-council/walsall ,WC127-488,30.06.2021,ADULT SOCIAL CARE,ADVANCE HEALTH CARE (UK) LTD,21/06/2021,306.21,6541-Domiciliary Care,THIRD PARTY PAYMENTS,PRIVATE CONTRACTOR,REVENUE
Walsall Council,http://opendatacommunities.org/id/metropolitan-district-council/walsall ,WC127-489,30.06.2021,ADULT SOCIAL CARE,ADVANCE HEALTH CARE (UK) LTD,21/06/2021,708.47,6541-Domiciliary Care,THIRD PARTY PAYMENTS,PRIVATE CONTRACTOR,REVENUE
Walsall Council,http://opendatacommunities.org/id/metropolitan-district-council/walsall ,WC127-490,30.06.2021,ADULT SOCIAL CARE,ADVANCE HEALTH CARE (UK) LTD,21/06/2021,435.96,6541-Domiciliary Care,THIRD PARTY PAYMENTS,PRIVATE CONTRACTOR,REVENUE
Walsall Council,http://opendatacommunities.org/id/metropolitan-district-council/walsall ,WC127-491,30.06.2021,ADULT SOCIAL CARE,ADVANCE HEALTH CARE (UK) LTD,21/06/2021,763.00,6541-Domiciliary Care,THIRD PARTY PAYMENTS,PRIVATE CONTRACTOR,REVENUE
Walsall Council,http://opendatacommunities.org/id/metropolitan-district-council/walsall ,WC127-492,30.06.2021,ADULT SOCIAL CARE,ADVANCE HEALTH CARE (UK) LTD,21/06/2021,506.06,6541-Domiciliary Care,THIRD PARTY PAYMENTS,PRIVATE CONTRACTOR,REVENUE
Walsall Council,http://opendatacommunities.org/id/metropolitan-district-council/walsall ,WC127-493,30.06.2021,ADULT SOCIAL CARE,ADVANCE HEALTH CARE (UK) LTD,21/06/2021,490.49,6541-Domiciliary Care,THIRD PARTY PAYMENTS,PRIVATE CONTRACTOR,REVENUE
Walsall Council,http://opendatacommunities.org/id/metropolitan-district-council/walsall ,WC127-494,30.06.2021,ADULT SOCIAL CARE,ADVANCE HEALTH CARE (UK) LTD,21/06/2021,871.92,6541-Domiciliary Care,THIRD PARTY PAYMENTS,PRIVATE CONTRACTOR,REVENUE
Walsall Council,http://opendatacommunities.org/id/metropolitan-district-council/walsall ,WC127-495,30.06.2021,ADULT SOCIAL CARE,ADVANCE HEALTH CARE (UK) LTD,21/06/2021,326.97,6541-Domiciliary Care,THIRD PARTY PAYMENTS,PRIVATE CONTRACTOR,REVENUE
Walsall Council,http://opendatacommunities.org/id/metropolitan-district-council/walsall ,WC127-496,30.06.2021,ADULT SOCIAL CARE,ADVANCE HEALTH CARE (UK) LTD,21/06/2021,381.50,6541-Domiciliary Care,THIRD PARTY PAYMENTS,PRIVATE CONTRACTOR,REVENUE
Walsall Council,http://opendatacommunities.org/id/metropolitan-district-council/walsall ,WC127-497,30.06.2021,ADULT SOCIAL CARE,ADVANCE HEALTH CARE (UK) LTD,21/06/2021,363.30,6541-Domiciliary Care,THIRD PARTY PAYMENTS,PRIVATE CONTRACTOR,REVENUE
Walsall Council,http://opendatacommunities.org/id/metropolitan-district-council/walsall ,WC127-498,30.06.2021,ADULT SOCIAL CARE,ADVANCE HEALTH CARE (UK) LTD,21/06/2021,435.96,6541-Domiciliary Care,THIRD PARTY PAYMENTS,PRIVATE CONTRACTOR,REVENUE
Walsall Council,http://opendatacommunities.org/id/metropolitan-district-council/walsall ,WC127-499,30.06.2021,ADULT SOCIAL CARE,ADVANCE HEALTH CARE (UK) LTD,21/06/2021,363.30,6541-Domiciliary Care,THIRD PARTY PAYMENTS,PRIVATE CONTRACTOR,REVENUE
Walsall Council,http://opendatacommunities.org/id/metropolitan-district-council/walsall ,WC127-500,30.06.2021,ADULT SOCIAL CARE,ADVANCE HEALTH CARE (UK) LTD,21/06/2021,490.49,6541-Domiciliary Care,THIRD PARTY PAYMENTS,PRIVATE CONTRACTOR,REVENUE
Walsall Council,http://opendatacommunities.org/id/metropolitan-district-council/walsall ,WC127-501,30.06.2021,ADULT SOCIAL CARE,ADVANCE HEALTH CARE (UK) LTD,21/06/2021,490.49,6541-Domiciliary Care,THIRD PARTY PAYMENTS,PRIVATE CONTRACTOR,REVENUE
Walsall Council,http://opendatacommunities.org/id/metropolitan-district-council/walsall ,WC127-502,30.06.2021,ADULT SOCIAL CARE,ADVANCE HEALTH CARE (UK) LTD,21/06/2021,490.49,6541-Domiciliary Care,THIRD PARTY PAYMENTS,PRIVATE CONTRACTOR,REVENUE
Walsall Council,http://opendatacommunities.org/id/metropolitan-district-council/walsall ,WC127-503,30.06.2021,ADULT SOCIAL CARE,ADVANCE HEALTH CARE (UK) LTD,21/06/2021,490.49,6541-Domiciliary Care,THIRD PARTY PAYMENTS,PRIVATE CONTRACTOR,REVENUE
Walsall Council,http://opendatacommunities.org/id/metropolitan-district-council/walsall ,WC127-504,30.06.2021,ADULT SOCIAL CARE,ADVANCE HEALTH CARE (UK) LTD,21/06/2021,420.39,6541-Domiciliary Care,THIRD PARTY PAYMENTS,PRIVATE CONTRACTOR,REVENUE
Walsall Council,http://opendatacommunities.org/id/metropolitan-district-council/walsall ,WC127-505,30.06.2021,ADULT SOCIAL CARE,ADVANCE HEALTH CARE (UK) LTD,21/06/2021,490.49,6541-Domiciliary Care,THIRD PARTY PAYMENTS,PRIVATE CONTRACTOR,REVENUE
Walsall Council,http://opendatacommunities.org/id/metropolitan-district-council/walsall ,WC127-506,30.06.2021,ADULT SOCIAL CARE,ADVANCE HEALTH CARE (UK) LTD,21/06/2021,435.96,6541-Domiciliary Care,THIRD PARTY PAYMENTS,PRIVATE CONTRACTOR,REVENUE
Walsall Council,http://opendatacommunities.org/id/metropolitan-district-council/walsall ,WC127-507,30.06.2021,ADULT SOCIAL CARE,ADVANCE HEALTH CARE (UK) LTD,21/06/2021,490.49,6541-Domiciliary Care,THIRD PARTY PAYMENTS,PRIVATE CONTRACTOR,REVENUE
Walsall Council,http://opendatacommunities.org/id/metropolitan-district-council/walsall ,WC127-508,30.06.2021,ADULT SOCIAL CARE,ADVANCE HEALTH CARE (UK) LTD,21/06/2021,435.93,6541-Domiciliary Care,THIRD PARTY PAYMENTS,PRIVATE CONTRACTOR,REVENUE
Walsall Council,http://opendatacommunities.org/id/metropolitan-district-council/walsall ,WC127-509,30.06.2021,ADULT SOCIAL CARE,ADVANCE HEALTH CARE (UK) LTD,21/06/2021,490.49,6541-Domiciliary Care,THIRD PARTY PAYMENTS,PRIVATE CONTRACTOR,REVENUE
Walsall Council,http://opendatacommunities.org/id/metropolitan-district-council/walsall ,WC127-510,30.06.2021,ADULT SOCIAL CARE,ADVANCE HEALTH CARE (UK) LTD,21/06/2021,435.96,6541-Domiciliary Care,THIRD PARTY PAYMENTS,PRIVATE CONTRACTOR,REVENUE
Walsall Council,http://opendatacommunities.org/id/metropolitan-district-council/walsall ,WC127-511,30.06.2021,ADULT SOCIAL CARE,ADVANCE HEALTH CARE (UK) LTD,21/06/2021,490.49,6541-Domiciliary Care,THIRD PARTY PAYMENTS,PRIVATE CONTRACTOR,REVENUE
Walsall Council,http://opendatacommunities.org/id/metropolitan-district-council/walsall ,WC127-512,30.06.2021,ADULT SOCIAL CARE,ADVANCE HEALTH CARE (UK) LTD,21/06/2021,490.49,6541-Domiciliary Care,THIRD PARTY PAYMENTS,PRIVATE CONTRACTOR,REVENUE
Walsall Council,http://opendatacommunities.org/id/metropolitan-district-council/walsall ,WC127-513,30.06.2021,ADULT SOCIAL CARE,ADVANCE HEALTH CARE (UK) LTD,21/06/2021,350.46,6541-Domiciliary Care,THIRD PARTY PAYMENTS,PRIVATE CONTRACTOR,REVENUE
Walsall Council,http://opendatacommunities.org/id/metropolitan-district-council/walsall ,WC127-514,30.06.2021,ADULT SOCIAL CARE,ADVANCE HEALTH CARE (UK) LTD,21/06/2021,451.81,6541-Domiciliary Care,THIRD PARTY PAYMENTS,PRIVATE CONTRACTOR,REVENUE
Walsall Council,http://opendatacommunities.org/id/metropolitan-district-council/walsall ,WC127-515,30.06.2021,ADULT SOCIAL CARE,ADVANCE HEALTH CARE (UK) LTD,21/06/2021,654.01,6541-Domiciliary Care,THIRD PARTY PAYMENTS,PRIVATE CONTRACTOR,REVENUE
Walsall Council,http://opendatacommunities.org/id/metropolitan-district-council/walsall ,WC127-516,30.06.2021,ADULT SOCIAL CARE,ADVANCE HEALTH CARE (UK) LTD,21/06/2021,490.49,6541-Domiciliary Care,THIRD PARTY PAYMENTS,PRIVATE CONTRACTOR,REVENUE
Walsall Council,http://opendatacommunities.org/id/metropolitan-district-council/walsall ,WC127-517,30.06.2021,ADULT SOCIAL CARE,ADVANCE HEALTH CARE (UK) LTD,21/06/2021,833.03,6541-Domiciliary Care,THIRD PARTY PAYMENTS,PRIVATE CONTRACTOR,REVENUE
Walsall Council,http://opendatacommunities.org/id/metropolitan-district-council/walsall ,WC127-518,30.06.2021,ADULT SOCIAL CARE,ADVANCE HEALTH CARE (UK) LTD,21/06/2021,490.49,6541-Domiciliary Care,THIRD PARTY PAYMENTS,PRIVATE CONTRACTOR,REVENUE
Walsall Council,http://opendatacommunities.org/id/metropolitan-district-council/walsall ,WC127-519,30.06.2021,ADULT SOCIAL CARE,ADVANCE HEALTH CARE (UK) LTD,21/06/2021,490.49,6541-Domiciliary Care,THIRD PARTY PAYMENTS,PRIVATE CONTRACTOR,REVENUE
Walsall Council,http://opendatacommunities.org/id/metropolitan-district-council/walsall ,WC127-520,30.06.2021,ADULT SOCIAL CARE,ADVANCE HEALTH CARE (UK) LTD,21/06/2021,490.49,6541-Domiciliary Care,THIRD PARTY PAYMENTS,PRIVATE CONTRACTOR,REVENUE
Walsall Council,http://opendatacommunities.org/id/metropolitan-district-council/walsall ,WC127-521,30.06.2021,ADULT SOCIAL CARE,ADVANCE HEALTH CARE (UK) LTD,21/06/2021,435.96,6541-Domiciliary Care,THIRD PARTY PAYMENTS,PRIVATE CONTRACTOR,REVENUE
Walsall Council,http://opendatacommunities.org/id/metropolitan-district-council/walsall ,WC127-522,30.06.2021,ADULT SOCIAL CARE,ADVANCE HEALTH CARE (UK) LTD,21/06/2021,544.95,6541-Domiciliary Care,THIRD PARTY PAYMENTS,PRIVATE CONTRACTOR,REVENUE
Walsall Council,http://opendatacommunities.org/id/metropolitan-district-council/walsall ,WC127-523,30.06.2021,ADULT SOCIAL CARE,ADVANCE HEALTH CARE (UK) LTD,21/06/2021,435.96,6541-Domiciliary Care,THIRD PARTY PAYMENTS,PRIVATE CONTRACTOR,REVENUE
Walsall Council,http://opendatacommunities.org/id/metropolitan-district-council/walsall ,WC127-524,30.06.2021,ADULT SOCIAL CARE,ADVANCE HEALTH CARE (UK) LTD,21/06/2021,490.49,6541-Domiciliary Care,THIRD PARTY PAYMENTS,PRIVATE CONTRACTOR,REVENUE
Walsall Council,http://opendatacommunities.org/id/metropolitan-district-council/walsall ,WC127-525,30.06.2021,ADULT SOCIAL CARE,ADVANCE HEALTH CARE (UK) LTD,21/06/2021,544.95,6541-Domiciliary Care,THIRD PARTY PAYMENTS,PRIVATE CONTRACTOR,REVENUE
Walsall Council,http://opendatacommunities.org/id/metropolitan-district-council/walsall ,WC127-526,30.06.2021,ADULT SOCIAL CARE,ADVANCE HEALTH CARE (UK) LTD,21/06/2021,435.96,6541-Domiciliary Care,THIRD PARTY PAYMENTS,PRIVATE CONTRACTOR,REVENUE
Walsall Council,http://opendatacommunities.org/id/metropolitan-district-council/walsall ,WC127-527,30.06.2021,ADULT SOCIAL CARE,ADVANCE HEALTH CARE (UK) LTD,21/06/2021,544.95,6541-Domiciliary Care,THIRD PARTY PAYMENTS,PRIVATE CONTRACTOR,REVENUE
Walsall Council,http://opendatacommunities.org/id/metropolitan-district-council/walsall ,WC127-528,30.06.2021,ADULT SOCIAL CARE,ADVANCE HEALTH CARE (UK) LTD,21/06/2021,435.96,6541-Domiciliary Care,THIRD PARTY PAYMENTS,PRIVATE CONTRACTOR,REVENUE
Walsall Council,http://opendatacommunities.org/id/metropolitan-district-council/walsall ,WC127-529,30.06.2021,ADULT SOCIAL CARE,ADVANCE HEALTH CARE (UK) LTD,21/06/2021,490.49,6541-Domiciliary Care,THIRD PARTY PAYMENTS,PRIVATE CONTRACTOR,REVENUE
Walsall Council,http://opendatacommunities.org/id/metropolitan-district-council/walsall ,WC127-530,30.06.2021,ADULT SOCIAL CARE,ADVANCE HEALTH CARE (UK) LTD,21/06/2021,435.96,6541-Domiciliary Care,THIRD PARTY PAYMENTS,PRIVATE CONTRACTOR,REVENUE
Walsall Council,http://opendatacommunities.org/id/metropolitan-district-council/walsall ,WC127-531,30.06.2021,ADULT SOCIAL CARE,ADVANCE HEALTH CARE (UK) LTD,21/06/2021,490.49,6541-Domiciliary Care,THIRD PARTY PAYMENTS,PRIVATE CONTRACTOR,REVENUE
Walsall Council,http://opendatacommunities.org/id/metropolitan-district-council/walsall ,WC127-532,30.06.2021,ADULT SOCIAL CARE,ADVANCE HEALTH CARE (UK) LTD,21/06/2021,490.49,6541-Domiciliary Care,THIRD PARTY PAYMENTS,PRIVATE CONTRACTOR,REVENUE
Walsall Council,http://opendatacommunities.org/id/metropolitan-district-council/walsall ,WC127-533,30.06.2021,ADULT SOCIAL CARE,ADVANCE HEALTH CARE (UK) LTD,21/06/2021,965.41,6541-Domiciliary Care,THIRD PARTY PAYMENTS,PRIVATE CONTRACTOR,REVENUE
Walsall Council,http://opendatacommunities.org/id/metropolitan-district-council/walsall ,WC127-534,30.06.2021,ADULT SOCIAL CARE,ADVANCE HEALTH CARE (UK) LTD,21/06/2021,490.49,6541-Domiciliary Care,THIRD PARTY PAYMENTS,PRIVATE CONTRACTOR,REVENUE
Walsall Council,http://opendatacommunities.org/id/metropolitan-district-council/walsall ,WC127-535,30.06.2021,ADULT SOCIAL CARE,ADVANCE HEALTH CARE (UK) LTD,21/06/2021,537.20,6541-Domiciliary Care,THIRD PARTY PAYMENTS,PRIVATE CONTRACTOR,REVENUE
Walsall Council,http://opendatacommunities.org/id/metropolitan-district-council/walsall ,WC127-536,30.06.2021,ADULT SOCIAL CARE,ADVANCE HEALTH CARE (UK) LTD,21/06/2021,358.14,6541-Domiciliary Care,THIRD PARTY PAYMENTS,PRIVATE CONTRACTOR,REVENUE
Walsall Council,http://opendatacommunities.org/id/metropolitan-district-council/walsall ,WC127-537,30.06.2021,ADULT SOCIAL CARE,ADVANCE HEALTH CARE (UK) LTD,21/06/2021,490.70,6541-Domiciliary Care,THIRD PARTY PAYMENTS,PRIVATE CONTRACTOR,REVENUE
Walsall Council,http://opendatacommunities.org/id/metropolitan-district-council/walsall ,WC127-538,30.06.2021,ADULT SOCIAL CARE,ADVANCE HEALTH CARE (UK) LTD,21/06/2021,435.96,6541-Domiciliary Care,THIRD PARTY PAYMENTS,PRIVATE CONTRACTOR,REVENUE
Walsall Council,http://opendatacommunities.org/id/metropolitan-district-council/walsall ,WC127-539,30.06.2021,ADULT SOCIAL CARE,ADVANCE HEALTH CARE (UK) LTD,21/06/2021,635.81,6541-Domiciliary Care,THIRD PARTY PAYMENTS,PRIVATE CONTRACTOR,REVENUE
Walsall Council,http://opendatacommunities.org/id/metropolitan-district-council/walsall ,WC127-540,30.06.2021,ADULT SOCIAL CARE,ADVANCE HEALTH CARE (UK) LTD,21/06/2021,381.50,6541-Domiciliary Care,THIRD PARTY PAYMENTS,PRIVATE CONTRACTOR,REVENUE
Walsall Council,http://opendatacommunities.org/id/metropolitan-district-council/walsall ,WC127-541,30.06.2021,ADULT SOCIAL CARE,ADVANCE HEALTH CARE (UK) LTD,21/06/2021,326.97,6541-Domiciliary Care,THIRD PARTY PAYMENTS,PRIVATE CONTRACTOR,REVENUE
Walsall Council,http://opendatacommunities.org/id/metropolitan-district-council/walsall ,WC127-542,30.06.2021,ADULT SOCIAL CARE,ADVANCE HEALTH CARE (UK) LTD,21/06/2021,451.54,6541-Domiciliary Care,THIRD PARTY PAYMENTS,PRIVATE CONTRACTOR,REVENUE
Walsall Council,http://opendatacommunities.org/id/metropolitan-district-council/walsall ,WC127-543,30.06.2021,ADULT SOCIAL CARE,ADVANCE HEALTH CARE (UK) LTD,21/06/2021,490.49,6541-Domiciliary Care,THIRD PARTY PAYMENTS,PRIVATE CONTRACTOR,REVENUE
Walsall Council,http://opendatacommunities.org/id/metropolitan-district-council/walsall ,WC127-544,30.06.2021,ADULT SOCIAL CARE,ADVANCE HEALTH CARE (UK) LTD,21/06/2021,363.30,6541-Domiciliary Care,THIRD PARTY PAYMENTS,PRIVATE CONTRACTOR,REVENUE
Walsall Council,http://opendatacommunities.org/id/metropolitan-district-council/walsall ,WC127-545,30.06.2021,ADULT SOCIAL CARE,ADVANCE HEALTH CARE (UK) LTD,21/06/2021,537.20,6541-Domiciliary Care,THIRD PARTY PAYMENTS,PRIVATE CONTRACTOR,REVENUE
Walsall Council,http://opendatacommunities.org/id/metropolitan-district-council/walsall ,WC127-546,30.06.2021,ADULT SOCIAL CARE,ADVANCE HEALTH CARE (UK) LTD,21/06/2021,417.83,6541-Domiciliary Care,THIRD PARTY PAYMENTS,PRIVATE CONTRACTOR,REVENUE
Walsall Council,http://opendatacommunities.org/id/metropolitan-district-council/walsall ,WC127-547,30.06.2021,ADULT SOCIAL CARE,ADVANCE HEALTH CARE (UK) LTD,21/06/2021,435.96,6541-Domiciliary Care,THIRD PARTY PAYMENTS,PRIVATE CONTRACTOR,REVENUE
Walsall Council,http://opendatacommunities.org/id/metropolitan-district-council/walsall ,WC127-548,30.06.2021,ADULT SOCIAL CARE,ADVANCE HEALTH CARE (UK) LTD,21/06/2021,490.49,6541-Domiciliary Care,THIRD PARTY PAYMENTS,PRIVATE CONTRACTOR,REVENUE
Walsall Council,http://opendatacommunities.org/id/metropolitan-district-council/walsall ,WC127-549,30.06.2021,ADULT SOCIAL CARE,ADVANCE HEALTH CARE (UK) LTD,21/06/2021,451.56,6541-Domiciliary Care,THIRD PARTY PAYMENTS,PRIVATE CONTRACTOR,REVENUE
Walsall Council,http://opendatacommunities.org/id/metropolitan-district-council/walsall ,WC127-550,30.06.2021,ADULT SOCIAL CARE,ADVANCE HEALTH CARE (UK) LTD,21/06/2021,490.49,6541-Domiciliary Care,THIRD PARTY PAYMENTS,PRIVATE CONTRACTOR,REVENUE
Walsall Council,http://opendatacommunities.org/id/metropolitan-district-council/walsall ,WC127-551,30.06.2021,ADULT SOCIAL CARE,ADVANCE HEALTH CARE (UK) LTD,21/06/2021,506.06,6541-Domiciliary Care,THIRD PARTY PAYMENTS,PRIVATE CONTRACTOR,REVENUE
Walsall Council,http://opendatacommunities.org/id/metropolitan-district-council/walsall ,WC127-552,30.06.2021,ADULT SOCIAL CARE,ADVANCE HEALTH CARE (UK) LTD,21/06/2021,435.96,6541-Domiciliary Care,THIRD PARTY PAYMENTS,PRIVATE CONTRACTOR,REVENUE
Walsall Council,http://opendatacommunities.org/id/metropolitan-district-council/walsall ,WC127-553,30.06.2021,ADULT SOCIAL CARE,ADVANCE HEALTH CARE (UK) LTD,21/06/2021,363.30,6541-Domiciliary Care,THIRD PARTY PAYMENTS,PRIVATE CONTRACTOR,REVENUE
Walsall Council,http://opendatacommunities.org/id/metropolitan-district-council/walsall ,WC127-554,30.06.2021,ADULT SOCIAL CARE,ADVANCE HEALTH CARE (UK) LTD,21/06/2021,490.49,6541-Domiciliary Care,THIRD PARTY PAYMENTS,PRIVATE CONTRACTOR,REVENUE
Walsall Council,http://opendatacommunities.org/id/metropolitan-district-council/walsall ,WC127-555,30.06.2021,ADULT SOCIAL CARE,ADVANCE HEALTH CARE (UK) LTD,21/06/2021,871.92,6541-Domiciliary Care,THIRD PARTY PAYMENTS,PRIVATE CONTRACTOR,REVENUE
Walsall Council,http://opendatacommunities.org/id/metropolitan-district-council/walsall ,WC127-556,30.06.2021,ADULT SOCIAL CARE,ADVANCE HEALTH CARE (UK) LTD,21/06/2021,326.97,6541-Domiciliary Care,THIRD PARTY PAYMENTS,PRIVATE CONTRACTOR,REVENUE
Walsall Council,http://opendatacommunities.org/id/metropolitan-district-council/walsall ,WC127-557,30.06.2021,ADULT SOCIAL CARE,ADVANCE HEALTH CARE (UK) LTD,21/06/2021,381.50,6541-Domiciliary Care,THIRD PARTY PAYMENTS,PRIVATE CONTRACTOR,REVENUE
Walsall Council,http://opendatacommunities.org/id/metropolitan-district-council/walsall ,WC127-558,30.06.2021,ADULT SOCIAL CARE,ADVANCE HEALTH CARE (UK) LTD,21/06/2021,295.83,6541-Domiciliary Care,THIRD PARTY PAYMENTS,PRIVATE CONTRACTOR,REVENUE
Walsall Council,http://opendatacommunities.org/id/metropolitan-district-council/walsall ,WC127-559,30.06.2021,ADULT SOCIAL CARE,ADVANCE HEALTH CARE (UK) LTD,21/06/2021,708.47,6541-Domiciliary Care,THIRD PARTY PAYMENTS,PRIVATE CONTRACTOR,REVENUE
Walsall Council,http://opendatacommunities.org/id/metropolitan-district-council/walsall ,WC127-560,30.06.2021,ADULT SOCIAL CARE,ADVANCE HEALTH CARE (UK) LTD,21/06/2021,435.96,6541-Domiciliary Care,THIRD PARTY PAYMENTS,PRIVATE CONTRACTOR,REVENUE
Walsall Council,http://opendatacommunities.org/id/metropolitan-district-council/walsall ,WC127-561,30.06.2021,ADULT SOCIAL CARE,ADVANCE HEALTH CARE (UK) LTD,21/06/2021,763.00,6541-Domiciliary Care,THIRD PARTY PAYMENTS,PRIVATE CONTRACTOR,REVENUE
Walsall Council,http://opendatacommunities.org/id/metropolitan-district-council/walsall ,WC127-562,30.06.2021,ADULT SOCIAL CARE,ADVANCE HEALTH CARE (UK) LTD,21/06/2021,490.49,6541-Domiciliary Care,THIRD PARTY PAYMENTS,PRIVATE CONTRACTOR,REVENUE
Walsall Council,http://opendatacommunities.org/id/metropolitan-district-council/walsall ,WC127-563,30.06.2021,ADULT SOCIAL CARE,ADVANCE HEALTH CARE (UK) LTD,21/06/2021,833.03,6541-Domiciliary Care,THIRD PARTY PAYMENTS,PRIVATE CONTRACTOR,REVENUE
Walsall Council,http://opendatacommunities.org/id/metropolitan-district-council/walsall ,WC127-564,30.06.2021,ADULT SOCIAL CARE,ADVANCE HEALTH CARE (UK) LTD,21/06/2021,490.49,6541-Domiciliary Care,THIRD PARTY PAYMENTS,PRIVATE CONTRACTOR,REVENUE
Walsall Council,http://opendatacommunities.org/id/metropolitan-district-council/walsall ,WC127-565,30.06.2021,ADULT SOCIAL CARE,ADVANCE HEALTH CARE (UK) LTD,21/06/2021,490.49,6541-Domiciliary Care,THIRD PARTY PAYMENTS,PRIVATE CONTRACTOR,REVENUE
Walsall Council,http://opendatacommunities.org/id/metropolitan-district-council/walsall ,WC127-566,30.06.2021,ADULT SOCIAL CARE,ADVANCE HEALTH CARE (UK) LTD,21/06/2021,490.49,6541-Domiciliary Care,THIRD PARTY PAYMENTS,PRIVATE CONTRACTOR,REVENUE
Walsall Council,http://opendatacommunities.org/id/metropolitan-district-council/walsall ,WC127-567,30.06.2021,ADULT SOCIAL CARE,ADVANCE HEALTH CARE (UK) LTD,21/06/2021,435.96,6541-Domiciliary Care,THIRD PARTY PAYMENTS,PRIVATE CONTRACTOR,REVENUE
Walsall Council,http://opendatacommunities.org/id/metropolitan-district-council/walsall ,WC127-568,30.06.2021,ADULT SOCIAL CARE,ADVANCE HEALTH CARE (UK) LTD,21/06/2021,544.95,6541-Domiciliary Care,THIRD PARTY PAYMENTS,PRIVATE CONTRACTOR,REVENUE
Walsall Council,http://opendatacommunities.org/id/metropolitan-district-council/walsall ,WC127-569,30.06.2021,ADULT SOCIAL CARE,ADVANCE HEALTH CARE (UK) LTD,21/06/2021,435.96,6541-Domiciliary Care,THIRD PARTY PAYMENTS,PRIVATE CONTRACTOR,REVENUE
Walsall Council,http://opendatacommunities.org/id/metropolitan-district-council/walsall ,WC127-570,30.06.2021,ADULT SOCIAL CARE,ADVANCE HEALTH CARE (UK) LTD,21/06/2021,490.49,6541-Domiciliary Care,THIRD PARTY PAYMENTS,PRIVATE CONTRACTOR,REVENUE
Walsall Council,http://opendatacommunities.org/id/metropolitan-district-council/walsall ,WC127-571,30.06.2021,ADULT SOCIAL CARE,ADVANCE HEALTH CARE (UK) LTD,21/06/2021,490.49,6541-Domiciliary Care,THIRD PARTY PAYMENTS,PRIVATE CONTRACTOR,REVENUE
Walsall Council,http://opendatacommunities.org/id/metropolitan-district-council/walsall ,WC127-572,30.06.2021,ADULT SOCIAL CARE,ADVANCE HEALTH CARE (UK) LTD,21/06/2021,490.49,6541-Domiciliary Care,THIRD PARTY PAYMENTS,PRIVATE CONTRACTOR,REVENUE
Walsall Council,http://opendatacommunities.org/id/metropolitan-district-council/walsall ,WC127-573,30.06.2021,ADULT SOCIAL CARE,ADVANCE HEALTH CARE (UK) LTD,21/06/2021,490.49,6541-Domiciliary Care,THIRD PARTY PAYMENTS,PRIVATE CONTRACTOR,REVENUE
Walsall Council,http://opendatacommunities.org/id/metropolitan-district-council/walsall ,WC127-574,30.06.2021,ADULT SOCIAL CARE,ADVANCE HEALTH CARE (UK) LTD,21/06/2021,490.49,6541-Domiciliary Care,THIRD PARTY PAYMENTS,PRIVATE CONTRACTOR,REVENUE
Walsall Council,http://opendatacommunities.org/id/metropolitan-district-council/walsall ,WC127-575,30.06.2021,ADULT SOCIAL CARE,ADVANCE HEALTH CARE (UK) LTD,21/06/2021,490.49,6541-Domiciliary Care,THIRD PARTY PAYMENTS,PRIVATE CONTRACTOR,REVENUE
Walsall Council,http://opendatacommunities.org/id/metropolitan-district-council/walsall ,WC127-576,30.06.2021,ADULT SOCIAL CARE,ADVANCE HEALTH CARE (UK) LTD,21/06/2021,435.96,6541-Domiciliary Care,THIRD PARTY PAYMENTS,PRIVATE CONTRACTOR,REVENUE
Walsall Council,http://opendatacommunities.org/id/metropolitan-district-council/walsall ,WC127-577,30.06.2021,ADULT SOCIAL CARE,ADVANCE HEALTH CARE (UK) LTD,21/06/2021,544.95,6541-Domiciliary Care,THIRD PARTY PAYMENTS,PRIVATE CONTRACTOR,REVENUE
Walsall Council,http://opendatacommunities.org/id/metropolitan-district-council/walsall ,WC127-578,30.06.2021,ADULT SOCIAL CARE,ADVANCE HEALTH CARE (UK) LTD,21/06/2021,435.96,6541-Domiciliary Care,THIRD PARTY PAYMENTS,PRIVATE CONTRACTOR,REVENUE
Walsall Council,http://opendatacommunities.org/id/metropolitan-district-council/walsall ,WC127-579,30.06.2021,ADULT SOCIAL CARE,ADVANCE HEALTH CARE (UK) LTD,21/06/2021,490.49,6541-Domiciliary Care,THIRD PARTY PAYMENTS,PRIVATE CONTRACTOR,REVENUE
Walsall Council,http://opendatacommunities.org/id/metropolitan-district-council/walsall ,WC127-580,30.06.2021,ADULT SOCIAL CARE,ADVANCE HEALTH CARE (UK) LTD,21/06/2021,435.96,6541-Domiciliary Care,THIRD PARTY PAYMENTS,PRIVATE CONTRACTOR,REVENUE
Walsall Council,http://opendatacommunities.org/id/metropolitan-district-council/walsall ,WC127-581,30.06.2021,ADULT SOCIAL CARE,ADVANCE HEALTH CARE (UK) LTD,21/06/2021,490.49,6541-Domiciliary Care,THIRD PARTY PAYMENTS,PRIVATE CONTRACTOR,REVENUE
Walsall Council,http://opendatacommunities.org/id/metropolitan-district-council/walsall ,WC127-582,30.06.2021,ADULT SOCIAL CARE,ADVANCE HEALTH CARE (UK) LTD,21/06/2021,490.49,6541-Domiciliary Care,THIRD PARTY PAYMENTS,PRIVATE CONTRACTOR,REVENUE
Walsall Council,http://opendatacommunities.org/id/metropolitan-district-council/walsall ,WC127-583,30.06.2021,ADULT SOCIAL CARE,ADVANCE HEALTH CARE (UK) LTD,21/06/2021,490.49,6541-Domiciliary Care,THIRD PARTY PAYMENTS,PRIVATE CONTRACTOR,REVENUE
Walsall Council,http://opendatacommunities.org/id/metropolitan-district-council/walsall ,WC127-584,30.06.2021,ADULT SOCIAL CARE,ADVANCE HEALTH CARE (UK) LTD,21/06/2021,654.01,6541-Domiciliary Care,THIRD PARTY PAYMENTS,PRIVATE CONTRACTOR,REVENUE
Walsall Council,http://opendatacommunities.org/id/metropolitan-district-council/walsall ,WC127-585,30.06.2021,ADULT SOCIAL CARE,ADVANCE HEALTH CARE (UK) LTD,21/06/2021,435.96,6541-Domiciliary Care,THIRD PARTY PAYMENTS,PRIVATE CONTRACTOR,REVENUE
Walsall Council,http://opendatacommunities.org/id/metropolitan-district-council/walsall ,WC127-586,30.06.2021,ADULT SOCIAL CARE,ADVANCE HEALTH CARE (UK) LTD,21/06/2021,435.96,6541-Domiciliary Care,THIRD PARTY PAYMENTS,PRIVATE CONTRACTOR,REVENUE
Walsall Council,http://opendatacommunities.org/id/metropolitan-district-council/walsall ,WC127-587,30.06.2021,ADULT SOCIAL CARE,ADVANCE HEALTH CARE (UK) LTD,21/06/2021,635.81,6541-Domiciliary Care,THIRD PARTY PAYMENTS,PRIVATE CONTRACTOR,REVENUE
Walsall Council,http://opendatacommunities.org/id/metropolitan-district-council/walsall ,WC127-588,30.06.2021,ADULT SOCIAL CARE,ADVANCE HEALTH CARE (UK) LTD,21/06/2021,451.54,6541-Domiciliary Care,THIRD PARTY PAYMENTS,PRIVATE CONTRACTOR,REVENUE
Walsall Council,http://opendatacommunities.org/id/metropolitan-district-council/walsall ,WC127-589,30.06.2021,ADULT SOCIAL CARE,ADVANCE HEALTH CARE (UK) LTD,01/06/2021,"1,696.00",6550-Professional Fees & Services,SUPPLIES & SERVICES,SERVICES,REVENUE
Walsall Council,http://opendatacommunities.org/id/metropolitan-district-council/walsall ,WC127-590,30.06.2021,ADULT SOCIAL CARE,ADVANCE HEALTH CARE (UK) LTD,02/06/2021,"13,427.70",6550-ASC Infection Control Fund Round 3 (70%),TRANSFER PAYMENTS,COVID TRANSFER PAYMENT,REVENUE
Walsall Council,http://opendatacommunities.org/id/metropolitan-district-council/walsall ,WC127-591,30.06.2021,ADULT SOCIAL CARE,ADVANCE HEALTH CARE (UK) LTD,23/06/2021,"11,700.00",6550-ASC Rapid Testing Fund Round 2 (40% Grants),THIRD PARTY PAYMENTS,COVID THIRD PARTY PAYMENTS,REVENUE
Walsall Council,http://opendatacommunities.org/id/metropolitan-district-council/walsall ,WC127-592,30.06.2021,ADULT SOCIAL CARE,ADVANCE HEALTH CARE (UK) LTD,02/06/2021,842.96,6541-Domiciliary Care,THIRD PARTY PAYMENTS,PRIVATE CONTRACTOR,REVENUE
Walsall Council,http://opendatacommunities.org/id/metropolitan-district-council/walsall ,WC127-593,30.06.2021,ADULT SOCIAL CARE,ADVANCE HEALTH CARE (UK) LTD,10/06/2021,696.49,6541-Domiciliary Care,THIRD PARTY PAYMENTS,PRIVATE CONTRACTOR,REVENUE
Walsall Council,http://opendatacommunities.org/id/metropolitan-district-council/walsall ,WC127-594,30.06.2021,ADULT SOCIAL CARE,ADVANCE HEALTH CARE (UK) LTD,10/06/2021,"2,564.72",6541-Domiciliary Care,THIRD PARTY PAYMENTS,PRIVATE CONTRACTOR,REVENUE
Walsall Council,http://opendatacommunities.org/id/metropolitan-district-council/walsall ,WC127-595,30.06.2021,ADULT SOCIAL CARE,ADVANCE HEALTH CARE (UK) LTD,10/06/2021,763.00,6541-Domiciliary Care,THIRD PARTY PAYMENTS,PRIVATE CONTRACTOR,REVENUE
Walsall Council,http://opendatacommunities.org/id/metropolitan-district-council/walsall ,WC127-596,30.06.2021,ADULT SOCIAL CARE,ADVANCE HEALTH CARE (UK) LTD,02/06/2021,"1,126.04",6541-Domiciliary Care,THIRD PARTY PAYMENTS,PRIVATE CONTRACTOR,REVENUE
Walsall Council,http://opendatacommunities.org/id/metropolitan-district-council/walsall ,WC127-597,30.06.2021,ADULT SOCIAL CARE,ADVANCE HEALTH CARE (UK) LTD,02/06/2021,825.28,6541-Domiciliary Care,THIRD PARTY PAYMENTS,PRIVATE CONTRACTOR,REVENUE
Walsall Council,http://opendatacommunities.org/id/metropolitan-district-council/walsall ,WC127-598,30.06.2021,ADULT SOCIAL CARE,ADVANCE HEALTH CARE (UK) LTD,02/06/2021,"1,744.12",6541-Domiciliary Care,THIRD PARTY PAYMENTS,PRIVATE CONTRACTOR,REVENUE
Walsall Council,http://opendatacommunities.org/id/metropolitan-district-council/walsall ,WC127-599,30.06.2021,ADULT SOCIAL CARE,ADVANCE HEALTH CARE (UK) LTD,02/06/2021,"2,761.92",6541-Domiciliary Care,THIRD PARTY PAYMENTS,PRIVATE CONTRACTOR,REVENUE
Walsall Council,http://opendatacommunities.org/id/metropolitan-district-council/walsall ,WC127-600,30.06.2021,ADULT SOCIAL CARE,ADVANCE HEALTH CARE (UK) LTD,02/06/2021,726.88,6541-Domiciliary Care,THIRD PARTY PAYMENTS,PRIVATE CONTRACTOR,REVENUE
Walsall Council,http://opendatacommunities.org/id/metropolitan-district-council/walsall ,WC127-601,30.06.2021,ADULT SOCIAL CARE,ADVANCE HEALTH CARE (UK) LTD,02/06/2021,"1,028.12",6541-Domiciliary Care,THIRD PARTY PAYMENTS,PRIVATE CONTRACTOR,REVENUE
Walsall Council,http://opendatacommunities.org/id/metropolitan-district-council/walsall ,WC127-602,30.06.2021,ADULT SOCIAL CARE,ADVANCE HEALTH CARE (UK) LTD,02/06/2021,825.28,6541-Domiciliary Care,THIRD PARTY PAYMENTS,PRIVATE CONTRACTOR,REVENUE
Walsall Council,http://opendatacommunities.org/id/metropolitan-district-council/walsall ,WC127-603,30.06.2021,ADULT SOCIAL CARE,ADVANCE HEALTH CARE (UK) LTD,02/06/2021,965.84,6541-Domiciliary Care,THIRD PARTY PAYMENTS,PRIVATE CONTRACTOR,REVENUE
Walsall Council,http://opendatacommunities.org/id/metropolitan-district-council/walsall ,WC127-604,30.06.2021,CHILDRENS,ADVANCED CHILD CARE ASSESSMENTS LTD,25/06/2021,397.65,6222-Professional Services-Priv Contractor & Other Agencies,THIRD PARTY PAYMENTS,PRIVATE CONTRACTOR,REVENUE
Walsall Council,http://opendatacommunities.org/id/metropolitan-district-council/walsall ,WC127-605,30.06.2021,CHILDRENS,ADVANCED CHILD CARE ASSESSMENTS LTD,22/06/2021,514.09,6220-School Only Payments - Catering,THIRD PARTY PAYMENTS,INDEPENDENT UNIT WITHIN COUNCIL,REVENUE
Walsall Council,http://opendatacommunities.org/id/metropolitan-district-council/walsall ,WC127-606,30.06.2021,CHILDRENS,ADVANCED CHILD CARE ASSESSMENTS LTD,22/06/2021,660.00,6220-School Only Payments - Catering,THIRD PARTY PAYMENTS,INDEPENDENT UNIT WITHIN COUNCIL,REVENUE
Walsall Council,http://opendatacommunities.org/id/metropolitan-district-council/walsall ,WC127-607,30.06.2021,CHILDRENS,ADVENTURELAND DAY NURSERY,23/06/2021,"2,458.93",1184-Other-Grants to Other Orgs,SUPPLIES & SERVICES,GRANTS (EXP) & SUBSCRIPTIONS,REVENUE
Walsall Council,http://opendatacommunities.org/id/metropolitan-district-council/walsall ,WC127-608,30.06.2021,CHILDRENS,ADVENTURELAND DAY NURSERY,21/06/2021,"10,312.93",1184-Other-Grants to Other Orgs,SUPPLIES & SERVICES,GRANTS (EXP) & SUBSCRIPTIONS,REVENUE
Walsall Council,http://opendatacommunities.org/id/metropolitan-district-council/walsall ,WC127-609,30.06.2021,CHILDRENS,ADVENTURELAND DAY NURSERY,15/06/2021,"1,808.82",1220-Top Up Funding -Grants to Schools,SUPPLIES & SERVICES,GRANTS (EXP) & SUBSCRIPTIONS,REVENUE
Walsall Council,http://opendatacommunities.org/id/metropolitan-district-council/walsall ,WC127-610,30.06.2021,ADULT SOCIAL CARE,ADVINIA CARE HOMES LTD - HAMMERWICH HALL CARE HOME,08/06/2021,"2,064.44",6541-Residential,THIRD PARTY PAYMENTS,PRIVATE CONTRACTOR,REVENUE
Walsall Council,http://opendatacommunities.org/id/metropolitan-district-council/walsall ,WC127-611,30.06.2021,ADULT SOCIAL CARE,ADVINIA CARE HOMES LTD - HAMMERWICH HALL CARE HOME,08/06/2021,"2,331.08",6541-Residential EMI,THIRD PARTY PAYMENTS,PRIVATE CONTRACTOR,REVENUE
Walsall Council,http://opendatacommunities.org/id/metropolitan-district-council/walsall ,WC127-612,30.06.2021,ECONOMY & ENVIRONMENT,AES CONTROL SYSTEMS,08/06/2021,"3,329.00",6414-Repair & Maintenance of Furniture & Equipment,SUPPLIES & SERVICES,EQUIPMENT FURNITURE & MATERIALS,REVENUE
Walsall Council,http://opendatacommunities.org/id/metropolitan-district-council/walsall ,WC127-613,30.06.2021,ECONOMY & ENVIRONMENT,AFGHAN COMMUNITY & WELFARE CENTRE,21/06/2021,980.00,6430-Consultant Fees,SUPPLIES & SERVICES,SERVICES,REVENUE
Walsall Council,http://opendatacommunities.org/id/metropolitan-district-council/walsall ,WC127-614,30.06.2021,CHILDRENS,REDACTED,02/06/2021,556.18,6223-Foster Carers Maintenance Allowance,TRANSFER PAYMENTS,CHILDREN SOCIAL SERVICES CLIENT,REVENUE
Walsall Council,http://opendatacommunities.org/id/metropolitan-district-council/walsall ,WC127-615,30.06.2021,CHILDRENS,REDACTED,02/06/2021,556.18,6223-Foster Carers Maintenance Allowance,TRANSFER PAYMENTS,CHILDREN SOCIAL SERVICES CLIENT,REVENUE
Walsall Council,http://opendatacommunities.org/id/metropolitan-district-council/walsall ,WC127-616,30.06.2021,CHILDRENS,REDACTED,30/06/2021,546.76,6223-Foster Carers Maintenance Allowance,TRANSFER PAYMENTS,CHILDREN SOCIAL SERVICES CLIENT,REVENUE
Walsall Council,http://opendatacommunities.org/id/metropolitan-district-council/walsall ,WC127-617,30.06.2021,CHILDRENS,REDACTED,30/06/2021,546.76,6223-Foster Carers Maintenance Allowance,TRANSFER PAYMENTS,CHILDREN SOCIAL SERVICES CLIENT,REVENUE
Walsall Council,http://opendatacommunities.org/id/metropolitan-district-council/walsall ,WC127-618,30.06.2021,ADULT SOCIAL CARE,AGE CONCERN CHESHIRE T/A AGE UK CHESHIRE,07/06/2021,460.60,6542-Professional Fees & Services,SUPPLIES & SERVICES,SERVICES,REVENUE
Walsall Council,http://opendatacommunities.org/id/metropolitan-district-council/walsall ,WC127-619,30.06.2021,RESOURCES AND TRANSFORMATION CAPITAL,AGILISYS LTD,03/06/2021,"11,165.00",7300-Consultants Fees,CAPITAL,"NEW CONSTRUCTION,CONVERSION & RENOVATION",CAPITAL
Walsall Council,http://opendatacommunities.org/id/metropolitan-district-council/walsall ,WC127-620,30.06.2021,RESOURCES AND TRANSFORMATION CAPITAL,AGILISYS LTD,03/06/2021,"94,248.00",7300-Consultants Fees,CAPITAL,"NEW CONSTRUCTION,CONVERSION & RENOVATION",CAPITAL
Walsall Council,http://opendatacommunities.org/id/metropolitan-district-council/walsall ,WC127-621,30.06.2021,RESOURCES AND TRANSFORMATION CAPITAL,AGILISYS LTD,03/06/2021,"202,784.00",7300-Consultants Fees,CAPITAL,"NEW CONSTRUCTION,CONVERSION & RENOVATION",CAPITAL
Walsall Council,http://opendatacommunities.org/id/metropolitan-district-council/walsall ,WC127-622,30.06.2021,RESOURCES AND TRANSFORMATION,AGILISYS LTD,03/06/2021,"95,000.00",6623-Computer Equipment,SUPPLIES & SERVICES,COMMUNICATIONS & COMPUTING,REVENUE
Walsall Council,http://opendatacommunities.org/id/metropolitan-district-council/walsall ,WC127-623,30.06.2021,ADULT SOCIAL CARE,REDACTED,09/06/2021,"3,100.80",6541-Direct Payment,THIRD PARTY PAYMENTS,PRIVATE CONTRACTOR,REVENUE
Walsall Council,http://opendatacommunities.org/id/metropolitan-district-council/walsall ,WC127-624,30.06.2021,RESOURCES AND TRANSFORMATION,ALASDAIR CANT & ASSOCIATES LIMITED,30/06/2021,"-2,605.50",6625-Consultant Fees,SUPPLIES & SERVICES,SERVICES,REVENUE
Walsall Council,http://opendatacommunities.org/id/metropolitan-district-council/walsall ,WC127-625,30.06.2021,RESOURCES AND TRANSFORMATION,ALASDAIR CANT & ASSOCIATES LIMITED,30/06/2021,"-2,605.00",6625-Consultant Fees,SUPPLIES & SERVICES,SERVICES,REVENUE
Walsall Council,http://opendatacommunities.org/id/metropolitan-district-council/walsall ,WC127-626,30.06.2021,RESOURCES AND TRANSFORMATION,ALASDAIR CANT & ASSOCIATES LIMITED,30/06/2021,"2,605.00",6625-Consultant Fees,SUPPLIES & SERVICES,SERVICES,REVENUE
Walsall Council,http://opendatacommunities.org/id/metropolitan-district-council/walsall ,WC127-627,30.06.2021,RESOURCES AND TRANSFORMATION,ALASDAIR CANT & ASSOCIATES LIMITED,30/06/2021,"2,605.50",6625-Consultant Fees,SUPPLIES & SERVICES,SERVICES,REVENUE
Walsall Council,http://opendatacommunities.org/id/metropolitan-district-council/walsall ,WC127-628,30.06.2021,CHILDRENS,ALDRIDGE & BARONS LIMITED,21/06/2021,"1,846.80",6241-Hire of Vehicle with Driver,TRANSPORT,DIRECT TRANSPORT COSTS,REVENUE
Walsall Council,http://opendatacommunities.org/id/metropolitan-district-council/walsall ,WC127-629,30.06.2021,CHILDRENS,ALDRIDGE & BARONS LIMITED,21/06/2021,"2,100.00",6241-Hire of Vehicle with Driver,TRANSPORT,DIRECT TRANSPORT COSTS,REVENUE
Walsall Council,http://opendatacommunities.org/id/metropolitan-district-council/walsall ,WC127-630,30.06.2021,CHILDRENS,ALDRIDGE & BARONS LIMITED,21/06/2021,"1,470.00",6241-Hire of Vehicle with Driver,TRANSPORT,DIRECT TRANSPORT COSTS,REVENUE
Walsall Council,http://opendatacommunities.org/id/metropolitan-district-council/walsall ,WC127-631,30.06.2021,CHILDRENS,ALDRIDGE & BARONS LIMITED,21/06/2021,"1,230.00",6241-Hire of Vehicle with Driver,TRANSPORT,DIRECT TRANSPORT COSTS,REVENUE
Walsall Council,http://opendatacommunities.org/id/metropolitan-district-council/walsall ,WC127-632,30.06.2021,CHILDRENS,ALDRIDGE & BARONS LIMITED,21/06/2021,"1,230.00",6241-Hire of Vehicle with Driver,TRANSPORT,DIRECT TRANSPORT COSTS,REVENUE
Walsall Council,http://opendatacommunities.org/id/metropolitan-district-council/walsall ,WC127-633,30.06.2021,CHILDRENS,ALDRIDGE & BARONS LIMITED,21/06/2021,"1,350.00",6241-Hire of Vehicle with Driver,TRANSPORT,DIRECT TRANSPORT COSTS,REVENUE
Walsall Council,http://opendatacommunities.org/id/metropolitan-district-council/walsall ,WC127-634,30.06.2021,CHILDRENS,ALDRIDGE & BARONS LIMITED,21/06/2021,"1,560.00",6241-Hire of Vehicle with Driver,TRANSPORT,DIRECT TRANSPORT COSTS,REVENUE
Walsall Council,http://opendatacommunities.org/id/metropolitan-district-council/walsall ,WC127-635,30.06.2021,CHILDRENS,ALDRIDGE & BARONS LIMITED,21/06/2021,837.00,6241-Hire of Vehicle with Driver,TRANSPORT,DIRECT TRANSPORT COSTS,REVENUE
Walsall Council,http://opendatacommunities.org/id/metropolitan-district-council/walsall ,WC127-636,30.06.2021,CHILDRENS,ALDRIDGE & BARONS LIMITED,21/06/2021,"1,176.00",6241-Hire of Vehicle with Driver,TRANSPORT,DIRECT TRANSPORT COSTS,REVENUE
Walsall Council,http://opendatacommunities.org/id/metropolitan-district-council/walsall ,WC127-637,30.06.2021,CHILDRENS,ALDRIDGE & BARONS LIMITED,21/06/2021,"1,758.00",6241-Hire of Vehicle with Driver,TRANSPORT,DIRECT TRANSPORT COSTS,REVENUE
Walsall Council,http://opendatacommunities.org/id/metropolitan-district-council/walsall ,WC127-638,30.06.2021,CHILDRENS,ALDRIDGE & BARONS LIMITED,21/06/2021,"1,413.75",6241-Hire of Vehicle with Driver,TRANSPORT,DIRECT TRANSPORT COSTS,REVENUE
Walsall Council,http://opendatacommunities.org/id/metropolitan-district-council/walsall ,WC127-639,30.06.2021,CHILDRENS,ALDRIDGE & BARONS LIMITED,21/06/2021,"1,387.90",6241-Hire of Vehicle with Driver,TRANSPORT,DIRECT TRANSPORT COSTS,REVENUE
Walsall Council,http://opendatacommunities.org/id/metropolitan-district-council/walsall ,WC127-640,30.06.2021,CHILDRENS,ALDRIDGE & BARONS LIMITED,21/06/2021,"1,467.00",6241-Hire of Vehicle with Driver,TRANSPORT,DIRECT TRANSPORT COSTS,REVENUE
Walsall Council,http://opendatacommunities.org/id/metropolitan-district-council/walsall ,WC127-641,30.06.2021,CHILDRENS,ALDRIDGE & BARONS LIMITED,21/06/2021,"1,200.00",6241-Hire of Vehicle with Driver,TRANSPORT,DIRECT TRANSPORT COSTS,REVENUE
Walsall Council,http://opendatacommunities.org/id/metropolitan-district-council/walsall ,WC127-642,30.06.2021,CHILDRENS,ALDRIDGE & BARONS LIMITED,21/06/2021,750.00,6241-Hire of Vehicle with Driver,TRANSPORT,DIRECT TRANSPORT COSTS,REVENUE
Walsall Council,http://opendatacommunities.org/id/metropolitan-district-council/walsall ,WC127-643,30.06.2021,CHILDRENS,ALDRIDGE & BARONS LIMITED,21/06/2021,604.80,6241-Hire of Vehicle with Driver,TRANSPORT,DIRECT TRANSPORT COSTS,REVENUE
Walsall Council,http://opendatacommunities.org/id/metropolitan-district-council/walsall ,WC127-644,30.06.2021,CHILDRENS,ALDRIDGE & BARONS LIMITED,21/06/2021,870.00,6241-Hire of Vehicle with Driver,TRANSPORT,DIRECT TRANSPORT COSTS,REVENUE
Walsall Council,http://opendatacommunities.org/id/metropolitan-district-council/walsall ,WC127-645,30.06.2021,CHILDRENS,ALDRIDGE & BARONS LIMITED,21/06/2021,855.00,6241-Hire of Vehicle with Driver,TRANSPORT,DIRECT TRANSPORT COSTS,REVENUE
Walsall Council,http://opendatacommunities.org/id/metropolitan-district-council/walsall ,WC127-646,30.06.2021,CHILDRENS,ALDRIDGE & BARONS LIMITED,21/06/2021,"1,230.00",6241-Hire of Vehicle with Driver,TRANSPORT,DIRECT TRANSPORT COSTS,REVENUE
Walsall Council,http://opendatacommunities.org/id/metropolitan-district-council/walsall ,WC127-647,30.06.2021,CHILDRENS,ALDRIDGE & BARONS LIMITED,21/06/2021,"1,200.00",6241-Hire of Vehicle with Driver,TRANSPORT,DIRECT TRANSPORT COSTS,REVENUE
Walsall Council,http://opendatacommunities.org/id/metropolitan-district-council/walsall ,WC127-648,30.06.2021,CHILDRENS,ALDRIDGE & BARONS LIMITED,21/06/2021,"1,364.40",6241-Hire of Vehicle with Driver,TRANSPORT,DIRECT TRANSPORT COSTS,REVENUE
Walsall Council,http://opendatacommunities.org/id/metropolitan-district-council/walsall ,WC127-649,30.06.2021,CHILDRENS,ALDRIDGE & BARONS LIMITED,21/06/2021,"2,850.00",6241-Hire of Vehicle with Driver,TRANSPORT,DIRECT TRANSPORT COSTS,REVENUE
Walsall Council,http://opendatacommunities.org/id/metropolitan-district-council/walsall ,WC127-650,30.06.2021,CHILDRENS,ALDRIDGE & BARONS LIMITED,21/06/2021,"1,290.00",6241-Hire of Vehicle with Driver,TRANSPORT,DIRECT TRANSPORT COSTS,REVENUE
Walsall Council,http://opendatacommunities.org/id/metropolitan-district-council/walsall ,WC127-651,30.06.2021,CHILDRENS,ALDRIDGE & BARONS LIMITED,21/06/2021,"1,491.12",6241-Hire of Vehicle with Driver,TRANSPORT,DIRECT TRANSPORT COSTS,REVENUE
Walsall Council,http://opendatacommunities.org/id/metropolitan-district-council/walsall ,WC127-652,30.06.2021,CHILDRENS,ALDRIDGE & BARONS LIMITED,21/06/2021,837.00,6241-Hire of Vehicle with Driver,TRANSPORT,DIRECT TRANSPORT COSTS,REVENUE
Walsall Council,http://opendatacommunities.org/id/metropolitan-district-council/walsall ,WC127-653,30.06.2021,CHILDRENS,ALDRIDGE & BARONS LIMITED,21/06/2021,"1,134.00",6241-Hire of Vehicle with Driver,TRANSPORT,DIRECT TRANSPORT COSTS,REVENUE
Walsall Council,http://opendatacommunities.org/id/metropolitan-district-council/walsall ,WC127-654,30.06.2021,CHILDRENS,ALDRIDGE & BARONS LIMITED,21/06/2021,"1,410.00",6241-Hire of Vehicle with Driver,TRANSPORT,DIRECT TRANSPORT COSTS,REVENUE
Walsall Council,http://opendatacommunities.org/id/metropolitan-district-council/walsall ,WC127-655,30.06.2021,CHILDRENS,ALDRIDGE & BARONS LIMITED,21/06/2021,"1,339.50",6241-Hire of Vehicle with Driver,TRANSPORT,DIRECT TRANSPORT COSTS,REVENUE
Walsall Council,http://opendatacommunities.org/id/metropolitan-district-council/walsall ,WC127-656,30.06.2021,CHILDRENS,ALDRIDGE & BARONS LIMITED,21/06/2021,-980.00,6241-Hire of Vehicle with Driver,TRANSPORT,DIRECT TRANSPORT COSTS,REVENUE
Walsall Council,http://opendatacommunities.org/id/metropolitan-district-council/walsall ,WC127-657,30.06.2021,CHILDRENS,ALDRIDGE & BARONS LIMITED,21/06/2021,540.00,6241-Hire of Vehicle with Driver,TRANSPORT,DIRECT TRANSPORT COSTS,REVENUE
Walsall Council,http://opendatacommunities.org/id/metropolitan-district-council/walsall ,WC127-658,30.06.2021,CHILDRENS,ALDRIDGE & BARONS LIMITED,21/06/2021,460.00,6241-Hire of Vehicle with Driver,TRANSPORT,DIRECT TRANSPORT COSTS,REVENUE
Walsall Council,http://opendatacommunities.org/id/metropolitan-district-council/walsall ,WC127-659,30.06.2021,CHILDRENS,ALDRIDGE & BARONS LIMITED,21/06/2021,"1,603.80",6241-Hire of Vehicle with Driver,TRANSPORT,DIRECT TRANSPORT COSTS,REVENUE
Walsall Council,http://opendatacommunities.org/id/metropolitan-district-council/walsall ,WC127-660,30.06.2021,CHILDRENS,ALDRIDGE & BARONS LIMITED,21/06/2021,"1,500.00",6241-Hire of Vehicle with Driver,TRANSPORT,DIRECT TRANSPORT COSTS,REVENUE
Walsall Council,http://opendatacommunities.org/id/metropolitan-district-council/walsall ,WC127-661,30.06.2021,CHILDRENS,ALDRIDGE & BARONS LIMITED,21/06/2021,"1,488.75",6241-Hire of Vehicle with Driver,TRANSPORT,DIRECT TRANSPORT COSTS,REVENUE
Walsall Council,http://opendatacommunities.org/id/metropolitan-district-council/walsall ,WC127-662,30.06.2021,ADULT SOCIAL CARE,ALDRIDGE CENTRAL COMM ASSOC,21/06/2021,"4,740.00",6420-Professional Services-Priv Contractor & Other Agencies,THIRD PARTY PAYMENTS,PRIVATE CONTRACTOR,REVENUE
Walsall Council,http://opendatacommunities.org/id/metropolitan-district-council/walsall ,WC127-663,30.06.2021,ADULT SOCIAL CARE,ALDRIDGE CENTRAL COMM ASSOC,09/06/2021,775.00,6420-Professional Services-Priv Contractor & Other Agencies,THIRD PARTY PAYMENTS,PRIVATE CONTRACTOR,REVENUE
Walsall Council,http://opendatacommunities.org/id/metropolitan-district-council/walsall ,WC127-664,30.06.2021,ADULT SOCIAL CARE,ALDRIDGE SHED,24/06/2021,"1,333.33",6420-Consultant Fees,SUPPLIES & SERVICES,SERVICES,REVENUE
Walsall Council,http://opendatacommunities.org/id/metropolitan-district-council/walsall ,WC127-665,30.06.2021,ADULT SOCIAL CARE,REDACTED,09/06/2021,"1,850.40",6541-Direct Payment,THIRD PARTY PAYMENTS,PRIVATE CONTRACTOR,REVENUE
Walsall Council,http://opendatacommunities.org/id/metropolitan-district-council/walsall ,WC127-666,30.06.2021,ADULT SOCIAL CARE,ALEXANDRA HOUSE CARE SERVICES LTD T/A STONEBRIDGE NURSING HOME,08/06/2021,"7,434.72",6541-Residential,THIRD PARTY PAYMENTS,PRIVATE CONTRACTOR,REVENUE
Walsall Council,http://opendatacommunities.org/id/metropolitan-district-council/walsall ,WC127-667,30.06.2021,ADULT SOCIAL CARE,REDACTED,09/06/2021,"2,453.50",6541-Direct Payment,THIRD PARTY PAYMENTS,PRIVATE CONTRACTOR,REVENUE
Walsall Council,http://opendatacommunities.org/id/metropolitan-district-council/walsall ,WC127-668,30.06.2021,ADULT SOCIAL CARE,REDACTED,09/06/2021,"1,196.80",6541-Direct Payment,THIRD PARTY PAYMENTS,PRIVATE CONTRACTOR,REVENUE
Walsall Council,http://opendatacommunities.org/id/metropolitan-district-council/walsall ,WC127-669,30.06.2021,RESOURCES AND TRANSFORMATION,ALIGNED ASSETS LTD,07/06/2021,"7,710.47",6623-Computer Equipment,SUPPLIES & SERVICES,COMMUNICATIONS & COMPUTING,REVENUE
Walsall Council,http://opendatacommunities.org/id/metropolitan-district-council/walsall ,WC127-670,30.06.2021,CHILDRENS,REDACTED,02/06/2021,331.67,6223-Special Guardianship Orders,TRANSFER PAYMENTS,CHILDREN SOCIAL SERVICES CLIENT,REVENUE
Walsall Council,http://opendatacommunities.org/id/metropolitan-district-council/walsall ,WC127-671,30.06.2021,CHILDRENS,REDACTED,30/06/2021,320.36,6223-Special Guardianship Orders,TRANSFER PAYMENTS,CHILDREN SOCIAL SERVICES CLIENT,REVENUE
Walsall Council,http://opendatacommunities.org/id/metropolitan-district-council/walsall ,WC127-672,30.06.2021,CHILDRENS,ALLIANCE CARE LTD,09/06/2021,"3,480.78",6222-Professional Services-Priv Contractor & Other Agencies,THIRD PARTY PAYMENTS,PRIVATE CONTRACTOR,REVENUE
Walsall Council,http://opendatacommunities.org/id/metropolitan-district-council/walsall ,WC127-673,30.06.2021,CHILDRENS,ALLIANCE CARE LTD,09/06/2021,"3,240.64",6222-Professional Services-Priv Contractor & Other Agencies,THIRD PARTY PAYMENTS,PRIVATE CONTRACTOR,REVENUE
Walsall Council,http://opendatacommunities.org/id/metropolitan-district-council/walsall ,WC127-674,30.06.2021,CHILDRENS,ALLIANCE CARE LTD,09/06/2021,697.55,6222-Professional Services-Priv Contractor & Other Agencies,THIRD PARTY PAYMENTS,PRIVATE CONTRACTOR,REVENUE
Walsall Council,http://opendatacommunities.org/id/metropolitan-district-council/walsall ,WC127-675,30.06.2021,CHILDRENS,ALLIANCE CARE LTD,16/06/2021,453.37,6222-Professional Services-Priv Contractor & Other Agencies,THIRD PARTY PAYMENTS,PRIVATE CONTRACTOR,REVENUE
Walsall Council,http://opendatacommunities.org/id/metropolitan-district-council/walsall ,WC127-676,30.06.2021,CHILDRENS,ALLIANCE CARE LTD,15/06/2021,"5,655.54",6222-Professional Services-Priv Contractor & Other Agencies,THIRD PARTY PAYMENTS,PRIVATE CONTRACTOR,REVENUE
Walsall Council,http://opendatacommunities.org/id/metropolitan-district-council/walsall ,WC127-677,30.06.2021,RESOURCES AND TRANSFORMATION,ALLIED PUBLICITY SERVICES (MANCHESTER) LIMITED T/A APS GROUP,09/06/2021,"1,283.04",6312-External Printing Services,SUPPLIES & SERVICES,PRINTING STATIONERY & GENERAL OFFICE,REVENUE
Walsall Council,http://opendatacommunities.org/id/metropolitan-district-council/walsall ,WC127-678,30.06.2021,ADULT SOCIAL CARE,ALMA COURT,08/06/2021,"5,966.16",6541-Nursing EMI,THIRD PARTY PAYMENTS,PRIVATE CONTRACTOR,REVENUE
Walsall Council,http://opendatacommunities.org/id/metropolitan-district-council/walsall ,WC127-679,30.06.2021,ADULT SOCIAL CARE,ALMA COURT,08/06/2021,"3,626.96",6541-Nursing EMI,THIRD PARTY PAYMENTS,PRIVATE CONTRACTOR,REVENUE
Walsall Council,http://opendatacommunities.org/id/metropolitan-district-council/walsall ,WC127-680,30.06.2021,ADULT SOCIAL CARE,ALMA COURT,08/06/2021,"6,619.12",6541-Residential,THIRD PARTY PAYMENTS,PRIVATE CONTRACTOR,REVENUE
Walsall Council,http://opendatacommunities.org/id/metropolitan-district-council/walsall ,WC127-681,30.06.2021,ADULT SOCIAL CARE,ALMA COURT,08/06/2021,"4,764.88",6541-Nursing EMI,THIRD PARTY PAYMENTS,PRIVATE CONTRACTOR,REVENUE
Walsall Council,http://opendatacommunities.org/id/metropolitan-district-council/walsall ,WC127-682,30.06.2021,ADULT SOCIAL CARE,ALMA COURT,08/06/2021,"3,826.96",6541-Nursing EMI,THIRD PARTY PAYMENTS,PRIVATE CONTRACTOR,REVENUE
Walsall Council,http://opendatacommunities.org/id/metropolitan-district-council/walsall ,WC127-683,30.06.2021,CHILDRENS,ALMOZENE NURSERY & CHILDRENS CENTRE,23/06/2021,"2,282.46",1184-Other-Grants to Other Orgs,SUPPLIES & SERVICES,GRANTS (EXP) & SUBSCRIPTIONS,REVENUE
Walsall Council,http://opendatacommunities.org/id/metropolitan-district-council/walsall ,WC127-684,30.06.2021,CHILDRENS,ALMOZENE NURSERY & CHILDRENS CENTRE,21/06/2021,"6,346.54",1184-Other-Grants to Other Orgs,SUPPLIES & SERVICES,GRANTS (EXP) & SUBSCRIPTIONS,REVENUE
Walsall Council,http://opendatacommunities.org/id/metropolitan-district-council/walsall ,WC127-685,30.06.2021,ECONOMY & ENVIRONMENT,ALMOZENE NURSERY & CHILDRENS CENTRE,17/06/2021,646.16,6313-Grants to Other Orgs,SUPPLIES & SERVICES,GRANTS (EXP) & SUBSCRIPTIONS,REVENUE
Walsall Council,http://opendatacommunities.org/id/metropolitan-district-council/walsall ,WC127-686,30.06.2021,ECONOMY & ENVIRONMENT,ALMOZENE NURSERY & CHILDRENS CENTRE,28/06/2021,"1,018.92",6313-Grants to Other Orgs,SUPPLIES & SERVICES,GRANTS (EXP) & SUBSCRIPTIONS,REVENUE
Walsall Council,http://opendatacommunities.org/id/metropolitan-district-council/walsall ,WC127-687,30.06.2021,ADULT SOCIAL CARE,ALPHA HEALTH CARE LTD,08/06/2021,"2,331.08",6541-Residential EMI,THIRD PARTY PAYMENTS,PRIVATE CONTRACTOR,REVENUE
Walsall Council,http://opendatacommunities.org/id/metropolitan-district-council/walsall ,WC127-688,30.06.2021,ADULT SOCIAL CARE,ALPHA HEALTH CARE LTD,08/06/2021,"3,091.28",6541-Nursing EMI,THIRD PARTY PAYMENTS,PRIVATE CONTRACTOR,REVENUE
Walsall Council,http://opendatacommunities.org/id/metropolitan-district-council/walsall ,WC127-689,30.06.2021,ADULT SOCIAL CARE,ALPHA HEALTH CARE LTD,08/06/2021,"3,091.28",6541-Nursing EMI,THIRD PARTY PAYMENTS,PRIVATE CONTRACTOR,REVENUE
Walsall Council,http://opendatacommunities.org/id/metropolitan-district-council/walsall ,WC127-690,30.06.2021,ADULT SOCIAL CARE,ALPHA HEALTH CARE LTD,08/06/2021,"2,331.08",6541-Residential EMI,THIRD PARTY PAYMENTS,PRIVATE CONTRACTOR,REVENUE
Walsall Council,http://opendatacommunities.org/id/metropolitan-district-council/walsall ,WC127-691,30.06.2021,ADULT SOCIAL CARE,ALPHA HEALTH CARE LTD,08/06/2021,"3,091.28",6541-Nursing EMI,THIRD PARTY PAYMENTS,PRIVATE CONTRACTOR,REVENUE
Walsall Council,http://opendatacommunities.org/id/metropolitan-district-council/walsall ,WC127-692,30.06.2021,ADULT SOCIAL CARE,ALPHA HEALTH CARE LTD,08/06/2021,"2,331.08",6541-Residential EMI,THIRD PARTY PAYMENTS,PRIVATE CONTRACTOR,REVENUE
Walsall Council,http://opendatacommunities.org/id/metropolitan-district-council/walsall ,WC127-693,30.06.2021,ADULT SOCIAL CARE,ALPHA HEALTH CARE LTD,08/06/2021,"3,083.08",6541-Residential EMI,THIRD PARTY PAYMENTS,PRIVATE CONTRACTOR,REVENUE
Walsall Council,http://opendatacommunities.org/id/metropolitan-district-council/walsall ,WC127-694,30.06.2021,ADULT SOCIAL CARE,ALPHA HEALTH CARE LTD,08/06/2021,"3,363.08",6541-Residential EMI,THIRD PARTY PAYMENTS,PRIVATE CONTRACTOR,REVENUE
Walsall Council,http://opendatacommunities.org/id/metropolitan-district-council/walsall ,WC127-695,30.06.2021,ADULT SOCIAL CARE,ALPHA HEALTH CARE LTD,08/06/2021,"2,722.96",6541-Nursing EMI,THIRD PARTY PAYMENTS,PRIVATE CONTRACTOR,REVENUE
Walsall Council,http://opendatacommunities.org/id/metropolitan-district-council/walsall ,WC127-696,30.06.2021,ADULT SOCIAL CARE,ALPHA HEALTH CARE LTD,08/06/2021,"3,317.32",6541-Nursing EMI,THIRD PARTY PAYMENTS,PRIVATE CONTRACTOR,REVENUE
Walsall Council,http://opendatacommunities.org/id/metropolitan-district-council/walsall ,WC127-697,30.06.2021,ADULT SOCIAL CARE,ALPHA HEALTH CARE LTD,08/06/2021,"3,203.08",6541-Residential EMI,THIRD PARTY PAYMENTS,PRIVATE CONTRACTOR,REVENUE
Walsall Council,http://opendatacommunities.org/id/metropolitan-district-council/walsall ,WC127-698,30.06.2021,ADULT SOCIAL CARE,ALPHA HEALTH CARE LTD,08/06/2021,"3,083.08",6541-Residential EMI,THIRD PARTY PAYMENTS,PRIVATE CONTRACTOR,REVENUE
Walsall Council,http://opendatacommunities.org/id/metropolitan-district-council/walsall ,WC127-699,30.06.2021,ADULT SOCIAL CARE,ALPHA HEALTH CARE LTD,08/06/2021,"2,961.72",6541-Nursing,THIRD PARTY PAYMENTS,PRIVATE CONTRACTOR,REVENUE
Walsall Council,http://opendatacommunities.org/id/metropolitan-district-council/walsall ,WC127-700,30.06.2021,ADULT SOCIAL CARE,ALPHA HEALTH CARE LTD,08/06/2021,"3,200.44",6541-Residential,THIRD PARTY PAYMENTS,PRIVATE CONTRACTOR,REVENUE
Walsall Council,http://opendatacommunities.org/id/metropolitan-district-council/walsall ,WC127-701,30.06.2021,ADULT SOCIAL CARE,ALPHA HEALTH CARE LTD,08/06/2021,"2,331.08",6541-Residential EMI,THIRD PARTY PAYMENTS,PRIVATE CONTRACTOR,REVENUE
Walsall Council,http://opendatacommunities.org/id/metropolitan-district-council/walsall ,WC127-702,30.06.2021,ADULT SOCIAL CARE,ALPHA HEALTH CARE LTD,08/06/2021,"2,868.28",6541-Nursing,THIRD PARTY PAYMENTS,PRIVATE CONTRACTOR,REVENUE
Walsall Council,http://opendatacommunities.org/id/metropolitan-district-council/walsall ,WC127-703,30.06.2021,ADULT SOCIAL CARE,ALPHA HEALTH CARE LTD,08/06/2021,"3,626.96",6541-Nursing EMI,THIRD PARTY PAYMENTS,PRIVATE CONTRACTOR,REVENUE
Walsall Council,http://opendatacommunities.org/id/metropolitan-district-council/walsall ,WC127-704,30.06.2021,ADULT SOCIAL CARE,ALPHA HEALTH CARE LTD,08/06/2021,"2,854.56",6541-Residential EMI,THIRD PARTY PAYMENTS,PRIVATE CONTRACTOR,REVENUE
Walsall Council,http://opendatacommunities.org/id/metropolitan-district-council/walsall ,WC127-705,30.06.2021,ADULT SOCIAL CARE,ALPHA HEALTH CARE LTD,08/06/2021,"2,722.96",6541-Nursing EMI,THIRD PARTY PAYMENTS,PRIVATE CONTRACTOR,REVENUE
Walsall Council,http://opendatacommunities.org/id/metropolitan-district-council/walsall ,WC127-706,30.06.2021,ADULT SOCIAL CARE,ALPHA HEALTH CARE LTD,08/06/2021,"2,331.08",6541-Residential EMI,THIRD PARTY PAYMENTS,PRIVATE CONTRACTOR,REVENUE
Walsall Council,http://opendatacommunities.org/id/metropolitan-district-council/walsall ,WC127-707,30.06.2021,ADULT SOCIAL CARE,ALPHA HEALTH CARE LTD,08/06/2021,"5,656.00",6541-Residential,THIRD PARTY PAYMENTS,PRIVATE CONTRACTOR,REVENUE
Walsall Council,http://opendatacommunities.org/id/metropolitan-district-council/walsall ,WC127-708,30.06.2021,ADULT SOCIAL CARE,ALPHA HEALTH CARE LTD,08/06/2021,"3,058.80",6541-Residential EMI,THIRD PARTY PAYMENTS,PRIVATE CONTRACTOR,REVENUE
Walsall Council,http://opendatacommunities.org/id/metropolitan-district-council/walsall ,WC127-709,30.06.2021,ADULT SOCIAL CARE,ALPHA HEALTH CARE LTD,08/06/2021,"3,091.28",6541-Nursing EMI,THIRD PARTY PAYMENTS,PRIVATE CONTRACTOR,REVENUE
Walsall Council,http://opendatacommunities.org/id/metropolitan-district-council/walsall ,WC127-710,30.06.2021,ADULT SOCIAL CARE,ALPHA HEALTH CARE LTD,08/06/2021,"-30,817.33",6541-Nursing EMI,THIRD PARTY PAYMENTS,PRIVATE CONTRACTOR,REVENUE
Walsall Council,http://opendatacommunities.org/id/metropolitan-district-council/walsall ,WC127-711,30.06.2021,ADULT SOCIAL CARE,ALPHA HEALTH CARE LTD,08/06/2021,"2,306.04",6541-Nursing EMI,THIRD PARTY PAYMENTS,PRIVATE CONTRACTOR,REVENUE
Walsall Council,http://opendatacommunities.org/id/metropolitan-district-council/walsall ,WC127-712,30.06.2021,ADULT SOCIAL CARE,ALPHA HEALTH CARE LTD,08/06/2021,"2,722.96",6541-Nursing EMI,THIRD PARTY PAYMENTS,PRIVATE CONTRACTOR,REVENUE
Walsall Council,http://opendatacommunities.org/id/metropolitan-district-council/walsall ,WC127-713,30.06.2021,ADULT SOCIAL CARE,ALPHA HEALTH CARE LTD,08/06/2021,"2,964.84",6541-Nursing EMI,THIRD PARTY PAYMENTS,PRIVATE CONTRACTOR,REVENUE
Walsall Council,http://opendatacommunities.org/id/metropolitan-district-council/walsall ,WC127-714,30.06.2021,ADULT SOCIAL CARE,ALPHA HEALTH CARE LTD,08/06/2021,"7,026.96",6541-Nursing EMI,THIRD PARTY PAYMENTS,PRIVATE CONTRACTOR,REVENUE
Walsall Council,http://opendatacommunities.org/id/metropolitan-district-council/walsall ,WC127-715,30.06.2021,ADULT SOCIAL CARE,ALPHA HEALTH CARE LTD,14/06/2021,542.86,6554-Professional Services-Priv Contractor & Other Agencies,THIRD PARTY PAYMENTS,PRIVATE CONTRACTOR,REVENUE
Walsall Council,http://opendatacommunities.org/id/metropolitan-district-council/walsall ,WC127-716,30.06.2021,ADULT SOCIAL CARE,ALPHA HEALTH CARE LTD,14/06/2021,"1,357.14",6554-Professional Services-Priv Contractor & Other Agencies,THIRD PARTY PAYMENTS,PRIVATE CONTRACTOR,REVENUE
Walsall Council,http://opendatacommunities.org/id/metropolitan-district-council/walsall ,WC127-717,30.06.2021,ADULT SOCIAL CARE,ALPHA HEALTH CARE LTD,14/06/2021,"2,515.29",6554-Professional Services-Priv Contractor & Other Agencies,THIRD PARTY PAYMENTS,PRIVATE CONTRACTOR,REVENUE
Walsall Council,http://opendatacommunities.org/id/metropolitan-district-council/walsall ,WC127-718,30.06.2021,CHILDRENS,ALPHA TRAINING ACADEMY UK LTD,18/06/2021,"3,750.00",1187-Materials,SUPPLIES & SERVICES,EQUIPMENT FURNITURE & MATERIALS,REVENUE
Walsall Council,http://opendatacommunities.org/id/metropolitan-district-council/walsall ,WC127-719,30.06.2021,CHILDRENS,ALPHABIOLABS,30/06/2021,399.00,6220-School Only Payments - Catering,THIRD PARTY PAYMENTS,INDEPENDENT UNIT WITHIN COUNCIL,REVENUE
Walsall Council,http://opendatacommunities.org/id/metropolitan-district-council/walsall ,WC127-720,30.06.2021,CHILDRENS,ALPHABIOLABS,03/06/2021,425.00,6222-Professional Fees & Services,SUPPLIES & SERVICES,SERVICES,REVENUE
Walsall Council,http://opendatacommunities.org/id/metropolitan-district-council/walsall ,WC127-721,30.06.2021,CHILDRENS,ALPHABIOLABS,09/06/2021,419.00,6223-Professional Fees & Services,SUPPLIES & SERVICES,SERVICES,REVENUE
Walsall Council,http://opendatacommunities.org/id/metropolitan-district-council/walsall ,WC127-722,30.06.2021,CHILDRENS,ALPHABIOLABS,25/06/2021,"1,315.00",6223-Professional Services-Priv Contractor & Other Agencies,THIRD PARTY PAYMENTS,PRIVATE CONTRACTOR,REVENUE
Walsall Council,http://opendatacommunities.org/id/metropolitan-district-council/walsall ,WC127-723,30.06.2021,CHILDRENS,ALPHABIOLABS,30/06/2021,470.00,6220-School Only Payments - Catering,THIRD PARTY PAYMENTS,INDEPENDENT UNIT WITHIN COUNCIL,REVENUE
Walsall Council,http://opendatacommunities.org/id/metropolitan-district-council/walsall ,WC127-724,30.06.2021,CHILDRENS,AMAH NURSERIES LIMITED T/A BANANA MOON WALSALL,23/06/2021,"9,584.04",1184-Other-Grants to Other Orgs,SUPPLIES & SERVICES,GRANTS (EXP) & SUBSCRIPTIONS,REVENUE
Walsall Council,http://opendatacommunities.org/id/metropolitan-district-council/walsall ,WC127-725,30.06.2021,CHILDRENS,AMAH NURSERIES LIMITED T/A BANANA MOON WALSALL,21/06/2021,"17,730.26",1184-Other-Grants to Other Orgs,SUPPLIES & SERVICES,GRANTS (EXP) & SUBSCRIPTIONS,REVENUE
Walsall Council,http://opendatacommunities.org/id/metropolitan-district-council/walsall ,WC127-726,30.06.2021,CHILDRENS,REDACTED,02/06/2021,329.28,6223-Residents Orders,TRANSFER PAYMENTS,CHILDREN SOCIAL SERVICES CLIENT,REVENUE
Walsall Council,http://opendatacommunities.org/id/metropolitan-district-council/walsall ,WC127-727,30.06.2021,CHILDRENS,REDACTED,30/06/2021,322.76,6223-Residents Orders,TRANSFER PAYMENTS,CHILDREN SOCIAL SERVICES CLIENT,REVENUE
Walsall Council,http://opendatacommunities.org/id/metropolitan-district-council/walsall ,WC127-728,30.06.2021,ADULT SOCIAL CARE,REDACTED,09/06/2021,"2,033.70",6541-Direct Payment,THIRD PARTY PAYMENTS,PRIVATE CONTRACTOR,REVENUE
Walsall Council,http://opendatacommunities.org/id/metropolitan-district-council/walsall ,WC127-729,30.06.2021,ECONOMY & ENVIRONMENT,AMEY LG LIMITED,02/06/2021,"-15,363.08",6411-Materials,SUPPLIES & SERVICES,EQUIPMENT FURNITURE & MATERIALS,REVENUE
Walsall Council,http://opendatacommunities.org/id/metropolitan-district-council/walsall ,WC127-730,30.06.2021,ECONOMY & ENVIRONMENT,AMEY LG LIMITED,02/06/2021,"15,363.08",6411-Materials,SUPPLIES & SERVICES,EQUIPMENT FURNITURE & MATERIALS,REVENUE
Walsall Council,http://opendatacommunities.org/id/metropolitan-district-council/walsall ,WC127-731,30.06.2021,ECONOMY & ENVIRONMENT,AMEY LG LIMITED,07/06/2021,"17,174.31",6411-Materials,SUPPLIES & SERVICES,EQUIPMENT FURNITURE & MATERIALS,REVENUE
Walsall Council,http://opendatacommunities.org/id/metropolitan-district-council/walsall ,WC127-732,30.06.2021,ECONOMY & ENVIRONMENT,AMEY LG LIMITED,28/06/2021,329.94,6430-Repair & Maintenance of Furniture & Equipment,SUPPLIES & SERVICES,EQUIPMENT FURNITURE & MATERIALS,REVENUE
Walsall Council,http://opendatacommunities.org/id/metropolitan-district-council/walsall ,WC127-733,30.06.2021,ECONOMY & ENVIRONMENT,AMEY LG LIMITED,28/06/2021,"1,739.91",6430-Repair & Maintenance of Furniture & Equipment,SUPPLIES & SERVICES,EQUIPMENT FURNITURE & MATERIALS,REVENUE
Walsall Council,http://opendatacommunities.org/id/metropolitan-district-council/walsall ,WC127-734,30.06.2021,ECONOMY & ENVIRONMENT,AMEY LG LIMITED,28/06/2021,"1,101.99",6430-Repair & Maintenance of Furniture & Equipment,SUPPLIES & SERVICES,EQUIPMENT FURNITURE & MATERIALS,REVENUE
Walsall Council,http://opendatacommunities.org/id/metropolitan-district-council/walsall ,WC127-735,30.06.2021,ECONOMY & ENVIRONMENT,AMEY LG LIMITED,28/06/2021,411.59,6430-Repair & Maintenance of Furniture & Equipment,SUPPLIES & SERVICES,EQUIPMENT FURNITURE & MATERIALS,REVENUE
Walsall Council,http://opendatacommunities.org/id/metropolitan-district-council/walsall ,WC127-736,30.06.2021,ECONOMY & ENVIRONMENT CAPITAL,AMEY OW LTD,22/06/2021,"13,531.90",7200-Project Fees,CAPITAL,"NEW CONSTRUCTION,CONVERSION & RENOVATION",CAPITAL
Walsall Council,http://opendatacommunities.org/id/metropolitan-district-council/walsall ,WC127-737,30.06.2021,RESOURCES AND TRANSFORMATION CAPITAL,AMEY OW LTD,23/06/2021,"35,577.52",7300-Project Fees,CAPITAL,"NEW CONSTRUCTION,CONVERSION & RENOVATION",CAPITAL
Walsall Council,http://opendatacommunities.org/id/metropolitan-district-council/walsall ,WC127-738,30.06.2021,ECONOMY & ENVIRONMENT,AMEY OW LTD,29/06/2021,"1,147.21",6411-Professional Services-Priv Contractor & Other Agencies,THIRD PARTY PAYMENTS,PRIVATE CONTRACTOR,REVENUE
Walsall Council,http://opendatacommunities.org/id/metropolitan-district-council/walsall ,WC127-739,30.06.2021,ADULT SOCIAL CARE,AMG NURSING CARE SERVICES,02/06/2021,"4,068.40",6541-Community Supported Living/Supported Accommodation,THIRD PARTY PAYMENTS,PRIVATE CONTRACTOR,REVENUE
Walsall Council,http://opendatacommunities.org/id/metropolitan-district-council/walsall ,WC127-740,30.06.2021,CHILDRENS,AMG NURSING CARE SERVICES,15/06/2021,"1,927.32",6220-Accommodation and Related Costs-Assistance to S/S Clients,TRANSFER PAYMENTS,ADULT SOCIAL SERVICES CLIENT,REVENUE
Walsall Council,http://opendatacommunities.org/id/metropolitan-district-council/walsall ,WC127-741,30.06.2021,CHILDRENS,AMG NURSING CARE SERVICES,23/06/2021,"2,274.48",6220-Accommodation and Related Costs-Assistance to S/S Clients,TRANSFER PAYMENTS,ADULT SOCIAL SERVICES CLIENT,REVENUE
Walsall Council,http://opendatacommunities.org/id/metropolitan-district-council/walsall ,WC127-742,30.06.2021,CHILDRENS,AMG NURSING CARE SERVICES,29/06/2021,"2,634.55",6220-Accommodation and Related Costs-Assistance to S/S Clients,TRANSFER PAYMENTS,ADULT SOCIAL SERVICES CLIENT,REVENUE
Walsall Council,http://opendatacommunities.org/id/metropolitan-district-council/walsall ,WC127-743,30.06.2021,CHILDRENS,REDACTED,02/06/2021,340.00,6223-Internal Foster Carers-Carer Fees,TRANSFER PAYMENTS,CHILDREN SOCIAL SERVICES CLIENT,REVENUE
Walsall Council,http://opendatacommunities.org/id/metropolitan-district-council/walsall ,WC127-744,30.06.2021,CHILDRENS,REDACTED,02/06/2021,303.76,6223-Foster Carers Holiday/Christmas Allowances,TRANSFER PAYMENTS,CHILDREN SOCIAL SERVICES CLIENT,REVENUE
Walsall Council,http://opendatacommunities.org/id/metropolitan-district-council/walsall ,WC127-745,30.06.2021,CHILDRENS,REDACTED,02/06/2021,553.71,6223-Foster Carers Maintenance Allowance,TRANSFER PAYMENTS,CHILDREN SOCIAL SERVICES CLIENT,REVENUE
Walsall Council,http://opendatacommunities.org/id/metropolitan-district-council/walsall ,WC127-746,30.06.2021,CHILDRENS,REDACTED,30/06/2021,340.00,6223-Internal Foster Carers-Carer Fees,TRANSFER PAYMENTS,CHILDREN SOCIAL SERVICES CLIENT,REVENUE
Walsall Council,http://opendatacommunities.org/id/metropolitan-district-council/walsall ,WC127-747,30.06.2021,CHILDRENS,REDACTED,30/06/2021,607.52,6223-Foster Carers Maintenance Allowance,TRANSFER PAYMENTS,CHILDREN SOCIAL SERVICES CLIENT,REVENUE
Walsall Council,http://opendatacommunities.org/id/metropolitan-district-council/walsall ,WC127-748,30.06.2021,ADULT SOCIAL CARE,ANCHOR CAREHOMES LTD - HARDEN HALL,08/06/2021,"2,355.32",6541-Residential EMI,THIRD PARTY PAYMENTS,PRIVATE CONTRACTOR,REVENUE
Walsall Council,http://opendatacommunities.org/id/metropolitan-district-council/walsall ,WC127-749,30.06.2021,ADULT SOCIAL CARE,ANCHOR CAREHOMES LTD - HARDEN HALL,08/06/2021,"2,331.08",6541-Residential EMI,THIRD PARTY PAYMENTS,PRIVATE CONTRACTOR,REVENUE
Walsall Council,http://opendatacommunities.org/id/metropolitan-district-council/walsall ,WC127-750,30.06.2021,ADULT SOCIAL CARE,ANCHOR CAREHOMES LTD - HARDEN HALL,08/06/2021,"2,331.08",6541-Residential EMI,THIRD PARTY PAYMENTS,PRIVATE CONTRACTOR,REVENUE
Walsall Council,http://opendatacommunities.org/id/metropolitan-district-council/walsall ,WC127-751,30.06.2021,ADULT SOCIAL CARE,ANCHOR CAREHOMES LTD - HARDEN HALL,08/06/2021,"2,331.08",6541-Residential EMI,THIRD PARTY PAYMENTS,PRIVATE CONTRACTOR,REVENUE
Walsall Council,http://opendatacommunities.org/id/metropolitan-district-council/walsall ,WC127-752,30.06.2021,ADULT SOCIAL CARE,ANCHOR CAREHOMES LTD - HARDEN HALL,08/06/2021,"2,331.08",6541-Residential EMI,THIRD PARTY PAYMENTS,PRIVATE CONTRACTOR,REVENUE
Walsall Council,http://opendatacommunities.org/id/metropolitan-district-council/walsall ,WC127-753,30.06.2021,ADULT SOCIAL CARE,ANCHOR CAREHOMES LTD - HARDEN HALL,08/06/2021,"2,331.08",6541-Residential EMI,THIRD PARTY PAYMENTS,PRIVATE CONTRACTOR,REVENUE
Walsall Council,http://opendatacommunities.org/id/metropolitan-district-council/walsall ,WC127-754,30.06.2021,ADULT SOCIAL CARE,ANCHOR CAREHOMES LTD - HARDEN HALL,08/06/2021,"2,294.56",6541-Residential EMI,THIRD PARTY PAYMENTS,PRIVATE CONTRACTOR,REVENUE
Walsall Council,http://opendatacommunities.org/id/metropolitan-district-council/walsall ,WC127-755,30.06.2021,ADULT SOCIAL CARE,ANCHOR CAREHOMES LTD - HARDEN HALL,08/06/2021,"2,064.44",6541-Residential,THIRD PARTY PAYMENTS,PRIVATE CONTRACTOR,REVENUE
Walsall Council,http://opendatacommunities.org/id/metropolitan-district-council/walsall ,WC127-756,30.06.2021,ADULT SOCIAL CARE,ANCHOR CAREHOMES LTD - HARDEN HALL,08/06/2021,"2,335.32",6541-Residential EMI,THIRD PARTY PAYMENTS,PRIVATE CONTRACTOR,REVENUE
Walsall Council,http://opendatacommunities.org/id/metropolitan-district-council/walsall ,WC127-757,30.06.2021,ADULT SOCIAL CARE,ANCHOR CAREHOMES LTD - HARDEN HALL,08/06/2021,"2,331.08",6541-Residential EMI,THIRD PARTY PAYMENTS,PRIVATE CONTRACTOR,REVENUE
Walsall Council,http://opendatacommunities.org/id/metropolitan-district-council/walsall ,WC127-758,30.06.2021,ADULT SOCIAL CARE,ANCHOR CAREHOMES LTD - HARDEN HALL,08/06/2021,"2,691.08",6541-Residential EMI,THIRD PARTY PAYMENTS,PRIVATE CONTRACTOR,REVENUE
Walsall Council,http://opendatacommunities.org/id/metropolitan-district-council/walsall ,WC127-759,30.06.2021,ADULT SOCIAL CARE,ANCHOR CAREHOMES LTD - HARDEN HALL,08/06/2021,"2,331.08",6541-Residential EMI,THIRD PARTY PAYMENTS,PRIVATE CONTRACTOR,REVENUE
Walsall Council,http://opendatacommunities.org/id/metropolitan-district-council/walsall ,WC127-760,30.06.2021,ADULT SOCIAL CARE,ANCHOR CAREHOMES LTD - HARDEN HALL,08/06/2021,"2,064.44",6541-Residential,THIRD PARTY PAYMENTS,PRIVATE CONTRACTOR,REVENUE
Walsall Council,http://opendatacommunities.org/id/metropolitan-district-council/walsall ,WC127-761,30.06.2021,ADULT SOCIAL CARE,ANCHOR CAREHOMES LTD - HARDEN HALL,08/06/2021,"2,382.04",6541-Residential EMI,THIRD PARTY PAYMENTS,PRIVATE CONTRACTOR,REVENUE
Walsall Council,http://opendatacommunities.org/id/metropolitan-district-council/walsall ,WC127-762,30.06.2021,ADULT SOCIAL CARE,ANCHOR CAREHOMES LTD - HARDEN HALL,08/06/2021,"2,286.56",6541-Residential,THIRD PARTY PAYMENTS,PRIVATE CONTRACTOR,REVENUE
Walsall Council,http://opendatacommunities.org/id/metropolitan-district-council/walsall ,WC127-763,30.06.2021,ADULT SOCIAL CARE,ANCHOR CAREHOMES LTD - HARDEN HALL,08/06/2021,"2,355.32",6541-Residential EMI,THIRD PARTY PAYMENTS,PRIVATE CONTRACTOR,REVENUE
Walsall Council,http://opendatacommunities.org/id/metropolitan-district-council/walsall ,WC127-764,30.06.2021,ADULT SOCIAL CARE,ANCHOR CAREHOMES LTD - HARDEN HALL,08/06/2021,"2,335.32",6541-Residential EMI,THIRD PARTY PAYMENTS,PRIVATE CONTRACTOR,REVENUE
Walsall Council,http://opendatacommunities.org/id/metropolitan-district-council/walsall ,WC127-765,30.06.2021,ADULT SOCIAL CARE,ANCHOR CAREHOMES LTD - HARDEN HALL,08/06/2021,"2,331.08",6541-Residential EMI,THIRD PARTY PAYMENTS,PRIVATE CONTRACTOR,REVENUE
Walsall Council,http://opendatacommunities.org/id/metropolitan-district-council/walsall ,WC127-766,30.06.2021,ADULT SOCIAL CARE,ANCHOR CAREHOMES LTD - HARDEN HALL,08/06/2021,"2,355.32",6541-Residential EMI,THIRD PARTY PAYMENTS,PRIVATE CONTRACTOR,REVENUE
Walsall Council,http://opendatacommunities.org/id/metropolitan-district-council/walsall ,WC127-767,30.06.2021,ADULT SOCIAL CARE,ANCHOR CAREHOMES LTD - HARDEN HALL,08/06/2021,"2,331.08",6541-Residential EMI,THIRD PARTY PAYMENTS,PRIVATE CONTRACTOR,REVENUE
Walsall Council,http://opendatacommunities.org/id/metropolitan-district-council/walsall ,WC127-768,30.06.2021,ADULT SOCIAL CARE,ANCHOR CAREHOMES LTD - HARDEN HALL,08/06/2021,"2,064.44",6541-Residential,THIRD PARTY PAYMENTS,PRIVATE CONTRACTOR,REVENUE
Walsall Council,http://opendatacommunities.org/id/metropolitan-district-council/walsall ,WC127-769,30.06.2021,ADULT SOCIAL CARE,ANCHOR CAREHOMES LTD - HARDEN HALL,08/06/2021,"2,331.08",6541-Residential EMI,THIRD PARTY PAYMENTS,PRIVATE CONTRACTOR,REVENUE
Walsall Council,http://opendatacommunities.org/id/metropolitan-district-council/walsall ,WC127-770,30.06.2021,ADULT SOCIAL CARE,ANCHOR CAREHOMES LTD - HARDEN HALL,08/06/2021,"2,331.08",6541-Residential EMI,THIRD PARTY PAYMENTS,PRIVATE CONTRACTOR,REVENUE
Walsall Council,http://opendatacommunities.org/id/metropolitan-district-council/walsall ,WC127-771,30.06.2021,ADULT SOCIAL CARE,ANCHOR CAREHOMES LTD - HARDEN HALL,08/06/2021,"2,064.44",6541-Residential,THIRD PARTY PAYMENTS,PRIVATE CONTRACTOR,REVENUE
Walsall Council,http://opendatacommunities.org/id/metropolitan-district-council/walsall ,WC127-772,30.06.2021,ADULT SOCIAL CARE,ANCHOR CAREHOMES LTD - HARDEN HALL,08/06/2021,"2,064.44",6541-Residential,THIRD PARTY PAYMENTS,PRIVATE CONTRACTOR,REVENUE
Walsall Council,http://opendatacommunities.org/id/metropolitan-district-council/walsall ,WC127-773,30.06.2021,ADULT SOCIAL CARE,ANCHOR CAREHOMES LTD - HARDEN HALL,08/06/2021,"2,331.08",6541-Residential EMI,THIRD PARTY PAYMENTS,PRIVATE CONTRACTOR,REVENUE
Walsall Council,http://opendatacommunities.org/id/metropolitan-district-council/walsall ,WC127-774,30.06.2021,ADULT SOCIAL CARE,ANCHOR CAREHOMES LTD - HARDEN HALL,08/06/2021,"2,331.08",6541-Residential EMI,THIRD PARTY PAYMENTS,PRIVATE CONTRACTOR,REVENUE
Walsall Council,http://opendatacommunities.org/id/metropolitan-district-council/walsall ,WC127-775,30.06.2021,ADULT SOCIAL CARE,ANCHOR CAREHOMES LTD - HARDEN HALL,08/06/2021,"2,331.08",6541-Residential EMI,THIRD PARTY PAYMENTS,PRIVATE CONTRACTOR,REVENUE
Walsall Council,http://opendatacommunities.org/id/metropolitan-district-council/walsall ,WC127-776,30.06.2021,ADULT SOCIAL CARE,ANCHOR CAREHOMES LTD - HARDEN HALL,08/06/2021,384.44,6541-Residential EMI,THIRD PARTY PAYMENTS,PRIVATE CONTRACTOR,REVENUE
Walsall Council,http://opendatacommunities.org/id/metropolitan-district-council/walsall ,WC127-777,30.06.2021,ADULT SOCIAL CARE,ANCHOR CAREHOMES LTD - HARDEN HALL,02/06/2021,"14,861.88",6550-ASC Infection Control Fund Round 3 (70%),TRANSFER PAYMENTS,COVID TRANSFER PAYMENT,REVENUE
Walsall Council,http://opendatacommunities.org/id/metropolitan-district-council/walsall ,WC127-778,30.06.2021,ADULT SOCIAL CARE,ANCHOR CAREHOMES LTD - HARDEN HALL,02/06/2021,"11,632.68",6550-ASC Rapid Testing Fund Round 2 (60%),TRANSFER PAYMENTS,COVID TRANSFER PAYMENT,REVENUE
Walsall Council,http://opendatacommunities.org/id/metropolitan-district-council/walsall ,WC127-779,30.06.2021,ADULT SOCIAL CARE,ANCHOR CAREHOMES LTD - HARDEN HALL,23/06/2021,"6,572.88",6550-ASC Rapid Testing Fund Round 2 (40% Grants),THIRD PARTY PAYMENTS,COVID THIRD PARTY PAYMENTS,REVENUE
Walsall Council,http://opendatacommunities.org/id/metropolitan-district-council/walsall ,WC127-780,30.06.2021,CHILDRENS,REDACTED,02/06/2021,325.79,6223-Special Guardianship Orders,TRANSFER PAYMENTS,CHILDREN SOCIAL SERVICES CLIENT,REVENUE
Walsall Council,http://opendatacommunities.org/id/metropolitan-district-council/walsall ,WC127-781,30.06.2021,CHILDRENS,REDACTED,30/06/2021,314.48,6223-Special Guardianship Orders,TRANSFER PAYMENTS,CHILDREN SOCIAL SERVICES CLIENT,REVENUE
Walsall Council,http://opendatacommunities.org/id/metropolitan-district-council/walsall ,WC127-782,30.06.2021,ADULT SOCIAL CARE,REDACTED,09/06/2021,647.50,6541-Direct Payment,THIRD PARTY PAYMENTS,PRIVATE CONTRACTOR,REVENUE
Walsall Council,http://opendatacommunities.org/id/metropolitan-district-council/walsall ,WC127-783,30.06.2021,ADULT SOCIAL CARE,REDACTED,09/06/2021,"3,387.70",6541-Direct Payment,THIRD PARTY PAYMENTS,PRIVATE CONTRACTOR,REVENUE
Walsall Council,http://opendatacommunities.org/id/metropolitan-district-council/walsall ,WC127-784,30.06.2021,CHILDRENS,REDACTED,02/06/2021,524.38,6223-Special Guardianship Orders,TRANSFER PAYMENTS,CHILDREN SOCIAL SERVICES CLIENT,REVENUE
Walsall Council,http://opendatacommunities.org/id/metropolitan-district-council/walsall ,WC127-785,30.06.2021,CHILDRENS,REDACTED,02/06/2021,388.19,6223-Special Guardianship Orders,TRANSFER PAYMENTS,CHILDREN SOCIAL SERVICES CLIENT,REVENUE
Walsall Council,http://opendatacommunities.org/id/metropolitan-district-council/walsall ,WC127-786,30.06.2021,CHILDRENS,REDACTED,30/06/2021,376.88,6223-Special Guardianship Orders,TRANSFER PAYMENTS,CHILDREN SOCIAL SERVICES CLIENT,REVENUE
Walsall Council,http://opendatacommunities.org/id/metropolitan-district-council/walsall ,WC127-787,30.06.2021,CHILDRENS,REDACTED,30/06/2021,510.28,6223-Special Guardianship Orders,TRANSFER PAYMENTS,CHILDREN SOCIAL SERVICES CLIENT,REVENUE
Walsall Council,http://opendatacommunities.org/id/metropolitan-district-council/walsall ,WC127-788,30.06.2021,CHILDRENS,REDACTED,02/06/2021,261.73,6223-Special Guardianship Orders,TRANSFER PAYMENTS,CHILDREN SOCIAL SERVICES CLIENT,REVENUE
Walsall Council,http://opendatacommunities.org/id/metropolitan-district-council/walsall ,WC127-789,30.06.2021,CHILDRENS,REDACTED,30/06/2021,314.76,6223-Special Guardianship Orders,TRANSFER PAYMENTS,CHILDREN SOCIAL SERVICES CLIENT,REVENUE
Walsall Council,http://opendatacommunities.org/id/metropolitan-district-council/walsall ,WC127-790,30.06.2021,CHILDRENS,ANGELS AND BUTTERFLIES CHILDMINDING,18/06/2021,"1,661.14",1184-Other-Grants to Other Orgs,SUPPLIES & SERVICES,GRANTS (EXP) & SUBSCRIPTIONS,REVENUE
Walsall Council,http://opendatacommunities.org/id/metropolitan-district-council/walsall ,WC127-791,30.06.2021,CHILDRENS,ANGELS AND BUTTERFLIES CHILDMINDING,16/06/2021,263.25,1184-Other-Grants to Other Orgs,SUPPLIES & SERVICES,GRANTS (EXP) & SUBSCRIPTIONS,REVENUE
Walsall Council,http://opendatacommunities.org/id/metropolitan-district-council/walsall ,WC127-792,30.06.2021,ADULT SOCIAL CARE,REDACTED,10/06/2021,301.28,6541-Shared Lives,THIRD PARTY PAYMENTS,PRIVATE CONTRACTOR,REVENUE
Walsall Council,http://opendatacommunities.org/id/metropolitan-district-council/walsall ,WC127-793,30.06.2021,ADULT SOCIAL CARE,ANSON COURT RESIDENTIAL HOME,08/06/2021,"2,331.08",6541-Residential EMI,THIRD PARTY PAYMENTS,PRIVATE CONTRACTOR,REVENUE
Walsall Council,http://opendatacommunities.org/id/metropolitan-district-council/walsall ,WC127-794,30.06.2021,ADULT SOCIAL CARE,ANSON COURT RESIDENTIAL HOME,08/06/2021,"2,331.08",6541-Residential EMI,THIRD PARTY PAYMENTS,PRIVATE CONTRACTOR,REVENUE
Walsall Council,http://opendatacommunities.org/id/metropolitan-district-council/walsall ,WC127-795,30.06.2021,ADULT SOCIAL CARE,ANSON COURT RESIDENTIAL HOME,08/06/2021,"2,331.08",6541-Residential EMI,THIRD PARTY PAYMENTS,PRIVATE CONTRACTOR,REVENUE
Walsall Council,http://opendatacommunities.org/id/metropolitan-district-council/walsall ,WC127-796,30.06.2021,ADULT SOCIAL CARE,ANSON COURT RESIDENTIAL HOME,08/06/2021,"2,331.08",6541-Residential EMI,THIRD PARTY PAYMENTS,PRIVATE CONTRACTOR,REVENUE
Walsall Council,http://opendatacommunities.org/id/metropolitan-district-council/walsall ,WC127-797,30.06.2021,ADULT SOCIAL CARE,ANSON COURT RESIDENTIAL HOME,08/06/2021,"2,331.08",6541-Residential EMI,THIRD PARTY PAYMENTS,PRIVATE CONTRACTOR,REVENUE
Walsall Council,http://opendatacommunities.org/id/metropolitan-district-council/walsall ,WC127-798,30.06.2021,ADULT SOCIAL CARE,ANSON COURT RESIDENTIAL HOME,08/06/2021,832.53,6541-Residential EMI,THIRD PARTY PAYMENTS,PRIVATE CONTRACTOR,REVENUE
Walsall Council,http://opendatacommunities.org/id/metropolitan-district-council/walsall ,WC127-799,30.06.2021,ADULT SOCIAL CARE,ANSON COURT RESIDENTIAL HOME,08/06/2021,"2,184.44",6541-Residential,THIRD PARTY PAYMENTS,PRIVATE CONTRACTOR,REVENUE
Walsall Council,http://opendatacommunities.org/id/metropolitan-district-council/walsall ,WC127-800,30.06.2021,ADULT SOCIAL CARE,ANSON COURT RESIDENTIAL HOME,08/06/2021,"2,331.08",6541-Residential EMI,THIRD PARTY PAYMENTS,PRIVATE CONTRACTOR,REVENUE
Walsall Council,http://opendatacommunities.org/id/metropolitan-district-council/walsall ,WC127-801,30.06.2021,ADULT SOCIAL CARE,ANSON COURT RESIDENTIAL HOME,08/06/2021,"2,331.08",6541-Residential EMI,THIRD PARTY PAYMENTS,PRIVATE CONTRACTOR,REVENUE
Walsall Council,http://opendatacommunities.org/id/metropolitan-district-council/walsall ,WC127-802,30.06.2021,ADULT SOCIAL CARE,ANSON COURT RESIDENTIAL HOME,08/06/2021,"2,192.68",6541-Residential,THIRD PARTY PAYMENTS,PRIVATE CONTRACTOR,REVENUE
Walsall Council,http://opendatacommunities.org/id/metropolitan-district-council/walsall ,WC127-803,30.06.2021,ADULT SOCIAL CARE,ANSON COURT RESIDENTIAL HOME,08/06/2021,"2,064.44",6541-Residential,THIRD PARTY PAYMENTS,PRIVATE CONTRACTOR,REVENUE
Walsall Council,http://opendatacommunities.org/id/metropolitan-district-council/walsall ,WC127-804,30.06.2021,ADULT SOCIAL CARE,ANSON COURT RESIDENTIAL HOME,08/06/2021,"2,331.08",6541-Residential EMI,THIRD PARTY PAYMENTS,PRIVATE CONTRACTOR,REVENUE
Walsall Council,http://opendatacommunities.org/id/metropolitan-district-council/walsall ,WC127-805,30.06.2021,ADULT SOCIAL CARE,ANSON COURT RESIDENTIAL HOME,08/06/2021,"2,331.08",6541-Residential EMI,THIRD PARTY PAYMENTS,PRIVATE CONTRACTOR,REVENUE
Walsall Council,http://opendatacommunities.org/id/metropolitan-district-council/walsall ,WC127-806,30.06.2021,ADULT SOCIAL CARE,ANSON COURT RESIDENTIAL HOME,08/06/2021,"2,331.08",6541-Residential EMI,THIRD PARTY PAYMENTS,PRIVATE CONTRACTOR,REVENUE
Walsall Council,http://opendatacommunities.org/id/metropolitan-district-council/walsall ,WC127-807,30.06.2021,ADULT SOCIAL CARE,ANSON COURT RESIDENTIAL HOME,08/06/2021,"2,331.08",6541-Residential EMI,THIRD PARTY PAYMENTS,PRIVATE CONTRACTOR,REVENUE
